Workbook

Sheet DESCRIZIONE
A3: RISERVATO AGLI ADERENTI CON QUALIFICA DI DIRIGENTE
A4: Il progetto esemplificativo individuale è dedicato, in modo specifico, ai nuovi iscritti (anche per i fiscalmente a carico) dal 2007 in poi. Vuole essere d'aiuto per valutare l'investimento nel Fondo Pensione.
A5: I risultati prodotti dai motori di calcolo non impegnano in alcun modo il Fondo Pensione
C13: TRA QUANTO TEMPO INVESTENDO UN CAPITALE NOTO A UN TASSO ANNUO DI RENDIMENTO NOTO POTRO' AVERE IL MONTANTE CHE MI SERVE?
E16: QUANTO CAPITALE DEVO INVESTIRE PER OTTENERE TRA X ANNI UN MONTANTE DESIDERATO?
B19: INVESTENDO UN CAPITALE ANNUALE CONOSCIUTO, CON O SENZA CAPITALE INIZIALE A UN TASSO ANNUO DI REND. CONOSCIUTO CHE MONTANTE AVRO' TRA X ANNI? | AG19: INVESTENDO UN CAPITALE ANNUALE CONOSCIUTO, CON O SENZA CAPITALE INIZIALE A UN TASSO DI RIV CONOSCIUTO CHE MONTANTE AVRO' TRA X ANNI? | AW19: INVESTENDO UN CAPITALE ANNUALE CONOSCIUTO, CON O SENZA CAPITALE INIZIALE A UN TASSO DI RIV CONOSCIUTO CHE MONTANTE AVRO' TRA X ANNI? | BM19: INVESTENDO UN CAPITALE ANNUALE CONOSCIUTO, CON O SENZA CAPITALE INIZIALE A UN TASSO DI RIV CONOSCIUTO CHE MONTANTE AVRO' TRA X ANNI? | CC19: INVESTENDO UN CAPITALE ANNUALE CONOSCIUTO, CON O SENZA CAPITALE INIZIALE A UN TASSO DI RIV CONOSCIUTO CHE MONTANTE AVRO' TRA X ANNI? | CS19: INVESTENDO UN CAPITALE ANNUALE CONOSCIUTO, CON O SENZA CAPITALE INIZIALE A UN TASSO DI RIV CONOSCIUTO CHE MONTANTE AVRO' TRA X ANNI? | DI19: INVESTENDO UN CAPITALE ANNUALE CONOSCIUTO, CON O SENZA CAPITALE INIZIALE A UN TASSO DI RIV CONOSCIUTO CHE MONTANTE AVRO' TRA X ANNI? | DY19: INVESTENDO UN CAPITALE ANNUALE CONOSCIUTO, CON O SENZA CAPITALE INIZIALE A UN TASSO DI RIV CONOSCIUTO CHE MONTANTE AVRO' TRA X ANNI? | EO19: INVESTENDO UN CAPITALE ANNUALE CONOSCIUTO, CON O SENZA CAPITALE INIZIALE A UN TASSO DI RIV CONOSCIUTO CHE MONTANTE AVRO' TRA X ANNI? | FE19: INVESTENDO UN CAPITALE ANNUALE CONOSCIUTO, CON O SENZA CAPITALE INIZIALE A UN TASSO DI RIV CONOSCIUTO CHE MONTANTE AVRO' TRA X ANNI? | FU19: INVESTENDO UN CAPITALE ANNUALE CONOSCIUTO, CON O SENZA CAPITALE INIZIALE A UN TASSO DI RIV CONOSCIUTO CHE MONTANTE AVRO' TRA X ANNI? | GK19: INVESTENDO UN CAPITALE ANNUALE CONOSCIUTO, CON O SENZA CAPITALE INIZIALE A UN TASSO DI RIV CONOSCIUTO CHE MONTANTE AVRO' TRA X ANNI? | HA19: INVESTENDO UN CAPITALE ANNUALE CONOSCIUTO, CON O SENZA CAPITALE INIZIALE A UN TASSO DI RIV CONOSCIUTO CHE MONTANTE AVRO' TRA X ANNI? | HQ19: INVESTENDO UN CAPITALE ANNUALE CONOSCIUTO, CON O SENZA CAPITALE INIZIALE A UN TASSO DI RIV CONOSCIUTO CHE MONTANTE AVRO' TRA X ANNI? | IG19: INVESTENDO UN CAPITALE ANNUALE CONOSCIUTO, CON O SENZA CAPITALE INIZIALE A UN TASSO DI RIV CONOSCIUTO CHE MONTANTE AVRO' TRA X ANNI? | IW19: INVESTENDO UN CAPITALE ANNUALE CONOSCIUTO, CON O SENZA CAPITALE INIZIALE A UN TASSO DI RIV CONOSCIUTO CHE MONTANTE AVRO' TRA X ANNI? | JM19: INVESTENDO UN CAPITALE ANNUALE CONOSCIUTO, CON O SENZA CAPITALE INIZIALE A UN TASSO DI RIV CONOSCIUTO CHE MONTANTE AVRO' TRA X ANNI? | KC19: INVESTENDO UN CAPITALE ANNUALE CONOSCIUTO, CON O SENZA CAPITALE INIZIALE A UN TASSO DI RIV CONOSCIUTO CHE MONTANTE AVRO' TRA X ANNI? | KS19: INVESTENDO UN CAPITALE ANNUALE CONOSCIUTO, CON O SENZA CAPITALE INIZIALE A UN TASSO DI RIV CONOSCIUTO CHE MONTANTE AVRO' TRA X ANNI? | LI19: INVESTENDO UN CAPITALE ANNUALE CONOSCIUTO, CON O SENZA CAPITALE INIZIALE A UN TASSO DI RIV CONOSCIUTO CHE MONTANTE AVRO' TRA X ANNI? | LY19: INVESTENDO UN CAPITALE ANNUALE CONOSCIUTO, CON O SENZA CAPITALE INIZIALE A UN TASSO DI RIV CONOSCIUTO CHE MONTANTE AVRO' TRA X ANNI? | MO19: INVESTENDO UN CAPITALE ANNUALE CONOSCIUTO, CON O SENZA CAPITALE INIZIALE A UN TASSO DI RIV CONOSCIUTO CHE MONTANTE AVRO' TRA X ANNI? | NE19: INVESTENDO UN CAPITALE ANNUALE CONOSCIUTO, CON O SENZA CAPITALE INIZIALE A UN TASSO DI RIV CONOSCIUTO CHE MONTANTE AVRO' TRA X ANNI? | NU19: INVESTENDO UN CAPITALE ANNUALE CONOSCIUTO, CON O SENZA CAPITALE INIZIALE A UN TASSO DI RIV CONOSCIUTO CHE MONTANTE AVRO' TRA X ANNI? | OK19: INVESTENDO UN CAPITALE ANNUALE CONOSCIUTO, CON O SENZA CAPITALE INIZIALE A UN TASSO DI RIV CONOSCIUTO CHE MONTANTE AVRO' TRA X ANNI? | PA19: INVESTENDO UN CAPITALE ANNUALE CONOSCIUTO, CON O SENZA CAPITALE INIZIALE A UN TASSO DI RIV CONOSCIUTO CHE MONTANTE AVRO' TRA X ANNI? | PQ19: INVESTENDO UN CAPITALE ANNUALE CONOSCIUTO, CON O SENZA CAPITALE INIZIALE A UN TASSO DI RIV CONOSCIUTO CHE MONTANTE AVRO' TRA X ANNI? | QG19: INVESTENDO UN CAPITALE ANNUALE CONOSCIUTO, CON O SENZA CAPITALE INIZIALE A UN TASSO DI RIV CONOSCIUTO CHE MONTANTE AVRO' TRA X ANNI? | QW19: INVESTENDO UN CAPITALE ANNUALE CONOSCIUTO, CON O SENZA CAPITALE INIZIALE A UN TASSO DI RIV CONOSCIUTO CHE MONTANTE AVRO' TRA X ANNI? | RM19: INVESTENDO UN CAPITALE ANNUALE CONOSCIUTO, CON O SENZA CAPITALE INIZIALE A UN TASSO DI RIV CONOSCIUTO CHE MONTANTE AVRO' TRA X ANNI? | SC19: INVESTENDO UN CAPITALE ANNUALE CONOSCIUTO, CON O SENZA CAPITALE INIZIALE A UN TASSO DI RIV CONOSCIUTO CHE MONTANTE AVRO' TRA X ANNI? | SS19: INVESTENDO UN CAPITALE ANNUALE CONOSCIUTO, CON O SENZA CAPITALE INIZIALE A UN TASSO DI RIV CONOSCIUTO CHE MONTANTE AVRO' TRA X ANNI? | TI19: INVESTENDO UN CAPITALE ANNUALE CONOSCIUTO, CON O SENZA CAPITALE INIZIALE A UN TASSO DI RIV CONOSCIUTO CHE MONTANTE AVRO' TRA X ANNI? | TY19: INVESTENDO UN CAPITALE ANNUALE CONOSCIUTO, CON O SENZA CAPITALE INIZIALE A UN TASSO DI RIV CONOSCIUTO CHE MONTANTE AVRO' TRA X ANNI? | UO19: INVESTENDO UN CAPITALE ANNUALE CONOSCIUTO, CON O SENZA CAPITALE INIZIALE A UN TASSO DI RIV CONOSCIUTO CHE MONTANTE AVRO' TRA X ANNI? | VE19: INVESTENDO UN CAPITALE ANNUALE CONOSCIUTO, CON O SENZA CAPITALE INIZIALE A UN TASSO DI RIV CONOSCIUTO CHE MONTANTE AVRO' TRA X ANNI? | VU19: INVESTENDO UN CAPITALE ANNUALE CONOSCIUTO, CON O SENZA CAPITALE INIZIALE A UN TASSO DI RIV CONOSCIUTO CHE MONTANTE AVRO' TRA X ANNI? | WK19: INVESTENDO UN CAPITALE ANNUALE CONOSCIUTO, CON O SENZA CAPITALE INIZIALE A UN TASSO DI RIV CONOSCIUTO CHE MONTANTE AVRO' TRA X ANNI? | XA19: INVESTENDO UN CAPITALE ANNUALE CONOSCIUTO, CON O SENZA CAPITALE INIZIALE A UN TASSO DI RIV CONOSCIUTO CHE MONTANTE AVRO' TRA X ANNI? | XQ19: INVESTENDO UN CAPITALE ANNUALE CONOSCIUTO, CON O SENZA CAPITALE INIZIALE A UN TASSO DI RIV CONOSCIUTO CHE MONTANTE AVRO' TRA X ANNI? | YG19: INVESTENDO UN CAPITALE ANNUALE CONOSCIUTO, CON O SENZA CAPITALE INIZIALE A UN TASSO DI RIV CONOSCIUTO CHE MONTANTE AVRO' TRA X ANNI? | YW19: INVESTENDO UN CAPITALE ANNUALE CONOSCIUTO, CON O SENZA CAPITALE INIZIALE A UN TASSO DI RIV CONOSCIUTO CHE MONTANTE AVRO' TRA X ANNI? | ZM19: INVESTENDO UN CAPITALE ANNUALE CONOSCIUTO, CON O SENZA CAPITALE INIZIALE A UN TASSO DI RIV CONOSCIUTO CHE MONTANTE AVRO' TRA X ANNI? | AAC19: INVESTENDO UN CAPITALE ANNUALE CONOSCIUTO, CON O SENZA CAPITALE INIZIALE A UN TASSO DI RIV CONOSCIUTO CHE MONTANTE AVRO' TRA X ANNI? | AAS19: INVESTENDO UN CAPITALE ANNUALE CONOSCIUTO, CON O SENZA CAPITALE INIZIALE A UN TASSO DI RIV CONOSCIUTO CHE MONTANTE AVRO' TRA X ANNI? | ABI19: INVESTENDO UN CAPITALE ANNUALE CONOSCIUTO, CON O SENZA CAPITALE INIZIALE A UN TASSO DI RIV CONOSCIUTO CHE MONTANTE AVRO' TRA X ANNI? | ABY19: INVESTENDO UN CAPITALE ANNUALE CONOSCIUTO, CON O SENZA CAPITALE INIZIALE A UN TASSO DI RIV CONOSCIUTO CHE MONTANTE AVRO' TRA X ANNI? | ACO19: INVESTENDO UN CAPITALE ANNUALE CONOSCIUTO, CON O SENZA CAPITALE INIZIALE A UN TASSO DI RIV CONOSCIUTO CHE MONTANTE AVRO' TRA X ANNI? | ADE19: INVESTENDO UN CAPITALE ANNUALE CONOSCIUTO, CON O SENZA CAPITALE INIZIALE A UN TASSO DI RIV CONOSCIUTO CHE MONTANTE AVRO' TRA X ANNI? | ADU19: INVESTENDO UN CAPITALE ANNUALE CONOSCIUTO, CON O SENZA CAPITALE INIZIALE A UN TASSO DI RIV CONOSCIUTO CHE MONTANTE AVRO' TRA X ANNI? | AEK19: INVESTENDO UN CAPITALE ANNUALE CONOSCIUTO, CON O SENZA CAPITALE INIZIALE A UN TASSO DI RIV CONOSCIUTO CHE MONTANTE AVRO' TRA X ANNI? | AFA19: INVESTENDO UN CAPITALE ANNUALE CONOSCIUTO, CON O SENZA CAPITALE INIZIALE A UN TASSO DI RIV CONOSCIUTO CHE MONTANTE AVRO' TRA X ANNI? | AFQ19: INVESTENDO UN CAPITALE ANNUALE CONOSCIUTO, CON O SENZA CAPITALE INIZIALE A UN TASSO DI RIV CONOSCIUTO CHE MONTANTE AVRO' TRA X ANNI? | AGG19: INVESTENDO UN CAPITALE ANNUALE CONOSCIUTO, CON O SENZA CAPITALE INIZIALE A UN TASSO DI RIV CONOSCIUTO CHE MONTANTE AVRO' TRA X ANNI? | AGW19: INVESTENDO UN CAPITALE ANNUALE CONOSCIUTO, CON O SENZA CAPITALE INIZIALE A UN TASSO DI RIV CONOSCIUTO CHE MONTANTE AVRO' TRA X ANNI? | AHM19: INVESTENDO UN CAPITALE ANNUALE CONOSCIUTO, CON O SENZA CAPITALE INIZIALE A UN TASSO DI RIV CONOSCIUTO CHE MONTANTE AVRO' TRA X ANNI? | AIC19: INVESTENDO UN CAPITALE ANNUALE CONOSCIUTO, CON O SENZA CAPITALE INIZIALE A UN TASSO DI RIV CONOSCIUTO CHE MONTANTE AVRO' TRA X ANNI? | AIS19: INVESTENDO UN CAPITALE ANNUALE CONOSCIUTO, CON O SENZA CAPITALE INIZIALE A UN TASSO DI RIV CONOSCIUTO CHE MONTANTE AVRO' TRA X ANNI? | AJI19: INVESTENDO UN CAPITALE ANNUALE CONOSCIUTO, CON O SENZA CAPITALE INIZIALE A UN TASSO DI RIV CONOSCIUTO CHE MONTANTE AVRO' TRA X ANNI? | AJY19: INVESTENDO UN CAPITALE ANNUALE CONOSCIUTO, CON O SENZA CAPITALE INIZIALE A UN TASSO DI RIV CONOSCIUTO CHE MONTANTE AVRO' TRA X ANNI? | AKO19: INVESTENDO UN CAPITALE ANNUALE CONOSCIUTO, CON O SENZA CAPITALE INIZIALE A UN TASSO DI RIV CONOSCIUTO CHE MONTANTE AVRO' TRA X ANNI? | ALE19: INVESTENDO UN CAPITALE ANNUALE CONOSCIUTO, CON O SENZA CAPITALE INIZIALE A UN TASSO DI RIV CONOSCIUTO CHE MONTANTE AVRO' TRA X ANNI? | ALU19: INVESTENDO UN CAPITALE ANNUALE CONOSCIUTO, CON O SENZA CAPITALE INIZIALE A UN TASSO DI RIV CONOSCIUTO CHE MONTANTE AVRO' TRA X ANNI? | AMK19: INVESTENDO UN CAPITALE ANNUALE CONOSCIUTO, CON O SENZA CAPITALE INIZIALE A UN TASSO DI RIV CONOSCIUTO CHE MONTANTE AVRO' TRA X ANNI? | ANA19: INVESTENDO UN CAPITALE ANNUALE CONOSCIUTO, CON O SENZA CAPITALE INIZIALE A UN TASSO DI RIV CONOSCIUTO CHE MONTANTE AVRO' TRA X ANNI? | ANQ19: INVESTENDO UN CAPITALE ANNUALE CONOSCIUTO, CON O SENZA CAPITALE INIZIALE A UN TASSO DI RIV CONOSCIUTO CHE MONTANTE AVRO' TRA X ANNI? | AOG19: INVESTENDO UN CAPITALE ANNUALE CONOSCIUTO, CON O SENZA CAPITALE INIZIALE A UN TASSO DI RIV CONOSCIUTO CHE MONTANTE AVRO' TRA X ANNI? | AOW19: INVESTENDO UN CAPITALE ANNUALE CONOSCIUTO, CON O SENZA CAPITALE INIZIALE A UN TASSO DI RIV CONOSCIUTO CHE MONTANTE AVRO' TRA X ANNI? | APM19: INVESTENDO UN CAPITALE ANNUALE CONOSCIUTO, CON O SENZA CAPITALE INIZIALE A UN TASSO DI RIV CONOSCIUTO CHE MONTANTE AVRO' TRA X ANNI? | AQC19: INVESTENDO UN CAPITALE ANNUALE CONOSCIUTO, CON O SENZA CAPITALE INIZIALE A UN TASSO DI RIV CONOSCIUTO CHE MONTANTE AVRO' TRA X ANNI? | AQS19: INVESTENDO UN CAPITALE ANNUALE CONOSCIUTO, CON O SENZA CAPITALE INIZIALE A UN TASSO DI RIV CONOSCIUTO CHE MONTANTE AVRO' TRA X ANNI? | ARI19: INVESTENDO UN CAPITALE ANNUALE CONOSCIUTO, CON O SENZA CAPITALE INIZIALE A UN TASSO DI RIV CONOSCIUTO CHE MONTANTE AVRO' TRA X ANNI? | ARY19: INVESTENDO UN CAPITALE ANNUALE CONOSCIUTO, CON O SENZA CAPITALE INIZIALE A UN TASSO DI RIV CONOSCIUTO CHE MONTANTE AVRO' TRA X ANNI? | ASO19: INVESTENDO UN CAPITALE ANNUALE CONOSCIUTO, CON O SENZA CAPITALE INIZIALE A UN TASSO DI RIV CONOSCIUTO CHE MONTANTE AVRO' TRA X ANNI? | ATE19: INVESTENDO UN CAPITALE ANNUALE CONOSCIUTO, CON O SENZA CAPITALE INIZIALE A UN TASSO DI RIV CONOSCIUTO CHE MONTANTE AVRO' TRA X ANNI? | ATU19: INVESTENDO UN CAPITALE ANNUALE CONOSCIUTO, CON O SENZA CAPITALE INIZIALE A UN TASSO DI RIV CONOSCIUTO CHE MONTANTE AVRO' TRA X ANNI? | AUK19: INVESTENDO UN CAPITALE ANNUALE CONOSCIUTO, CON O SENZA CAPITALE INIZIALE A UN TASSO DI RIV CONOSCIUTO CHE MONTANTE AVRO' TRA X ANNI? | AVA19: INVESTENDO UN CAPITALE ANNUALE CONOSCIUTO, CON O SENZA CAPITALE INIZIALE A UN TASSO DI RIV CONOSCIUTO CHE MONTANTE AVRO' TRA X ANNI? | AVQ19: INVESTENDO UN CAPITALE ANNUALE CONOSCIUTO, CON O SENZA CAPITALE INIZIALE A UN TASSO DI RIV CONOSCIUTO CHE MONTANTE AVRO' TRA X ANNI? | AWG19: INVESTENDO UN CAPITALE ANNUALE CONOSCIUTO, CON O SENZA CAPITALE INIZIALE A UN TASSO DI RIV CONOSCIUTO CHE MONTANTE AVRO' TRA X ANNI? | AWW19: INVESTENDO UN CAPITALE ANNUALE CONOSCIUTO, CON O SENZA CAPITALE INIZIALE A UN TASSO DI RIV CONOSCIUTO CHE MONTANTE AVRO' TRA X ANNI? | AXM19: INVESTENDO UN CAPITALE ANNUALE CONOSCIUTO, CON O SENZA CAPITALE INIZIALE A UN TASSO DI RIV CONOSCIUTO CHE MONTANTE AVRO' TRA X ANNI? | AYC19: INVESTENDO UN CAPITALE ANNUALE CONOSCIUTO, CON O SENZA CAPITALE INIZIALE A UN TASSO DI RIV CONOSCIUTO CHE MONTANTE AVRO' TRA X ANNI? | AYS19: INVESTENDO UN CAPITALE ANNUALE CONOSCIUTO, CON O SENZA CAPITALE INIZIALE A UN TASSO DI RIV CONOSCIUTO CHE MONTANTE AVRO' TRA X ANNI? | AZI19: INVESTENDO UN CAPITALE ANNUALE CONOSCIUTO, CON O SENZA CAPITALE INIZIALE A UN TASSO DI RIV CONOSCIUTO CHE MONTANTE AVRO' TRA X ANNI? | AZY19: INVESTENDO UN CAPITALE ANNUALE CONOSCIUTO, CON O SENZA CAPITALE INIZIALE A UN TASSO DI RIV CONOSCIUTO CHE MONTANTE AVRO' TRA X ANNI? | BAO19: INVESTENDO UN CAPITALE ANNUALE CONOSCIUTO, CON O SENZA CAPITALE INIZIALE A UN TASSO DI RIV CONOSCIUTO CHE MONTANTE AVRO' TRA X ANNI? | BBE19: INVESTENDO UN CAPITALE ANNUALE CONOSCIUTO, CON O SENZA CAPITALE INIZIALE A UN TASSO DI RIV CONOSCIUTO CHE MONTANTE AVRO' TRA X ANNI? | BBU19: INVESTENDO UN CAPITALE ANNUALE CONOSCIUTO, CON O SENZA CAPITALE INIZIALE A UN TASSO DI RIV CONOSCIUTO CHE MONTANTE AVRO' TRA X ANNI? | BCK19: INVESTENDO UN CAPITALE ANNUALE CONOSCIUTO, CON O SENZA CAPITALE INIZIALE A UN TASSO DI RIV CONOSCIUTO CHE MONTANTE AVRO' TRA X ANNI? | BDA19: INVESTENDO UN CAPITALE ANNUALE CONOSCIUTO, CON O SENZA CAPITALE INIZIALE A UN TASSO DI RIV CONOSCIUTO CHE MONTANTE AVRO' TRA X ANNI? | BDQ19: INVESTENDO UN CAPITALE ANNUALE CONOSCIUTO, CON O SENZA CAPITALE INIZIALE A UN TASSO DI RIV CONOSCIUTO CHE MONTANTE AVRO' TRA X ANNI? | BEG19: INVESTENDO UN CAPITALE ANNUALE CONOSCIUTO, CON O SENZA CAPITALE INIZIALE A UN TASSO DI RIV CONOSCIUTO CHE MONTANTE AVRO' TRA X ANNI? | BEW19: INVESTENDO UN CAPITALE ANNUALE CONOSCIUTO, CON O SENZA CAPITALE INIZIALE A UN TASSO DI RIV CONOSCIUTO CHE MONTANTE AVRO' TRA X ANNI? | BFM19: INVESTENDO UN CAPITALE ANNUALE CONOSCIUTO, CON O SENZA CAPITALE INIZIALE A UN TASSO DI RIV CONOSCIUTO CHE MONTANTE AVRO' TRA X ANNI? | BGC19: INVESTENDO UN CAPITALE ANNUALE CONOSCIUTO, CON O SENZA CAPITALE INIZIALE A UN TASSO DI RIV CONOSCIUTO CHE MONTANTE AVRO' TRA X ANNI? | BGS19: INVESTENDO UN CAPITALE ANNUALE CONOSCIUTO, CON O SENZA CAPITALE INIZIALE A UN TASSO DI RIV CONOSCIUTO CHE MONTANTE AVRO' TRA X ANNI? | BHI19: INVESTENDO UN CAPITALE ANNUALE CONOSCIUTO, CON O SENZA CAPITALE INIZIALE A UN TASSO DI RIV CONOSCIUTO CHE MONTANTE AVRO' TRA X ANNI? | BHY19: INVESTENDO UN CAPITALE ANNUALE CONOSCIUTO, CON O SENZA CAPITALE INIZIALE A UN TASSO DI RIV CONOSCIUTO CHE MONTANTE AVRO' TRA X ANNI? | BIO19: INVESTENDO UN CAPITALE ANNUALE CONOSCIUTO, CON O SENZA CAPITALE INIZIALE A UN TASSO DI RIV CONOSCIUTO CHE MONTANTE AVRO' TRA X ANNI? | BJE19: INVESTENDO UN CAPITALE ANNUALE CONOSCIUTO, CON O SENZA CAPITALE INIZIALE A UN TASSO DI RIV CONOSCIUTO CHE MONTANTE AVRO' TRA X ANNI? | BJU19: INVESTENDO UN CAPITALE ANNUALE CONOSCIUTO, CON O SENZA CAPITALE INIZIALE A UN TASSO DI RIV CONOSCIUTO CHE MONTANTE AVRO' TRA X ANNI? | BKK19: INVESTENDO UN CAPITALE ANNUALE CONOSCIUTO, CON O SENZA CAPITALE INIZIALE A UN TASSO DI RIV CONOSCIUTO CHE MONTANTE AVRO' TRA X ANNI? | BLA19: INVESTENDO UN CAPITALE ANNUALE CONOSCIUTO, CON O SENZA CAPITALE INIZIALE A UN TASSO DI RIV CONOSCIUTO CHE MONTANTE AVRO' TRA X ANNI? | BLQ19: INVESTENDO UN CAPITALE ANNUALE CONOSCIUTO, CON O SENZA CAPITALE INIZIALE A UN TASSO DI RIV CONOSCIUTO CHE MONTANTE AVRO' TRA X ANNI? | BMG19: INVESTENDO UN CAPITALE ANNUALE CONOSCIUTO, CON O SENZA CAPITALE INIZIALE A UN TASSO DI RIV CONOSCIUTO CHE MONTANTE AVRO' TRA X ANNI? | BMW19: INVESTENDO UN CAPITALE ANNUALE CONOSCIUTO, CON O SENZA CAPITALE INIZIALE A UN TASSO DI RIV CONOSCIUTO CHE MONTANTE AVRO' TRA X ANNI? | BNM19: INVESTENDO UN CAPITALE ANNUALE CONOSCIUTO, CON O SENZA CAPITALE INIZIALE A UN TASSO DI RIV CONOSCIUTO CHE MONTANTE AVRO' TRA X ANNI? | BOC19: INVESTENDO UN CAPITALE ANNUALE CONOSCIUTO, CON O SENZA CAPITALE INIZIALE A UN TASSO DI RIV CONOSCIUTO CHE MONTANTE AVRO' TRA X ANNI? | BOS19: INVESTENDO UN CAPITALE ANNUALE CONOSCIUTO, CON O SENZA CAPITALE INIZIALE A UN TASSO DI RIV CONOSCIUTO CHE MONTANTE AVRO' TRA X ANNI? | BPI19: INVESTENDO UN CAPITALE ANNUALE CONOSCIUTO, CON O SENZA CAPITALE INIZIALE A UN TASSO DI RIV CONOSCIUTO CHE MONTANTE AVRO' TRA X ANNI? | BPY19: INVESTENDO UN CAPITALE ANNUALE CONOSCIUTO, CON O SENZA CAPITALE INIZIALE A UN TASSO DI RIV CONOSCIUTO CHE MONTANTE AVRO' TRA X ANNI? | BQO19: INVESTENDO UN CAPITALE ANNUALE CONOSCIUTO, CON O SENZA CAPITALE INIZIALE A UN TASSO DI RIV CONOSCIUTO CHE MONTANTE AVRO' TRA X ANNI? | BRE19: INVESTENDO UN CAPITALE ANNUALE CONOSCIUTO, CON O SENZA CAPITALE INIZIALE A UN TASSO DI RIV CONOSCIUTO CHE MONTANTE AVRO' TRA X ANNI? | BRU19: INVESTENDO UN CAPITALE ANNUALE CONOSCIUTO, CON O SENZA CAPITALE INIZIALE A UN TASSO DI RIV CONOSCIUTO CHE MONTANTE AVRO' TRA X ANNI? | BSK19: INVESTENDO UN CAPITALE ANNUALE CONOSCIUTO, CON O SENZA CAPITALE INIZIALE A UN TASSO DI RIV CONOSCIUTO CHE MONTANTE AVRO' TRA X ANNI? | BTA19: INVESTENDO UN CAPITALE ANNUALE CONOSCIUTO, CON O SENZA CAPITALE INIZIALE A UN TASSO DI RIV CONOSCIUTO CHE MONTANTE AVRO' TRA X ANNI? | BTQ19: INVESTENDO UN CAPITALE ANNUALE CONOSCIUTO, CON O SENZA CAPITALE INIZIALE A UN TASSO DI RIV CONOSCIUTO CHE MONTANTE AVRO' TRA X ANNI? | BUG19: INVESTENDO UN CAPITALE ANNUALE CONOSCIUTO, CON O SENZA CAPITALE INIZIALE A UN TASSO DI RIV CONOSCIUTO CHE MONTANTE AVRO' TRA X ANNI? | BUW19: INVESTENDO UN CAPITALE ANNUALE CONOSCIUTO, CON O SENZA CAPITALE INIZIALE A UN TASSO DI RIV CONOSCIUTO CHE MONTANTE AVRO' TRA X ANNI? | BVM19: INVESTENDO UN CAPITALE ANNUALE CONOSCIUTO, CON O SENZA CAPITALE INIZIALE A UN TASSO DI RIV CONOSCIUTO CHE MONTANTE AVRO' TRA X ANNI? | BWC19: INVESTENDO UN CAPITALE ANNUALE CONOSCIUTO, CON O SENZA CAPITALE INIZIALE A UN TASSO DI RIV CONOSCIUTO CHE MONTANTE AVRO' TRA X ANNI? | BWS19: INVESTENDO UN CAPITALE ANNUALE CONOSCIUTO, CON O SENZA CAPITALE INIZIALE A UN TASSO DI RIV CONOSCIUTO CHE MONTANTE AVRO' TRA X ANNI? | BXI19: INVESTENDO UN CAPITALE ANNUALE CONOSCIUTO, CON O SENZA CAPITALE INIZIALE A UN TASSO DI RIV CONOSCIUTO CHE MONTANTE AVRO' TRA X ANNI? | BXY19: INVESTENDO UN CAPITALE ANNUALE CONOSCIUTO, CON O SENZA CAPITALE INIZIALE A UN TASSO DI RIV CONOSCIUTO CHE MONTANTE AVRO' TRA X ANNI? | BYO19: INVESTENDO UN CAPITALE ANNUALE CONOSCIUTO, CON O SENZA CAPITALE INIZIALE A UN TASSO DI RIV CONOSCIUTO CHE MONTANTE AVRO' TRA X ANNI? | BZE19: INVESTENDO UN CAPITALE ANNUALE CONOSCIUTO, CON O SENZA CAPITALE INIZIALE A UN TASSO DI RIV CONOSCIUTO CHE MONTANTE AVRO' TRA X ANNI? | BZU19: INVESTENDO UN CAPITALE ANNUALE CONOSCIUTO, CON O SENZA CAPITALE INIZIALE A UN TASSO DI RIV CONOSCIUTO CHE MONTANTE AVRO' TRA X ANNI? | CAK19: INVESTENDO UN CAPITALE ANNUALE CONOSCIUTO, CON O SENZA CAPITALE INIZIALE A UN TASSO DI RIV CONOSCIUTO CHE MONTANTE AVRO' TRA X ANNI? | CBA19: INVESTENDO UN CAPITALE ANNUALE CONOSCIUTO, CON O SENZA CAPITALE INIZIALE A UN TASSO DI RIV CONOSCIUTO CHE MONTANTE AVRO' TRA X ANNI? | CBQ19: INVESTENDO UN CAPITALE ANNUALE CONOSCIUTO, CON O SENZA CAPITALE INIZIALE A UN TASSO DI RIV CONOSCIUTO CHE MONTANTE AVRO' TRA X ANNI? | CCG19: INVESTENDO UN CAPITALE ANNUALE CONOSCIUTO, CON O SENZA CAPITALE INIZIALE A UN TASSO DI RIV CONOSCIUTO CHE MONTANTE AVRO' TRA X ANNI? | CCW19: INVESTENDO UN CAPITALE ANNUALE CONOSCIUTO, CON O SENZA CAPITALE INIZIALE A UN TASSO DI RIV CONOSCIUTO CHE MONTANTE AVRO' TRA X ANNI? | CDM19: INVESTENDO UN CAPITALE ANNUALE CONOSCIUTO, CON O SENZA CAPITALE INIZIALE A UN TASSO DI RIV CONOSCIUTO CHE MONTANTE AVRO' TRA X ANNI? | CEC19: INVESTENDO UN CAPITALE ANNUALE CONOSCIUTO, CON O SENZA CAPITALE INIZIALE A UN TASSO DI RIV CONOSCIUTO CHE MONTANTE AVRO' TRA X ANNI? | CES19: INVESTENDO UN CAPITALE ANNUALE CONOSCIUTO, CON O SENZA CAPITALE INIZIALE A UN TASSO DI RIV CONOSCIUTO CHE MONTANTE AVRO' TRA X ANNI? | CFI19: INVESTENDO UN CAPITALE ANNUALE CONOSCIUTO, CON O SENZA CAPITALE INIZIALE A UN TASSO DI RIV CONOSCIUTO CHE MONTANTE AVRO' TRA X ANNI? | CFY19: INVESTENDO UN CAPITALE ANNUALE CONOSCIUTO, CON O SENZA CAPITALE INIZIALE A UN TASSO DI RIV CONOSCIUTO CHE MONTANTE AVRO' TRA X ANNI? | CGO19: INVESTENDO UN CAPITALE ANNUALE CONOSCIUTO, CON O SENZA CAPITALE INIZIALE A UN TASSO DI RIV CONOSCIUTO CHE MONTANTE AVRO' TRA X ANNI? | CHE19: INVESTENDO UN CAPITALE ANNUALE CONOSCIUTO, CON O SENZA CAPITALE INIZIALE A UN TASSO DI RIV CONOSCIUTO CHE MONTANTE AVRO' TRA X ANNI? | CHU19: INVESTENDO UN CAPITALE ANNUALE CONOSCIUTO, CON O SENZA CAPITALE INIZIALE A UN TASSO DI RIV CONOSCIUTO CHE MONTANTE AVRO' TRA X ANNI? | CIK19: INVESTENDO UN CAPITALE ANNUALE CONOSCIUTO, CON O SENZA CAPITALE INIZIALE A UN TASSO DI RIV CONOSCIUTO CHE MONTANTE AVRO' TRA X ANNI? | CJA19: INVESTENDO UN CAPITALE ANNUALE CONOSCIUTO, CON O SENZA CAPITALE INIZIALE A UN TASSO DI RIV CONOSCIUTO CHE MONTANTE AVRO' TRA X ANNI? | CJQ19: INVESTENDO UN CAPITALE ANNUALE CONOSCIUTO, CON O SENZA CAPITALE INIZIALE A UN TASSO DI RIV CONOSCIUTO CHE MONTANTE AVRO' TRA X ANNI? | CKG19: INVESTENDO UN CAPITALE ANNUALE CONOSCIUTO, CON O SENZA CAPITALE INIZIALE A UN TASSO DI RIV CONOSCIUTO CHE MONTANTE AVRO' TRA X ANNI? | CKW19: INVESTENDO UN CAPITALE ANNUALE CONOSCIUTO, CON O SENZA CAPITALE INIZIALE A UN TASSO DI RIV CONOSCIUTO CHE MONTANTE AVRO' TRA X ANNI? | CLM19: INVESTENDO UN CAPITALE ANNUALE CONOSCIUTO, CON O SENZA CAPITALE INIZIALE A UN TASSO DI RIV CONOSCIUTO CHE MONTANTE AVRO' TRA X ANNI? | CMC19: INVESTENDO UN CAPITALE ANNUALE CONOSCIUTO, CON O SENZA CAPITALE INIZIALE A UN TASSO DI RIV CONOSCIUTO CHE MONTANTE AVRO' TRA X ANNI? | CMS19: INVESTENDO UN CAPITALE ANNUALE CONOSCIUTO, CON O SENZA CAPITALE INIZIALE A UN TASSO DI RIV CONOSCIUTO CHE MONTANTE AVRO' TRA X ANNI? | CNI19: INVESTENDO UN CAPITALE ANNUALE CONOSCIUTO, CON O SENZA CAPITALE INIZIALE A UN TASSO DI RIV CONOSCIUTO CHE MONTANTE AVRO' TRA X ANNI? | CNY19: INVESTENDO UN CAPITALE ANNUALE CONOSCIUTO, CON O SENZA CAPITALE INIZIALE A UN TASSO DI RIV CONOSCIUTO CHE MONTANTE AVRO' TRA X ANNI? | COO19: INVESTENDO UN CAPITALE ANNUALE CONOSCIUTO, CON O SENZA CAPITALE INIZIALE A UN TASSO DI RIV CONOSCIUTO CHE MONTANTE AVRO' TRA X ANNI? | CPE19: INVESTENDO UN CAPITALE ANNUALE CONOSCIUTO, CON O SENZA CAPITALE INIZIALE A UN TASSO DI RIV CONOSCIUTO CHE MONTANTE AVRO' TRA X ANNI? | CPU19: INVESTENDO UN CAPITALE ANNUALE CONOSCIUTO, CON O SENZA CAPITALE INIZIALE A UN TASSO DI RIV CONOSCIUTO CHE MONTANTE AVRO' TRA X ANNI? | CQK19: INVESTENDO UN CAPITALE ANNUALE CONOSCIUTO, CON O SENZA CAPITALE INIZIALE A UN TASSO DI RIV CONOSCIUTO CHE MONTANTE AVRO' TRA X ANNI? | CRA19: INVESTENDO UN CAPITALE ANNUALE CONOSCIUTO, CON O SENZA CAPITALE INIZIALE A UN TASSO DI RIV CONOSCIUTO CHE MONTANTE AVRO' TRA X ANNI? | CRQ19: INVESTENDO UN CAPITALE ANNUALE CONOSCIUTO, CON O SENZA CAPITALE INIZIALE A UN TASSO DI RIV CONOSCIUTO CHE MONTANTE AVRO' TRA X ANNI? | CSG19: INVESTENDO UN CAPITALE ANNUALE CONOSCIUTO, CON O SENZA CAPITALE INIZIALE A UN TASSO DI RIV CONOSCIUTO CHE MONTANTE AVRO' TRA X ANNI? | CSW19: INVESTENDO UN CAPITALE ANNUALE CONOSCIUTO, CON O SENZA CAPITALE INIZIALE A UN TASSO DI RIV CONOSCIUTO CHE MONTANTE AVRO' TRA X ANNI? | CTM19: INVESTENDO UN CAPITALE ANNUALE CONOSCIUTO, CON O SENZA CAPITALE INIZIALE A UN TASSO DI RIV CONOSCIUTO CHE MONTANTE AVRO' TRA X ANNI? | CUC19: INVESTENDO UN CAPITALE ANNUALE CONOSCIUTO, CON O SENZA CAPITALE INIZIALE A UN TASSO DI RIV CONOSCIUTO CHE MONTANTE AVRO' TRA X ANNI? | CUS19: INVESTENDO UN CAPITALE ANNUALE CONOSCIUTO, CON O SENZA CAPITALE INIZIALE A UN TASSO DI RIV CONOSCIUTO CHE MONTANTE AVRO' TRA X ANNI? | CVI19: INVESTENDO UN CAPITALE ANNUALE CONOSCIUTO, CON O SENZA CAPITALE INIZIALE A UN TASSO DI RIV CONOSCIUTO CHE MONTANTE AVRO' TRA X ANNI? | CVY19: INVESTENDO UN CAPITALE ANNUALE CONOSCIUTO, CON O SENZA CAPITALE INIZIALE A UN TASSO DI RIV CONOSCIUTO CHE MONTANTE AVRO' TRA X ANNI? | CWO19: INVESTENDO UN CAPITALE ANNUALE CONOSCIUTO, CON O SENZA CAPITALE INIZIALE A UN TASSO DI RIV CONOSCIUTO CHE MONTANTE AVRO' TRA X ANNI? | CXE19: INVESTENDO UN CAPITALE ANNUALE CONOSCIUTO, CON O SENZA CAPITALE INIZIALE A UN TASSO DI RIV CONOSCIUTO CHE MONTANTE AVRO' TRA X ANNI? | CXU19: INVESTENDO UN CAPITALE ANNUALE CONOSCIUTO, CON O SENZA CAPITALE INIZIALE A UN TASSO DI RIV CONOSCIUTO CHE MONTANTE AVRO' TRA X ANNI? | CYK19: INVESTENDO UN CAPITALE ANNUALE CONOSCIUTO, CON O SENZA CAPITALE INIZIALE A UN TASSO DI RIV CONOSCIUTO CHE MONTANTE AVRO' TRA X ANNI? | CZA19: INVESTENDO UN CAPITALE ANNUALE CONOSCIUTO, CON O SENZA CAPITALE INIZIALE A UN TASSO DI RIV CONOSCIUTO CHE MONTANTE AVRO' TRA X ANNI? | CZQ19: INVESTENDO UN CAPITALE ANNUALE CONOSCIUTO, CON O SENZA CAPITALE INIZIALE A UN TASSO DI RIV CONOSCIUTO CHE MONTANTE AVRO' TRA X ANNI? | DAG19: INVESTENDO UN CAPITALE ANNUALE CONOSCIUTO, CON O SENZA CAPITALE INIZIALE A UN TASSO DI RIV CONOSCIUTO CHE MONTANTE AVRO' TRA X ANNI? | DAW19: INVESTENDO UN CAPITALE ANNUALE CONOSCIUTO, CON O SENZA CAPITALE INIZIALE A UN TASSO DI RIV CONOSCIUTO CHE MONTANTE AVRO' TRA X ANNI? | DBM19: INVESTENDO UN CAPITALE ANNUALE CONOSCIUTO, CON O SENZA CAPITALE INIZIALE A UN TASSO DI RIV CONOSCIUTO CHE MONTANTE AVRO' TRA X ANNI? | DCC19: INVESTENDO UN CAPITALE ANNUALE CONOSCIUTO, CON O SENZA CAPITALE INIZIALE A UN TASSO DI RIV CONOSCIUTO CHE MONTANTE AVRO' TRA X ANNI? | DCS19: INVESTENDO UN CAPITALE ANNUALE CONOSCIUTO, CON O SENZA CAPITALE INIZIALE A UN TASSO DI RIV CONOSCIUTO CHE MONTANTE AVRO' TRA X ANNI? | DDI19: INVESTENDO UN CAPITALE ANNUALE CONOSCIUTO, CON O SENZA CAPITALE INIZIALE A UN TASSO DI RIV CONOSCIUTO CHE MONTANTE AVRO' TRA X ANNI? | DDY19: INVESTENDO UN CAPITALE ANNUALE CONOSCIUTO, CON O SENZA CAPITALE INIZIALE A UN TASSO DI RIV CONOSCIUTO CHE MONTANTE AVRO' TRA X ANNI? | DEO19: INVESTENDO UN CAPITALE ANNUALE CONOSCIUTO, CON O SENZA CAPITALE INIZIALE A UN TASSO DI RIV CONOSCIUTO CHE MONTANTE AVRO' TRA X ANNI? | DFE19: INVESTENDO UN CAPITALE ANNUALE CONOSCIUTO, CON O SENZA CAPITALE INIZIALE A UN TASSO DI RIV CONOSCIUTO CHE MONTANTE AVRO' TRA X ANNI? | DFU19: INVESTENDO UN CAPITALE ANNUALE CONOSCIUTO, CON O SENZA CAPITALE INIZIALE A UN TASSO DI RIV CONOSCIUTO CHE MONTANTE AVRO' TRA X ANNI? | DGK19: INVESTENDO UN CAPITALE ANNUALE CONOSCIUTO, CON O SENZA CAPITALE INIZIALE A UN TASSO DI RIV CONOSCIUTO CHE MONTANTE AVRO' TRA X ANNI? | DHA19: INVESTENDO UN CAPITALE ANNUALE CONOSCIUTO, CON O SENZA CAPITALE INIZIALE A UN TASSO DI RIV CONOSCIUTO CHE MONTANTE AVRO' TRA X ANNI? | DHQ19: INVESTENDO UN CAPITALE ANNUALE CONOSCIUTO, CON O SENZA CAPITALE INIZIALE A UN TASSO DI RIV CONOSCIUTO CHE MONTANTE AVRO' TRA X ANNI? | DIG19: INVESTENDO UN CAPITALE ANNUALE CONOSCIUTO, CON O SENZA CAPITALE INIZIALE A UN TASSO DI RIV CONOSCIUTO CHE MONTANTE AVRO' TRA X ANNI? | DIW19: INVESTENDO UN CAPITALE ANNUALE CONOSCIUTO, CON O SENZA CAPITALE INIZIALE A UN TASSO DI RIV CONOSCIUTO CHE MONTANTE AVRO' TRA X ANNI? | DJM19: INVESTENDO UN CAPITALE ANNUALE CONOSCIUTO, CON O SENZA CAPITALE INIZIALE A UN TASSO DI RIV CONOSCIUTO CHE MONTANTE AVRO' TRA X ANNI? | DKC19: INVESTENDO UN CAPITALE ANNUALE CONOSCIUTO, CON O SENZA CAPITALE INIZIALE A UN TASSO DI RIV CONOSCIUTO CHE MONTANTE AVRO' TRA X ANNI? | DKS19: INVESTENDO UN CAPITALE ANNUALE CONOSCIUTO, CON O SENZA CAPITALE INIZIALE A UN TASSO DI RIV CONOSCIUTO CHE MONTANTE AVRO' TRA X ANNI? | DLI19: INVESTENDO UN CAPITALE ANNUALE CONOSCIUTO, CON O SENZA CAPITALE INIZIALE A UN TASSO DI RIV CONOSCIUTO CHE MONTANTE AVRO' TRA X ANNI? | DLY19: INVESTENDO UN CAPITALE ANNUALE CONOSCIUTO, CON O SENZA CAPITALE INIZIALE A UN TASSO DI RIV CONOSCIUTO CHE MONTANTE AVRO' TRA X ANNI? | DMO19: INVESTENDO UN CAPITALE ANNUALE CONOSCIUTO, CON O SENZA CAPITALE INIZIALE A UN TASSO DI RIV CONOSCIUTO CHE MONTANTE AVRO' TRA X ANNI? | DNE19: INVESTENDO UN CAPITALE ANNUALE CONOSCIUTO, CON O SENZA CAPITALE INIZIALE A UN TASSO DI RIV CONOSCIUTO CHE MONTANTE AVRO' TRA X ANNI? | DNU19: INVESTENDO UN CAPITALE ANNUALE CONOSCIUTO, CON O SENZA CAPITALE INIZIALE A UN TASSO DI RIV CONOSCIUTO CHE MONTANTE AVRO' TRA X ANNI? | DOK19: INVESTENDO UN CAPITALE ANNUALE CONOSCIUTO, CON O SENZA CAPITALE INIZIALE A UN TASSO DI RIV CONOSCIUTO CHE MONTANTE AVRO' TRA X ANNI? | DPA19: INVESTENDO UN CAPITALE ANNUALE CONOSCIUTO, CON O SENZA CAPITALE INIZIALE A UN TASSO DI RIV CONOSCIUTO CHE MONTANTE AVRO' TRA X ANNI? | DPQ19: INVESTENDO UN CAPITALE ANNUALE CONOSCIUTO, CON O SENZA CAPITALE INIZIALE A UN TASSO DI RIV CONOSCIUTO CHE MONTANTE AVRO' TRA X ANNI? | DQG19: INVESTENDO UN CAPITALE ANNUALE CONOSCIUTO, CON O SENZA CAPITALE INIZIALE A UN TASSO DI RIV CONOSCIUTO CHE MONTANTE AVRO' TRA X ANNI? | DQW19: INVESTENDO UN CAPITALE ANNUALE CONOSCIUTO, CON O SENZA CAPITALE INIZIALE A UN TASSO DI RIV CONOSCIUTO CHE MONTANTE AVRO' TRA X ANNI? | DRM19: INVESTENDO UN CAPITALE ANNUALE CONOSCIUTO, CON O SENZA CAPITALE INIZIALE A UN TASSO DI RIV CONOSCIUTO CHE MONTANTE AVRO' TRA X ANNI? | DSC19: INVESTENDO UN CAPITALE ANNUALE CONOSCIUTO, CON O SENZA CAPITALE INIZIALE A UN TASSO DI RIV CONOSCIUTO CHE MONTANTE AVRO' TRA X ANNI? | DSS19: INVESTENDO UN CAPITALE ANNUALE CONOSCIUTO, CON O SENZA CAPITALE INIZIALE A UN TASSO DI RIV CONOSCIUTO CHE MONTANTE AVRO' TRA X ANNI? | DTI19: INVESTENDO UN CAPITALE ANNUALE CONOSCIUTO, CON O SENZA CAPITALE INIZIALE A UN TASSO DI RIV CONOSCIUTO CHE MONTANTE AVRO' TRA X ANNI? | DTY19: INVESTENDO UN CAPITALE ANNUALE CONOSCIUTO, CON O SENZA CAPITALE INIZIALE A UN TASSO DI RIV CONOSCIUTO CHE MONTANTE AVRO' TRA X ANNI? | DUO19: INVESTENDO UN CAPITALE ANNUALE CONOSCIUTO, CON O SENZA CAPITALE INIZIALE A UN TASSO DI RIV CONOSCIUTO CHE MONTANTE AVRO' TRA X ANNI? | DVE19: INVESTENDO UN CAPITALE ANNUALE CONOSCIUTO, CON O SENZA CAPITALE INIZIALE A UN TASSO DI RIV CONOSCIUTO CHE MONTANTE AVRO' TRA X ANNI? | DVU19: INVESTENDO UN CAPITALE ANNUALE CONOSCIUTO, CON O SENZA CAPITALE INIZIALE A UN TASSO DI RIV CONOSCIUTO CHE MONTANTE AVRO' TRA X ANNI? | DWK19: INVESTENDO UN CAPITALE ANNUALE CONOSCIUTO, CON O SENZA CAPITALE INIZIALE A UN TASSO DI RIV CONOSCIUTO CHE MONTANTE AVRO' TRA X ANNI? | DXA19: INVESTENDO UN CAPITALE ANNUALE CONOSCIUTO, CON O SENZA CAPITALE INIZIALE A UN TASSO DI RIV CONOSCIUTO CHE MONTANTE AVRO' TRA X ANNI? | DXQ19: INVESTENDO UN CAPITALE ANNUALE CONOSCIUTO, CON O SENZA CAPITALE INIZIALE A UN TASSO DI RIV CONOSCIUTO CHE MONTANTE AVRO' TRA X ANNI? | DYG19: INVESTENDO UN CAPITALE ANNUALE CONOSCIUTO, CON O SENZA CAPITALE INIZIALE A UN TASSO DI RIV CONOSCIUTO CHE MONTANTE AVRO' TRA X ANNI? | DYW19: INVESTENDO UN CAPITALE ANNUALE CONOSCIUTO, CON O SENZA CAPITALE INIZIALE A UN TASSO DI RIV CONOSCIUTO CHE MONTANTE AVRO' TRA X ANNI? | DZM19: INVESTENDO UN CAPITALE ANNUALE CONOSCIUTO, CON O SENZA CAPITALE INIZIALE A UN TASSO DI RIV CONOSCIUTO CHE MONTANTE AVRO' TRA X ANNI? | EAC19: INVESTENDO UN CAPITALE ANNUALE CONOSCIUTO, CON O SENZA CAPITALE INIZIALE A UN TASSO DI RIV CONOSCIUTO CHE MONTANTE AVRO' TRA X ANNI? | EAS19: INVESTENDO UN CAPITALE ANNUALE CONOSCIUTO, CON O SENZA CAPITALE INIZIALE A UN TASSO DI RIV CONOSCIUTO CHE MONTANTE AVRO' TRA X ANNI? | EBI19: INVESTENDO UN CAPITALE ANNUALE CONOSCIUTO, CON O SENZA CAPITALE INIZIALE A UN TASSO DI RIV CONOSCIUTO CHE MONTANTE AVRO' TRA X ANNI? | EBY19: INVESTENDO UN CAPITALE ANNUALE CONOSCIUTO, CON O SENZA CAPITALE INIZIALE A UN TASSO DI RIV CONOSCIUTO CHE MONTANTE AVRO' TRA X ANNI? | ECO19: INVESTENDO UN CAPITALE ANNUALE CONOSCIUTO, CON O SENZA CAPITALE INIZIALE A UN TASSO DI RIV CONOSCIUTO CHE MONTANTE AVRO' TRA X ANNI? | EDE19: INVESTENDO UN CAPITALE ANNUALE CONOSCIUTO, CON O SENZA CAPITALE INIZIALE A UN TASSO DI RIV CONOSCIUTO CHE MONTANTE AVRO' TRA X ANNI? | EDU19: INVESTENDO UN CAPITALE ANNUALE CONOSCIUTO, CON O SENZA CAPITALE INIZIALE A UN TASSO DI RIV CONOSCIUTO CHE MONTANTE AVRO' TRA X ANNI? | EEK19: INVESTENDO UN CAPITALE ANNUALE CONOSCIUTO, CON O SENZA CAPITALE INIZIALE A UN TASSO DI RIV CONOSCIUTO CHE MONTANTE AVRO' TRA X ANNI? | EFA19: INVESTENDO UN CAPITALE ANNUALE CONOSCIUTO, CON O SENZA CAPITALE INIZIALE A UN TASSO DI RIV CONOSCIUTO CHE MONTANTE AVRO' TRA X ANNI? | EFQ19: INVESTENDO UN CAPITALE ANNUALE CONOSCIUTO, CON O SENZA CAPITALE INIZIALE A UN TASSO DI RIV CONOSCIUTO CHE MONTANTE AVRO' TRA X ANNI? | EGG19: INVESTENDO UN CAPITALE ANNUALE CONOSCIUTO, CON O SENZA CAPITALE INIZIALE A UN TASSO DI RIV CONOSCIUTO CHE MONTANTE AVRO' TRA X ANNI? | EGW19: INVESTENDO UN CAPITALE ANNUALE CONOSCIUTO, CON O SENZA CAPITALE INIZIALE A UN TASSO DI RIV CONOSCIUTO CHE MONTANTE AVRO' TRA X ANNI? | EHM19: INVESTENDO UN CAPITALE ANNUALE CONOSCIUTO, CON O SENZA CAPITALE INIZIALE A UN TASSO DI RIV CONOSCIUTO CHE MONTANTE AVRO' TRA X ANNI? | EIC19: INVESTENDO UN CAPITALE ANNUALE CONOSCIUTO, CON O SENZA CAPITALE INIZIALE A UN TASSO DI RIV CONOSCIUTO CHE MONTANTE AVRO' TRA X ANNI? | EIS19: INVESTENDO UN CAPITALE ANNUALE CONOSCIUTO, CON O SENZA CAPITALE INIZIALE A UN TASSO DI RIV CONOSCIUTO CHE MONTANTE AVRO' TRA X ANNI? | EJI19: INVESTENDO UN CAPITALE ANNUALE CONOSCIUTO, CON O SENZA CAPITALE INIZIALE A UN TASSO DI RIV CONOSCIUTO CHE MONTANTE AVRO' TRA X ANNI? | EJY19: INVESTENDO UN CAPITALE ANNUALE CONOSCIUTO, CON O SENZA CAPITALE INIZIALE A UN TASSO DI RIV CONOSCIUTO CHE MONTANTE AVRO' TRA X ANNI? | EKO19: INVESTENDO UN CAPITALE ANNUALE CONOSCIUTO, CON O SENZA CAPITALE INIZIALE A UN TASSO DI RIV CONOSCIUTO CHE MONTANTE AVRO' TRA X ANNI? | ELE19: INVESTENDO UN CAPITALE ANNUALE CONOSCIUTO, CON O SENZA CAPITALE INIZIALE A UN TASSO DI RIV CONOSCIUTO CHE MONTANTE AVRO' TRA X ANNI? | ELU19: INVESTENDO UN CAPITALE ANNUALE CONOSCIUTO, CON O SENZA CAPITALE INIZIALE A UN TASSO DI RIV CONOSCIUTO CHE MONTANTE AVRO' TRA X ANNI? | EMK19: INVESTENDO UN CAPITALE ANNUALE CONOSCIUTO, CON O SENZA CAPITALE INIZIALE A UN TASSO DI RIV CONOSCIUTO CHE MONTANTE AVRO' TRA X ANNI? | ENA19: INVESTENDO UN CAPITALE ANNUALE CONOSCIUTO, CON O SENZA CAPITALE INIZIALE A UN TASSO DI RIV CONOSCIUTO CHE MONTANTE AVRO' TRA X ANNI? | ENQ19: INVESTENDO UN CAPITALE ANNUALE CONOSCIUTO, CON O SENZA CAPITALE INIZIALE A UN TASSO DI RIV CONOSCIUTO CHE MONTANTE AVRO' TRA X ANNI? | EOG19: INVESTENDO UN CAPITALE ANNUALE CONOSCIUTO, CON O SENZA CAPITALE INIZIALE A UN TASSO DI RIV CONOSCIUTO CHE MONTANTE AVRO' TRA X ANNI? | EOW19: INVESTENDO UN CAPITALE ANNUALE CONOSCIUTO, CON O SENZA CAPITALE INIZIALE A UN TASSO DI RIV CONOSCIUTO CHE MONTANTE AVRO' TRA X ANNI? | EPM19: INVESTENDO UN CAPITALE ANNUALE CONOSCIUTO, CON O SENZA CAPITALE INIZIALE A UN TASSO DI RIV CONOSCIUTO CHE MONTANTE AVRO' TRA X ANNI? | EQC19: INVESTENDO UN CAPITALE ANNUALE CONOSCIUTO, CON O SENZA CAPITALE INIZIALE A UN TASSO DI RIV CONOSCIUTO CHE MONTANTE AVRO' TRA X ANNI? | EQS19: INVESTENDO UN CAPITALE ANNUALE CONOSCIUTO, CON O SENZA CAPITALE INIZIALE A UN TASSO DI RIV CONOSCIUTO CHE MONTANTE AVRO' TRA X ANNI? | ERI19: INVESTENDO UN CAPITALE ANNUALE CONOSCIUTO, CON O SENZA CAPITALE INIZIALE A UN TASSO DI RIV CONOSCIUTO CHE MONTANTE AVRO' TRA X ANNI? | ERY19: INVESTENDO UN CAPITALE ANNUALE CONOSCIUTO, CON O SENZA CAPITALE INIZIALE A UN TASSO DI RIV CONOSCIUTO CHE MONTANTE AVRO' TRA X ANNI? | ESO19: INVESTENDO UN CAPITALE ANNUALE CONOSCIUTO, CON O SENZA CAPITALE INIZIALE A UN TASSO DI RIV CONOSCIUTO CHE MONTANTE AVRO' TRA X ANNI? | ETE19: INVESTENDO UN CAPITALE ANNUALE CONOSCIUTO, CON O SENZA CAPITALE INIZIALE A UN TASSO DI RIV CONOSCIUTO CHE MONTANTE AVRO' TRA X ANNI? | ETU19: INVESTENDO UN CAPITALE ANNUALE CONOSCIUTO, CON O SENZA CAPITALE INIZIALE A UN TASSO DI RIV CONOSCIUTO CHE MONTANTE AVRO' TRA X ANNI? | EUK19: INVESTENDO UN CAPITALE ANNUALE CONOSCIUTO, CON O SENZA CAPITALE INIZIALE A UN TASSO DI RIV CONOSCIUTO CHE MONTANTE AVRO' TRA X ANNI? | EVA19: INVESTENDO UN CAPITALE ANNUALE CONOSCIUTO, CON O SENZA CAPITALE INIZIALE A UN TASSO DI RIV CONOSCIUTO CHE MONTANTE AVRO' TRA X ANNI? | EVQ19: INVESTENDO UN CAPITALE ANNUALE CONOSCIUTO, CON O SENZA CAPITALE INIZIALE A UN TASSO DI RIV CONOSCIUTO CHE MONTANTE AVRO' TRA X ANNI? | EWG19: INVESTENDO UN CAPITALE ANNUALE CONOSCIUTO, CON O SENZA CAPITALE INIZIALE A UN TASSO DI RIV CONOSCIUTO CHE MONTANTE AVRO' TRA X ANNI? | EWW19: INVESTENDO UN CAPITALE ANNUALE CONOSCIUTO, CON O SENZA CAPITALE INIZIALE A UN TASSO DI RIV CONOSCIUTO CHE MONTANTE AVRO' TRA X ANNI? | EXM19: INVESTENDO UN CAPITALE ANNUALE CONOSCIUTO, CON O SENZA CAPITALE INIZIALE A UN TASSO DI RIV CONOSCIUTO CHE MONTANTE AVRO' TRA X ANNI? | EYC19: INVESTENDO UN CAPITALE ANNUALE CONOSCIUTO, CON O SENZA CAPITALE INIZIALE A UN TASSO DI RIV CONOSCIUTO CHE MONTANTE AVRO' TRA X ANNI? | EYS19: INVESTENDO UN CAPITALE ANNUALE CONOSCIUTO, CON O SENZA CAPITALE INIZIALE A UN TASSO DI RIV CONOSCIUTO CHE MONTANTE AVRO' TRA X ANNI? | EZI19: INVESTENDO UN CAPITALE ANNUALE CONOSCIUTO, CON O SENZA CAPITALE INIZIALE A UN TASSO DI RIV CONOSCIUTO CHE MONTANTE AVRO' TRA X ANNI? | EZY19: INVESTENDO UN CAPITALE ANNUALE CONOSCIUTO, CON O SENZA CAPITALE INIZIALE A UN TASSO DI RIV CONOSCIUTO CHE MONTANTE AVRO' TRA X ANNI? | FAO19: INVESTENDO UN CAPITALE ANNUALE CONOSCIUTO, CON O SENZA CAPITALE INIZIALE A UN TASSO DI RIV CONOSCIUTO CHE MONTANTE AVRO' TRA X ANNI? | FBE19: INVESTENDO UN CAPITALE ANNUALE CONOSCIUTO, CON O SENZA CAPITALE INIZIALE A UN TASSO DI RIV CONOSCIUTO CHE MONTANTE AVRO' TRA X ANNI? | FBU19: INVESTENDO UN CAPITALE ANNUALE CONOSCIUTO, CON O SENZA CAPITALE INIZIALE A UN TASSO DI RIV CONOSCIUTO CHE MONTANTE AVRO' TRA X ANNI? | FCK19: INVESTENDO UN CAPITALE ANNUALE CONOSCIUTO, CON O SENZA CAPITALE INIZIALE A UN TASSO DI RIV CONOSCIUTO CHE MONTANTE AVRO' TRA X ANNI? | FDA19: INVESTENDO UN CAPITALE ANNUALE CONOSCIUTO, CON O SENZA CAPITALE INIZIALE A UN TASSO DI RIV CONOSCIUTO CHE MONTANTE AVRO' TRA X ANNI? | FDQ19: INVESTENDO UN CAPITALE ANNUALE CONOSCIUTO, CON O SENZA CAPITALE INIZIALE A UN TASSO DI RIV CONOSCIUTO CHE MONTANTE AVRO' TRA X ANNI? | FEG19: INVESTENDO UN CAPITALE ANNUALE CONOSCIUTO, CON O SENZA CAPITALE INIZIALE A UN TASSO DI RIV CONOSCIUTO CHE MONTANTE AVRO' TRA X ANNI? | FEW19: INVESTENDO UN CAPITALE ANNUALE CONOSCIUTO, CON O SENZA CAPITALE INIZIALE A UN TASSO DI RIV CONOSCIUTO CHE MONTANTE AVRO' TRA X ANNI? | FFM19: INVESTENDO UN CAPITALE ANNUALE CONOSCIUTO, CON O SENZA CAPITALE INIZIALE A UN TASSO DI RIV CONOSCIUTO CHE MONTANTE AVRO' TRA X ANNI? | FGC19: INVESTENDO UN CAPITALE ANNUALE CONOSCIUTO, CON O SENZA CAPITALE INIZIALE A UN TASSO DI RIV CONOSCIUTO CHE MONTANTE AVRO' TRA X ANNI? | FGS19: INVESTENDO UN CAPITALE ANNUALE CONOSCIUTO, CON O SENZA CAPITALE INIZIALE A UN TASSO DI RIV CONOSCIUTO CHE MONTANTE AVRO' TRA X ANNI? | FHI19: INVESTENDO UN CAPITALE ANNUALE CONOSCIUTO, CON O SENZA CAPITALE INIZIALE A UN TASSO DI RIV CONOSCIUTO CHE MONTANTE AVRO' TRA X ANNI? | FHY19: INVESTENDO UN CAPITALE ANNUALE CONOSCIUTO, CON O SENZA CAPITALE INIZIALE A UN TASSO DI RIV CONOSCIUTO CHE MONTANTE AVRO' TRA X ANNI? | FIO19: INVESTENDO UN CAPITALE ANNUALE CONOSCIUTO, CON O SENZA CAPITALE INIZIALE A UN TASSO DI RIV CONOSCIUTO CHE MONTANTE AVRO' TRA X ANNI? | FJE19: INVESTENDO UN CAPITALE ANNUALE CONOSCIUTO, CON O SENZA CAPITALE INIZIALE A UN TASSO DI RIV CONOSCIUTO CHE MONTANTE AVRO' TRA X ANNI? | FJU19: INVESTENDO UN CAPITALE ANNUALE CONOSCIUTO, CON O SENZA CAPITALE INIZIALE A UN TASSO DI RIV CONOSCIUTO CHE MONTANTE AVRO' TRA X ANNI? | FKK19: INVESTENDO UN CAPITALE ANNUALE CONOSCIUTO, CON O SENZA CAPITALE INIZIALE A UN TASSO DI RIV CONOSCIUTO CHE MONTANTE AVRO' TRA X ANNI? | FLA19: INVESTENDO UN CAPITALE ANNUALE CONOSCIUTO, CON O SENZA CAPITALE INIZIALE A UN TASSO DI RIV CONOSCIUTO CHE MONTANTE AVRO' TRA X ANNI? | FLQ19: INVESTENDO UN CAPITALE ANNUALE CONOSCIUTO, CON O SENZA CAPITALE INIZIALE A UN TASSO DI RIV CONOSCIUTO CHE MONTANTE AVRO' TRA X ANNI? | FMG19: INVESTENDO UN CAPITALE ANNUALE CONOSCIUTO, CON O SENZA CAPITALE INIZIALE A UN TASSO DI RIV CONOSCIUTO CHE MONTANTE AVRO' TRA X ANNI? | FMW19: INVESTENDO UN CAPITALE ANNUALE CONOSCIUTO, CON O SENZA CAPITALE INIZIALE A UN TASSO DI RIV CONOSCIUTO CHE MONTANTE AVRO' TRA X ANNI? | FNM19: INVESTENDO UN CAPITALE ANNUALE CONOSCIUTO, CON O SENZA CAPITALE INIZIALE A UN TASSO DI RIV CONOSCIUTO CHE MONTANTE AVRO' TRA X ANNI? | FOC19: INVESTENDO UN CAPITALE ANNUALE CONOSCIUTO, CON O SENZA CAPITALE INIZIALE A UN TASSO DI RIV CONOSCIUTO CHE MONTANTE AVRO' TRA X ANNI? | FOS19: INVESTENDO UN CAPITALE ANNUALE CONOSCIUTO, CON O SENZA CAPITALE INIZIALE A UN TASSO DI RIV CONOSCIUTO CHE MONTANTE AVRO' TRA X ANNI? | FPI19: INVESTENDO UN CAPITALE ANNUALE CONOSCIUTO, CON O SENZA CAPITALE INIZIALE A UN TASSO DI RIV CONOSCIUTO CHE MONTANTE AVRO' TRA X ANNI? | FPY19: INVESTENDO UN CAPITALE ANNUALE CONOSCIUTO, CON O SENZA CAPITALE INIZIALE A UN TASSO DI RIV CONOSCIUTO CHE MONTANTE AVRO' TRA X ANNI? | FQO19: INVESTENDO UN CAPITALE ANNUALE CONOSCIUTO, CON O SENZA CAPITALE INIZIALE A UN TASSO DI RIV CONOSCIUTO CHE MONTANTE AVRO' TRA X ANNI? | FRE19: INVESTENDO UN CAPITALE ANNUALE CONOSCIUTO, CON O SENZA CAPITALE INIZIALE A UN TASSO DI RIV CONOSCIUTO CHE MONTANTE AVRO' TRA X ANNI? | FRU19: INVESTENDO UN CAPITALE ANNUALE CONOSCIUTO, CON O SENZA CAPITALE INIZIALE A UN TASSO DI RIV CONOSCIUTO CHE MONTANTE AVRO' TRA X ANNI? | FSK19: INVESTENDO UN CAPITALE ANNUALE CONOSCIUTO, CON O SENZA CAPITALE INIZIALE A UN TASSO DI RIV CONOSCIUTO CHE MONTANTE AVRO' TRA X ANNI? | FTA19: INVESTENDO UN CAPITALE ANNUALE CONOSCIUTO, CON O SENZA CAPITALE INIZIALE A UN TASSO DI RIV CONOSCIUTO CHE MONTANTE AVRO' TRA X ANNI? | FTQ19: INVESTENDO UN CAPITALE ANNUALE CONOSCIUTO, CON O SENZA CAPITALE INIZIALE A UN TASSO DI RIV CONOSCIUTO CHE MONTANTE AVRO' TRA X ANNI? | FUG19: INVESTENDO UN CAPITALE ANNUALE CONOSCIUTO, CON O SENZA CAPITALE INIZIALE A UN TASSO DI RIV CONOSCIUTO CHE MONTANTE AVRO' TRA X ANNI? | FUW19: INVESTENDO UN CAPITALE ANNUALE CONOSCIUTO, CON O SENZA CAPITALE INIZIALE A UN TASSO DI RIV CONOSCIUTO CHE MONTANTE AVRO' TRA X ANNI? | FVM19: INVESTENDO UN CAPITALE ANNUALE CONOSCIUTO, CON O SENZA CAPITALE INIZIALE A UN TASSO DI RIV CONOSCIUTO CHE MONTANTE AVRO' TRA X ANNI? | FWC19: INVESTENDO UN CAPITALE ANNUALE CONOSCIUTO, CON O SENZA CAPITALE INIZIALE A UN TASSO DI RIV CONOSCIUTO CHE MONTANTE AVRO' TRA X ANNI? | FWS19: INVESTENDO UN CAPITALE ANNUALE CONOSCIUTO, CON O SENZA CAPITALE INIZIALE A UN TASSO DI RIV CONOSCIUTO CHE MONTANTE AVRO' TRA X ANNI? | FXI19: INVESTENDO UN CAPITALE ANNUALE CONOSCIUTO, CON O SENZA CAPITALE INIZIALE A UN TASSO DI RIV CONOSCIUTO CHE MONTANTE AVRO' TRA X ANNI? | FXY19: INVESTENDO UN CAPITALE ANNUALE CONOSCIUTO, CON O SENZA CAPITALE INIZIALE A UN TASSO DI RIV CONOSCIUTO CHE MONTANTE AVRO' TRA X ANNI? | FYO19: INVESTENDO UN CAPITALE ANNUALE CONOSCIUTO, CON O SENZA CAPITALE INIZIALE A UN TASSO DI RIV CONOSCIUTO CHE MONTANTE AVRO' TRA X ANNI? | FZE19: INVESTENDO UN CAPITALE ANNUALE CONOSCIUTO, CON O SENZA CAPITALE INIZIALE A UN TASSO DI RIV CONOSCIUTO CHE MONTANTE AVRO' TRA X ANNI? | FZU19: INVESTENDO UN CAPITALE ANNUALE CONOSCIUTO, CON O SENZA CAPITALE INIZIALE A UN TASSO DI RIV CONOSCIUTO CHE MONTANTE AVRO' TRA X ANNI? | GAK19: INVESTENDO UN CAPITALE ANNUALE CONOSCIUTO, CON O SENZA CAPITALE INIZIALE A UN TASSO DI RIV CONOSCIUTO CHE MONTANTE AVRO' TRA X ANNI? | GBA19: INVESTENDO UN CAPITALE ANNUALE CONOSCIUTO, CON O SENZA CAPITALE INIZIALE A UN TASSO DI RIV CONOSCIUTO CHE MONTANTE AVRO' TRA X ANNI? | GBQ19: INVESTENDO UN CAPITALE ANNUALE CONOSCIUTO, CON O SENZA CAPITALE INIZIALE A UN TASSO DI RIV CONOSCIUTO CHE MONTANTE AVRO' TRA X ANNI? | GCG19: INVESTENDO UN CAPITALE ANNUALE CONOSCIUTO, CON O SENZA CAPITALE INIZIALE A UN TASSO DI RIV CONOSCIUTO CHE MONTANTE AVRO' TRA X ANNI? | GCW19: INVESTENDO UN CAPITALE ANNUALE CONOSCIUTO, CON O SENZA CAPITALE INIZIALE A UN TASSO DI RIV CONOSCIUTO CHE MONTANTE AVRO' TRA X ANNI? | GDM19: INVESTENDO UN CAPITALE ANNUALE CONOSCIUTO, CON O SENZA CAPITALE INIZIALE A UN TASSO DI RIV CONOSCIUTO CHE MONTANTE AVRO' TRA X ANNI? | GEC19: INVESTENDO UN CAPITALE ANNUALE CONOSCIUTO, CON O SENZA CAPITALE INIZIALE A UN TASSO DI RIV CONOSCIUTO CHE MONTANTE AVRO' TRA X ANNI? | GES19: INVESTENDO UN CAPITALE ANNUALE CONOSCIUTO, CON O SENZA CAPITALE INIZIALE A UN TASSO DI RIV CONOSCIUTO CHE MONTANTE AVRO' TRA X ANNI? | GFI19: INVESTENDO UN CAPITALE ANNUALE CONOSCIUTO, CON O SENZA CAPITALE INIZIALE A UN TASSO DI RIV CONOSCIUTO CHE MONTANTE AVRO' TRA X ANNI? | GFY19: INVESTENDO UN CAPITALE ANNUALE CONOSCIUTO, CON O SENZA CAPITALE INIZIALE A UN TASSO DI RIV CONOSCIUTO CHE MONTANTE AVRO' TRA X ANNI? | GGO19: INVESTENDO UN CAPITALE ANNUALE CONOSCIUTO, CON O SENZA CAPITALE INIZIALE A UN TASSO DI RIV CONOSCIUTO CHE MONTANTE AVRO' TRA X ANNI? | GHE19: INVESTENDO UN CAPITALE ANNUALE CONOSCIUTO, CON O SENZA CAPITALE INIZIALE A UN TASSO DI RIV CONOSCIUTO CHE MONTANTE AVRO' TRA X ANNI? | GHU19: INVESTENDO UN CAPITALE ANNUALE CONOSCIUTO, CON O SENZA CAPITALE INIZIALE A UN TASSO DI RIV CONOSCIUTO CHE MONTANTE AVRO' TRA X ANNI? | GIK19: INVESTENDO UN CAPITALE ANNUALE CONOSCIUTO, CON O SENZA CAPITALE INIZIALE A UN TASSO DI RIV CONOSCIUTO CHE MONTANTE AVRO' TRA X ANNI? | GJA19: INVESTENDO UN CAPITALE ANNUALE CONOSCIUTO, CON O SENZA CAPITALE INIZIALE A UN TASSO DI RIV CONOSCIUTO CHE MONTANTE AVRO' TRA X ANNI? | GJQ19: INVESTENDO UN CAPITALE ANNUALE CONOSCIUTO, CON O SENZA CAPITALE INIZIALE A UN TASSO DI RIV CONOSCIUTO CHE MONTANTE AVRO' TRA X ANNI? | GKG19: INVESTENDO UN CAPITALE ANNUALE CONOSCIUTO, CON O SENZA CAPITALE INIZIALE A UN TASSO DI RIV CONOSCIUTO CHE MONTANTE AVRO' TRA X ANNI? | GKW19: INVESTENDO UN CAPITALE ANNUALE CONOSCIUTO, CON O SENZA CAPITALE INIZIALE A UN TASSO DI RIV CONOSCIUTO CHE MONTANTE AVRO' TRA X ANNI? | GLM19: INVESTENDO UN CAPITALE ANNUALE CONOSCIUTO, CON O SENZA CAPITALE INIZIALE A UN TASSO DI RIV CONOSCIUTO CHE MONTANTE AVRO' TRA X ANNI? | GMC19: INVESTENDO UN CAPITALE ANNUALE CONOSCIUTO, CON O SENZA CAPITALE INIZIALE A UN TASSO DI RIV CONOSCIUTO CHE MONTANTE AVRO' TRA X ANNI? | GMS19: INVESTENDO UN CAPITALE ANNUALE CONOSCIUTO, CON O SENZA CAPITALE INIZIALE A UN TASSO DI RIV CONOSCIUTO CHE MONTANTE AVRO' TRA X ANNI? | GNI19: INVESTENDO UN CAPITALE ANNUALE CONOSCIUTO, CON O SENZA CAPITALE INIZIALE A UN TASSO DI RIV CONOSCIUTO CHE MONTANTE AVRO' TRA X ANNI? | GNY19: INVESTENDO UN CAPITALE ANNUALE CONOSCIUTO, CON O SENZA CAPITALE INIZIALE A UN TASSO DI RIV CONOSCIUTO CHE MONTANTE AVRO' TRA X ANNI? | GOO19: INVESTENDO UN CAPITALE ANNUALE CONOSCIUTO, CON O SENZA CAPITALE INIZIALE A UN TASSO DI RIV CONOSCIUTO CHE MONTANTE AVRO' TRA X ANNI? | GPE19: INVESTENDO UN CAPITALE ANNUALE CONOSCIUTO, CON O SENZA CAPITALE INIZIALE A UN TASSO DI RIV CONOSCIUTO CHE MONTANTE AVRO' TRA X ANNI? | GPU19: INVESTENDO UN CAPITALE ANNUALE CONOSCIUTO, CON O SENZA CAPITALE INIZIALE A UN TASSO DI RIV CONOSCIUTO CHE MONTANTE AVRO' TRA X ANNI? | GQK19: INVESTENDO UN CAPITALE ANNUALE CONOSCIUTO, CON O SENZA CAPITALE INIZIALE A UN TASSO DI RIV CONOSCIUTO CHE MONTANTE AVRO' TRA X ANNI? | GRA19: INVESTENDO UN CAPITALE ANNUALE CONOSCIUTO, CON O SENZA CAPITALE INIZIALE A UN TASSO DI RIV CONOSCIUTO CHE MONTANTE AVRO' TRA X ANNI? | GRQ19: INVESTENDO UN CAPITALE ANNUALE CONOSCIUTO, CON O SENZA CAPITALE INIZIALE A UN TASSO DI RIV CONOSCIUTO CHE MONTANTE AVRO' TRA X ANNI? | GSG19: INVESTENDO UN CAPITALE ANNUALE CONOSCIUTO, CON O SENZA CAPITALE INIZIALE A UN TASSO DI RIV CONOSCIUTO CHE MONTANTE AVRO' TRA X ANNI? | GSW19: INVESTENDO UN CAPITALE ANNUALE CONOSCIUTO, CON O SENZA CAPITALE INIZIALE A UN TASSO DI RIV CONOSCIUTO CHE MONTANTE AVRO' TRA X ANNI? | GTM19: INVESTENDO UN CAPITALE ANNUALE CONOSCIUTO, CON O SENZA CAPITALE INIZIALE A UN TASSO DI RIV CONOSCIUTO CHE MONTANTE AVRO' TRA X ANNI? | GUC19: INVESTENDO UN CAPITALE ANNUALE CONOSCIUTO, CON O SENZA CAPITALE INIZIALE A UN TASSO DI RIV CONOSCIUTO CHE MONTANTE AVRO' TRA X ANNI? | GUS19: INVESTENDO UN CAPITALE ANNUALE CONOSCIUTO, CON O SENZA CAPITALE INIZIALE A UN TASSO DI RIV CONOSCIUTO CHE MONTANTE AVRO' TRA X ANNI? | GVI19: INVESTENDO UN CAPITALE ANNUALE CONOSCIUTO, CON O SENZA CAPITALE INIZIALE A UN TASSO DI RIV CONOSCIUTO CHE MONTANTE AVRO' TRA X ANNI? | GVY19: INVESTENDO UN CAPITALE ANNUALE CONOSCIUTO, CON O SENZA CAPITALE INIZIALE A UN TASSO DI RIV CONOSCIUTO CHE MONTANTE AVRO' TRA X ANNI? | GWO19: INVESTENDO UN CAPITALE ANNUALE CONOSCIUTO, CON O SENZA CAPITALE INIZIALE A UN TASSO DI RIV CONOSCIUTO CHE MONTANTE AVRO' TRA X ANNI? | GXE19: INVESTENDO UN CAPITALE ANNUALE CONOSCIUTO, CON O SENZA CAPITALE INIZIALE A UN TASSO DI RIV CONOSCIUTO CHE MONTANTE AVRO' TRA X ANNI? | GXU19: INVESTENDO UN CAPITALE ANNUALE CONOSCIUTO, CON O SENZA CAPITALE INIZIALE A UN TASSO DI RIV CONOSCIUTO CHE MONTANTE AVRO' TRA X ANNI? | GYK19: INVESTENDO UN CAPITALE ANNUALE CONOSCIUTO, CON O SENZA CAPITALE INIZIALE A UN TASSO DI RIV CONOSCIUTO CHE MONTANTE AVRO' TRA X ANNI? | GZA19: INVESTENDO UN CAPITALE ANNUALE CONOSCIUTO, CON O SENZA CAPITALE INIZIALE A UN TASSO DI RIV CONOSCIUTO CHE MONTANTE AVRO' TRA X ANNI? | GZQ19: INVESTENDO UN CAPITALE ANNUALE CONOSCIUTO, CON O SENZA CAPITALE INIZIALE A UN TASSO DI RIV CONOSCIUTO CHE MONTANTE AVRO' TRA X ANNI? | HAG19: INVESTENDO UN CAPITALE ANNUALE CONOSCIUTO, CON O SENZA CAPITALE INIZIALE A UN TASSO DI RIV CONOSCIUTO CHE MONTANTE AVRO' TRA X ANNI? | HAW19: INVESTENDO UN CAPITALE ANNUALE CONOSCIUTO, CON O SENZA CAPITALE INIZIALE A UN TASSO DI RIV CONOSCIUTO CHE MONTANTE AVRO' TRA X ANNI? | HBM19: INVESTENDO UN CAPITALE ANNUALE CONOSCIUTO, CON O SENZA CAPITALE INIZIALE A UN TASSO DI RIV CONOSCIUTO CHE MONTANTE AVRO' TRA X ANNI? | HCC19: INVESTENDO UN CAPITALE ANNUALE CONOSCIUTO, CON O SENZA CAPITALE INIZIALE A UN TASSO DI RIV CONOSCIUTO CHE MONTANTE AVRO' TRA X ANNI? | HCS19: INVESTENDO UN CAPITALE ANNUALE CONOSCIUTO, CON O SENZA CAPITALE INIZIALE A UN TASSO DI RIV CONOSCIUTO CHE MONTANTE AVRO' TRA X ANNI? | HDI19: INVESTENDO UN CAPITALE ANNUALE CONOSCIUTO, CON O SENZA CAPITALE INIZIALE A UN TASSO DI RIV CONOSCIUTO CHE MONTANTE AVRO' TRA X ANNI? | HDY19: INVESTENDO UN CAPITALE ANNUALE CONOSCIUTO, CON O SENZA CAPITALE INIZIALE A UN TASSO DI RIV CONOSCIUTO CHE MONTANTE AVRO' TRA X ANNI? | HEO19: INVESTENDO UN CAPITALE ANNUALE CONOSCIUTO, CON O SENZA CAPITALE INIZIALE A UN TASSO DI RIV CONOSCIUTO CHE MONTANTE AVRO' TRA X ANNI? | HFE19: INVESTENDO UN CAPITALE ANNUALE CONOSCIUTO, CON O SENZA CAPITALE INIZIALE A UN TASSO DI RIV CONOSCIUTO CHE MONTANTE AVRO' TRA X ANNI? | HFU19: INVESTENDO UN CAPITALE ANNUALE CONOSCIUTO, CON O SENZA CAPITALE INIZIALE A UN TASSO DI RIV CONOSCIUTO CHE MONTANTE AVRO' TRA X ANNI? | HGK19: INVESTENDO UN CAPITALE ANNUALE CONOSCIUTO, CON O SENZA CAPITALE INIZIALE A UN TASSO DI RIV CONOSCIUTO CHE MONTANTE AVRO' TRA X ANNI? | HHA19: INVESTENDO UN CAPITALE ANNUALE CONOSCIUTO, CON O SENZA CAPITALE INIZIALE A UN TASSO DI RIV CONOSCIUTO CHE MONTANTE AVRO' TRA X ANNI? | HHQ19: INVESTENDO UN CAPITALE ANNUALE CONOSCIUTO, CON O SENZA CAPITALE INIZIALE A UN TASSO DI RIV CONOSCIUTO CHE MONTANTE AVRO' TRA X ANNI? | HIG19: INVESTENDO UN CAPITALE ANNUALE CONOSCIUTO, CON O SENZA CAPITALE INIZIALE A UN TASSO DI RIV CONOSCIUTO CHE MONTANTE AVRO' TRA X ANNI? | HIW19: INVESTENDO UN CAPITALE ANNUALE CONOSCIUTO, CON O SENZA CAPITALE INIZIALE A UN TASSO DI RIV CONOSCIUTO CHE MONTANTE AVRO' TRA X ANNI? | HJM19: INVESTENDO UN CAPITALE ANNUALE CONOSCIUTO, CON O SENZA CAPITALE INIZIALE A UN TASSO DI RIV CONOSCIUTO CHE MONTANTE AVRO' TRA X ANNI? | HKC19: INVESTENDO UN CAPITALE ANNUALE CONOSCIUTO, CON O SENZA CAPITALE INIZIALE A UN TASSO DI RIV CONOSCIUTO CHE MONTANTE AVRO' TRA X ANNI? | HKS19: INVESTENDO UN CAPITALE ANNUALE CONOSCIUTO, CON O SENZA CAPITALE INIZIALE A UN TASSO DI RIV CONOSCIUTO CHE MONTANTE AVRO' TRA X ANNI? | HLI19: INVESTENDO UN CAPITALE ANNUALE CONOSCIUTO, CON O SENZA CAPITALE INIZIALE A UN TASSO DI RIV CONOSCIUTO CHE MONTANTE AVRO' TRA X ANNI? | HLY19: INVESTENDO UN CAPITALE ANNUALE CONOSCIUTO, CON O SENZA CAPITALE INIZIALE A UN TASSO DI RIV CONOSCIUTO CHE MONTANTE AVRO' TRA X ANNI? | HMO19: INVESTENDO UN CAPITALE ANNUALE CONOSCIUTO, CON O SENZA CAPITALE INIZIALE A UN TASSO DI RIV CONOSCIUTO CHE MONTANTE AVRO' TRA X ANNI? | HNE19: INVESTENDO UN CAPITALE ANNUALE CONOSCIUTO, CON O SENZA CAPITALE INIZIALE A UN TASSO DI RIV CONOSCIUTO CHE MONTANTE AVRO' TRA X ANNI? | HNU19: INVESTENDO UN CAPITALE ANNUALE CONOSCIUTO, CON O SENZA CAPITALE INIZIALE A UN TASSO DI RIV CONOSCIUTO CHE MONTANTE AVRO' TRA X ANNI? | HOK19: INVESTENDO UN CAPITALE ANNUALE CONOSCIUTO, CON O SENZA CAPITALE INIZIALE A UN TASSO DI RIV CONOSCIUTO CHE MONTANTE AVRO' TRA X ANNI? | HPA19: INVESTENDO UN CAPITALE ANNUALE CONOSCIUTO, CON O SENZA CAPITALE INIZIALE A UN TASSO DI RIV CONOSCIUTO CHE MONTANTE AVRO' TRA X ANNI? | HPQ19: INVESTENDO UN CAPITALE ANNUALE CONOSCIUTO, CON O SENZA CAPITALE INIZIALE A UN TASSO DI RIV CONOSCIUTO CHE MONTANTE AVRO' TRA X ANNI? | HQG19: INVESTENDO UN CAPITALE ANNUALE CONOSCIUTO, CON O SENZA CAPITALE INIZIALE A UN TASSO DI RIV CONOSCIUTO CHE MONTANTE AVRO' TRA X ANNI? | HQW19: INVESTENDO UN CAPITALE ANNUALE CONOSCIUTO, CON O SENZA CAPITALE INIZIALE A UN TASSO DI RIV CONOSCIUTO CHE MONTANTE AVRO' TRA X ANNI? | HRM19: INVESTENDO UN CAPITALE ANNUALE CONOSCIUTO, CON O SENZA CAPITALE INIZIALE A UN TASSO DI RIV CONOSCIUTO CHE MONTANTE AVRO' TRA X ANNI? | HSC19: INVESTENDO UN CAPITALE ANNUALE CONOSCIUTO, CON O SENZA CAPITALE INIZIALE A UN TASSO DI RIV CONOSCIUTO CHE MONTANTE AVRO' TRA X ANNI? | HSS19: INVESTENDO UN CAPITALE ANNUALE CONOSCIUTO, CON O SENZA CAPITALE INIZIALE A UN TASSO DI RIV CONOSCIUTO CHE MONTANTE AVRO' TRA X ANNI? | HTI19: INVESTENDO UN CAPITALE ANNUALE CONOSCIUTO, CON O SENZA CAPITALE INIZIALE A UN TASSO DI RIV CONOSCIUTO CHE MONTANTE AVRO' TRA X ANNI? | HTY19: INVESTENDO UN CAPITALE ANNUALE CONOSCIUTO, CON O SENZA CAPITALE INIZIALE A UN TASSO DI RIV CONOSCIUTO CHE MONTANTE AVRO' TRA X ANNI? | HUO19: INVESTENDO UN CAPITALE ANNUALE CONOSCIUTO, CON O SENZA CAPITALE INIZIALE A UN TASSO DI RIV CONOSCIUTO CHE MONTANTE AVRO' TRA X ANNI? | HVE19: INVESTENDO UN CAPITALE ANNUALE CONOSCIUTO, CON O SENZA CAPITALE INIZIALE A UN TASSO DI RIV CONOSCIUTO CHE MONTANTE AVRO' TRA X ANNI? | HVU19: INVESTENDO UN CAPITALE ANNUALE CONOSCIUTO, CON O SENZA CAPITALE INIZIALE A UN TASSO DI RIV CONOSCIUTO CHE MONTANTE AVRO' TRA X ANNI? | HWK19: INVESTENDO UN CAPITALE ANNUALE CONOSCIUTO, CON O SENZA CAPITALE INIZIALE A UN TASSO DI RIV CONOSCIUTO CHE MONTANTE AVRO' TRA X ANNI? | HXA19: INVESTENDO UN CAPITALE ANNUALE CONOSCIUTO, CON O SENZA CAPITALE INIZIALE A UN TASSO DI RIV CONOSCIUTO CHE MONTANTE AVRO' TRA X ANNI? | HXQ19: INVESTENDO UN CAPITALE ANNUALE CONOSCIUTO, CON O SENZA CAPITALE INIZIALE A UN TASSO DI RIV CONOSCIUTO CHE MONTANTE AVRO' TRA X ANNI? | HYG19: INVESTENDO UN CAPITALE ANNUALE CONOSCIUTO, CON O SENZA CAPITALE INIZIALE A UN TASSO DI RIV CONOSCIUTO CHE MONTANTE AVRO' TRA X ANNI? | HYW19: INVESTENDO UN CAPITALE ANNUALE CONOSCIUTO, CON O SENZA CAPITALE INIZIALE A UN TASSO DI RIV CONOSCIUTO CHE MONTANTE AVRO' TRA X ANNI? | HZM19: INVESTENDO UN CAPITALE ANNUALE CONOSCIUTO, CON O SENZA CAPITALE INIZIALE A UN TASSO DI RIV CONOSCIUTO CHE MONTANTE AVRO' TRA X ANNI? | IAC19: INVESTENDO UN CAPITALE ANNUALE CONOSCIUTO, CON O SENZA CAPITALE INIZIALE A UN TASSO DI RIV CONOSCIUTO CHE MONTANTE AVRO' TRA X ANNI? | IAS19: INVESTENDO UN CAPITALE ANNUALE CONOSCIUTO, CON O SENZA CAPITALE INIZIALE A UN TASSO DI RIV CONOSCIUTO CHE MONTANTE AVRO' TRA X ANNI? | IBI19: INVESTENDO UN CAPITALE ANNUALE CONOSCIUTO, CON O SENZA CAPITALE INIZIALE A UN TASSO DI RIV CONOSCIUTO CHE MONTANTE AVRO' TRA X ANNI? | IBY19: INVESTENDO UN CAPITALE ANNUALE CONOSCIUTO, CON O SENZA CAPITALE INIZIALE A UN TASSO DI RIV CONOSCIUTO CHE MONTANTE AVRO' TRA X ANNI? | ICO19: INVESTENDO UN CAPITALE ANNUALE CONOSCIUTO, CON O SENZA CAPITALE INIZIALE A UN TASSO DI RIV CONOSCIUTO CHE MONTANTE AVRO' TRA X ANNI? | IDE19: INVESTENDO UN CAPITALE ANNUALE CONOSCIUTO, CON O SENZA CAPITALE INIZIALE A UN TASSO DI RIV CONOSCIUTO CHE MONTANTE AVRO' TRA X ANNI? | IDU19: INVESTENDO UN CAPITALE ANNUALE CONOSCIUTO, CON O SENZA CAPITALE INIZIALE A UN TASSO DI RIV CONOSCIUTO CHE MONTANTE AVRO' TRA X ANNI? | IEK19: INVESTENDO UN CAPITALE ANNUALE CONOSCIUTO, CON O SENZA CAPITALE INIZIALE A UN TASSO DI RIV CONOSCIUTO CHE MONTANTE AVRO' TRA X ANNI? | IFA19: INVESTENDO UN CAPITALE ANNUALE CONOSCIUTO, CON O SENZA CAPITALE INIZIALE A UN TASSO DI RIV CONOSCIUTO CHE MONTANTE AVRO' TRA X ANNI? | IFQ19: INVESTENDO UN CAPITALE ANNUALE CONOSCIUTO, CON O SENZA CAPITALE INIZIALE A UN TASSO DI RIV CONOSCIUTO CHE MONTANTE AVRO' TRA X ANNI? | IGG19: INVESTENDO UN CAPITALE ANNUALE CONOSCIUTO, CON O SENZA CAPITALE INIZIALE A UN TASSO DI RIV CONOSCIUTO CHE MONTANTE AVRO' TRA X ANNI? | IGW19: INVESTENDO UN CAPITALE ANNUALE CONOSCIUTO, CON O SENZA CAPITALE INIZIALE A UN TASSO DI RIV CONOSCIUTO CHE MONTANTE AVRO' TRA X ANNI? | IHM19: INVESTENDO UN CAPITALE ANNUALE CONOSCIUTO, CON O SENZA CAPITALE INIZIALE A UN TASSO DI RIV CONOSCIUTO CHE MONTANTE AVRO' TRA X ANNI? | IIC19: INVESTENDO UN CAPITALE ANNUALE CONOSCIUTO, CON O SENZA CAPITALE INIZIALE A UN TASSO DI RIV CONOSCIUTO CHE MONTANTE AVRO' TRA X ANNI? | IIS19: INVESTENDO UN CAPITALE ANNUALE CONOSCIUTO, CON O SENZA CAPITALE INIZIALE A UN TASSO DI RIV CONOSCIUTO CHE MONTANTE AVRO' TRA X ANNI? | IJI19: INVESTENDO UN CAPITALE ANNUALE CONOSCIUTO, CON O SENZA CAPITALE INIZIALE A UN TASSO DI RIV CONOSCIUTO CHE MONTANTE AVRO' TRA X ANNI? | IJY19: INVESTENDO UN CAPITALE ANNUALE CONOSCIUTO, CON O SENZA CAPITALE INIZIALE A UN TASSO DI RIV CONOSCIUTO CHE MONTANTE AVRO' TRA X ANNI? | IKO19: INVESTENDO UN CAPITALE ANNUALE CONOSCIUTO, CON O SENZA CAPITALE INIZIALE A UN TASSO DI RIV CONOSCIUTO CHE MONTANTE AVRO' TRA X ANNI? | ILE19: INVESTENDO UN CAPITALE ANNUALE CONOSCIUTO, CON O SENZA CAPITALE INIZIALE A UN TASSO DI RIV CONOSCIUTO CHE MONTANTE AVRO' TRA X ANNI? | ILU19: INVESTENDO UN CAPITALE ANNUALE CONOSCIUTO, CON O SENZA CAPITALE INIZIALE A UN TASSO DI RIV CONOSCIUTO CHE MONTANTE AVRO' TRA X ANNI? | IMK19: INVESTENDO UN CAPITALE ANNUALE CONOSCIUTO, CON O SENZA CAPITALE INIZIALE A UN TASSO DI RIV CONOSCIUTO CHE MONTANTE AVRO' TRA X ANNI? | INA19: INVESTENDO UN CAPITALE ANNUALE CONOSCIUTO, CON O SENZA CAPITALE INIZIALE A UN TASSO DI RIV CONOSCIUTO CHE MONTANTE AVRO' TRA X ANNI? | INQ19: INVESTENDO UN CAPITALE ANNUALE CONOSCIUTO, CON O SENZA CAPITALE INIZIALE A UN TASSO DI RIV CONOSCIUTO CHE MONTANTE AVRO' TRA X ANNI? | IOG19: INVESTENDO UN CAPITALE ANNUALE CONOSCIUTO, CON O SENZA CAPITALE INIZIALE A UN TASSO DI RIV CONOSCIUTO CHE MONTANTE AVRO' TRA X ANNI? | IOW19: INVESTENDO UN CAPITALE ANNUALE CONOSCIUTO, CON O SENZA CAPITALE INIZIALE A UN TASSO DI RIV CONOSCIUTO CHE MONTANTE AVRO' TRA X ANNI? | IPM19: INVESTENDO UN CAPITALE ANNUALE CONOSCIUTO, CON O SENZA CAPITALE INIZIALE A UN TASSO DI RIV CONOSCIUTO CHE MONTANTE AVRO' TRA X ANNI? | IQC19: INVESTENDO UN CAPITALE ANNUALE CONOSCIUTO, CON O SENZA CAPITALE INIZIALE A UN TASSO DI RIV CONOSCIUTO CHE MONTANTE AVRO' TRA X ANNI? | IQS19: INVESTENDO UN CAPITALE ANNUALE CONOSCIUTO, CON O SENZA CAPITALE INIZIALE A UN TASSO DI RIV CONOSCIUTO CHE MONTANTE AVRO' TRA X ANNI? | IRI19: INVESTENDO UN CAPITALE ANNUALE CONOSCIUTO, CON O SENZA CAPITALE INIZIALE A UN TASSO DI RIV CONOSCIUTO CHE MONTANTE AVRO' TRA X ANNI? | IRY19: INVESTENDO UN CAPITALE ANNUALE CONOSCIUTO, CON O SENZA CAPITALE INIZIALE A UN TASSO DI RIV CONOSCIUTO CHE MONTANTE AVRO' TRA X ANNI? | ISO19: INVESTENDO UN CAPITALE ANNUALE CONOSCIUTO, CON O SENZA CAPITALE INIZIALE A UN TASSO DI RIV CONOSCIUTO CHE MONTANTE AVRO' TRA X ANNI? | ITE19: INVESTENDO UN CAPITALE ANNUALE CONOSCIUTO, CON O SENZA CAPITALE INIZIALE A UN TASSO DI RIV CONOSCIUTO CHE MONTANTE AVRO' TRA X ANNI? | ITU19: INVESTENDO UN CAPITALE ANNUALE CONOSCIUTO, CON O SENZA CAPITALE INIZIALE A UN TASSO DI RIV CONOSCIUTO CHE MONTANTE AVRO' TRA X ANNI? | IUK19: INVESTENDO UN CAPITALE ANNUALE CONOSCIUTO, CON O SENZA CAPITALE INIZIALE A UN TASSO DI RIV CONOSCIUTO CHE MONTANTE AVRO' TRA X ANNI? | IVA19: INVESTENDO UN CAPITALE ANNUALE CONOSCIUTO, CON O SENZA CAPITALE INIZIALE A UN TASSO DI RIV CONOSCIUTO CHE MONTANTE AVRO' TRA X ANNI? | IVQ19: INVESTENDO UN CAPITALE ANNUALE CONOSCIUTO, CON O SENZA CAPITALE INIZIALE A UN TASSO DI RIV CONOSCIUTO CHE MONTANTE AVRO' TRA X ANNI? | IWG19: INVESTENDO UN CAPITALE ANNUALE CONOSCIUTO, CON O SENZA CAPITALE INIZIALE A UN TASSO DI RIV CONOSCIUTO CHE MONTANTE AVRO' TRA X ANNI? | IWW19: INVESTENDO UN CAPITALE ANNUALE CONOSCIUTO, CON O SENZA CAPITALE INIZIALE A UN TASSO DI RIV CONOSCIUTO CHE MONTANTE AVRO' TRA X ANNI? | IXM19: INVESTENDO UN CAPITALE ANNUALE CONOSCIUTO, CON O SENZA CAPITALE INIZIALE A UN TASSO DI RIV CONOSCIUTO CHE MONTANTE AVRO' TRA X ANNI? | IYC19: INVESTENDO UN CAPITALE ANNUALE CONOSCIUTO, CON O SENZA CAPITALE INIZIALE A UN TASSO DI RIV CONOSCIUTO CHE MONTANTE AVRO' TRA X ANNI? | IYS19: INVESTENDO UN CAPITALE ANNUALE CONOSCIUTO, CON O SENZA CAPITALE INIZIALE A UN TASSO DI RIV CONOSCIUTO CHE MONTANTE AVRO' TRA X ANNI? | IZI19: INVESTENDO UN CAPITALE ANNUALE CONOSCIUTO, CON O SENZA CAPITALE INIZIALE A UN TASSO DI RIV CONOSCIUTO CHE MONTANTE AVRO' TRA X ANNI? | IZY19: INVESTENDO UN CAPITALE ANNUALE CONOSCIUTO, CON O SENZA CAPITALE INIZIALE A UN TASSO DI RIV CONOSCIUTO CHE MONTANTE AVRO' TRA X ANNI? | JAO19: INVESTENDO UN CAPITALE ANNUALE CONOSCIUTO, CON O SENZA CAPITALE INIZIALE A UN TASSO DI RIV CONOSCIUTO CHE MONTANTE AVRO' TRA X ANNI? | JBE19: INVESTENDO UN CAPITALE ANNUALE CONOSCIUTO, CON O SENZA CAPITALE INIZIALE A UN TASSO DI RIV CONOSCIUTO CHE MONTANTE AVRO' TRA X ANNI? | JBU19: INVESTENDO UN CAPITALE ANNUALE CONOSCIUTO, CON O SENZA CAPITALE INIZIALE A UN TASSO DI RIV CONOSCIUTO CHE MONTANTE AVRO' TRA X ANNI? | JCK19: INVESTENDO UN CAPITALE ANNUALE CONOSCIUTO, CON O SENZA CAPITALE INIZIALE A UN TASSO DI RIV CONOSCIUTO CHE MONTANTE AVRO' TRA X ANNI? | JDA19: INVESTENDO UN CAPITALE ANNUALE CONOSCIUTO, CON O SENZA CAPITALE INIZIALE A UN TASSO DI RIV CONOSCIUTO CHE MONTANTE AVRO' TRA X ANNI? | JDQ19: INVESTENDO UN CAPITALE ANNUALE CONOSCIUTO, CON O SENZA CAPITALE INIZIALE A UN TASSO DI RIV CONOSCIUTO CHE MONTANTE AVRO' TRA X ANNI? | JEG19: INVESTENDO UN CAPITALE ANNUALE CONOSCIUTO, CON O SENZA CAPITALE INIZIALE A UN TASSO DI RIV CONOSCIUTO CHE MONTANTE AVRO' TRA X ANNI? | JEW19: INVESTENDO UN CAPITALE ANNUALE CONOSCIUTO, CON O SENZA CAPITALE INIZIALE A UN TASSO DI RIV CONOSCIUTO CHE MONTANTE AVRO' TRA X ANNI? | JFM19: INVESTENDO UN CAPITALE ANNUALE CONOSCIUTO, CON O SENZA CAPITALE INIZIALE A UN TASSO DI RIV CONOSCIUTO CHE MONTANTE AVRO' TRA X ANNI? | JGC19: INVESTENDO UN CAPITALE ANNUALE CONOSCIUTO, CON O SENZA CAPITALE INIZIALE A UN TASSO DI RIV CONOSCIUTO CHE MONTANTE AVRO' TRA X ANNI? | JGS19: INVESTENDO UN CAPITALE ANNUALE CONOSCIUTO, CON O SENZA CAPITALE INIZIALE A UN TASSO DI RIV CONOSCIUTO CHE MONTANTE AVRO' TRA X ANNI? | JHI19: INVESTENDO UN CAPITALE ANNUALE CONOSCIUTO, CON O SENZA CAPITALE INIZIALE A UN TASSO DI RIV CONOSCIUTO CHE MONTANTE AVRO' TRA X ANNI? | JHY19: INVESTENDO UN CAPITALE ANNUALE CONOSCIUTO, CON O SENZA CAPITALE INIZIALE A UN TASSO DI RIV CONOSCIUTO CHE MONTANTE AVRO' TRA X ANNI? | JIO19: INVESTENDO UN CAPITALE ANNUALE CONOSCIUTO, CON O SENZA CAPITALE INIZIALE A UN TASSO DI RIV CONOSCIUTO CHE MONTANTE AVRO' TRA X ANNI? | JJE19: INVESTENDO UN CAPITALE ANNUALE CONOSCIUTO, CON O SENZA CAPITALE INIZIALE A UN TASSO DI RIV CONOSCIUTO CHE MONTANTE AVRO' TRA X ANNI? | JJU19: INVESTENDO UN CAPITALE ANNUALE CONOSCIUTO, CON O SENZA CAPITALE INIZIALE A UN TASSO DI RIV CONOSCIUTO CHE MONTANTE AVRO' TRA X ANNI? | JKK19: INVESTENDO UN CAPITALE ANNUALE CONOSCIUTO, CON O SENZA CAPITALE INIZIALE A UN TASSO DI RIV CONOSCIUTO CHE MONTANTE AVRO' TRA X ANNI? | JLA19: INVESTENDO UN CAPITALE ANNUALE CONOSCIUTO, CON O SENZA CAPITALE INIZIALE A UN TASSO DI RIV CONOSCIUTO CHE MONTANTE AVRO' TRA X ANNI? | JLQ19: INVESTENDO UN CAPITALE ANNUALE CONOSCIUTO, CON O SENZA CAPITALE INIZIALE A UN TASSO DI RIV CONOSCIUTO CHE MONTANTE AVRO' TRA X ANNI? | JMG19: INVESTENDO UN CAPITALE ANNUALE CONOSCIUTO, CON O SENZA CAPITALE INIZIALE A UN TASSO DI RIV CONOSCIUTO CHE MONTANTE AVRO' TRA X ANNI? | JMW19: INVESTENDO UN CAPITALE ANNUALE CONOSCIUTO, CON O SENZA CAPITALE INIZIALE A UN TASSO DI RIV CONOSCIUTO CHE MONTANTE AVRO' TRA X ANNI? | JNM19: INVESTENDO UN CAPITALE ANNUALE CONOSCIUTO, CON O SENZA CAPITALE INIZIALE A UN TASSO DI RIV CONOSCIUTO CHE MONTANTE AVRO' TRA X ANNI? | JOC19: INVESTENDO UN CAPITALE ANNUALE CONOSCIUTO, CON O SENZA CAPITALE INIZIALE A UN TASSO DI RIV CONOSCIUTO CHE MONTANTE AVRO' TRA X ANNI? | JOS19: INVESTENDO UN CAPITALE ANNUALE CONOSCIUTO, CON O SENZA CAPITALE INIZIALE A UN TASSO DI RIV CONOSCIUTO CHE MONTANTE AVRO' TRA X ANNI? | JPI19: INVESTENDO UN CAPITALE ANNUALE CONOSCIUTO, CON O SENZA CAPITALE INIZIALE A UN TASSO DI RIV CONOSCIUTO CHE MONTANTE AVRO' TRA X ANNI? | JPY19: INVESTENDO UN CAPITALE ANNUALE CONOSCIUTO, CON O SENZA CAPITALE INIZIALE A UN TASSO DI RIV CONOSCIUTO CHE MONTANTE AVRO' TRA X ANNI? | JQO19: INVESTENDO UN CAPITALE ANNUALE CONOSCIUTO, CON O SENZA CAPITALE INIZIALE A UN TASSO DI RIV CONOSCIUTO CHE MONTANTE AVRO' TRA X ANNI? | JRE19: INVESTENDO UN CAPITALE ANNUALE CONOSCIUTO, CON O SENZA CAPITALE INIZIALE A UN TASSO DI RIV CONOSCIUTO CHE MONTANTE AVRO' TRA X ANNI? | JRU19: INVESTENDO UN CAPITALE ANNUALE CONOSCIUTO, CON O SENZA CAPITALE INIZIALE A UN TASSO DI RIV CONOSCIUTO CHE MONTANTE AVRO' TRA X ANNI? | JSK19: INVESTENDO UN CAPITALE ANNUALE CONOSCIUTO, CON O SENZA CAPITALE INIZIALE A UN TASSO DI RIV CONOSCIUTO CHE MONTANTE AVRO' TRA X ANNI? | JTA19: INVESTENDO UN CAPITALE ANNUALE CONOSCIUTO, CON O SENZA CAPITALE INIZIALE A UN TASSO DI RIV CONOSCIUTO CHE MONTANTE AVRO' TRA X ANNI? | JTQ19: INVESTENDO UN CAPITALE ANNUALE CONOSCIUTO, CON O SENZA CAPITALE INIZIALE A UN TASSO DI RIV CONOSCIUTO CHE MONTANTE AVRO' TRA X ANNI? | JUG19: INVESTENDO UN CAPITALE ANNUALE CONOSCIUTO, CON O SENZA CAPITALE INIZIALE A UN TASSO DI RIV CONOSCIUTO CHE MONTANTE AVRO' TRA X ANNI? | JUW19: INVESTENDO UN CAPITALE ANNUALE CONOSCIUTO, CON O SENZA CAPITALE INIZIALE A UN TASSO DI RIV CONOSCIUTO CHE MONTANTE AVRO' TRA X ANNI? | JVM19: INVESTENDO UN CAPITALE ANNUALE CONOSCIUTO, CON O SENZA CAPITALE INIZIALE A UN TASSO DI RIV CONOSCIUTO CHE MONTANTE AVRO' TRA X ANNI? | JWC19: INVESTENDO UN CAPITALE ANNUALE CONOSCIUTO, CON O SENZA CAPITALE INIZIALE A UN TASSO DI RIV CONOSCIUTO CHE MONTANTE AVRO' TRA X ANNI? | JWS19: INVESTENDO UN CAPITALE ANNUALE CONOSCIUTO, CON O SENZA CAPITALE INIZIALE A UN TASSO DI RIV CONOSCIUTO CHE MONTANTE AVRO' TRA X ANNI? | JXI19: INVESTENDO UN CAPITALE ANNUALE CONOSCIUTO, CON O SENZA CAPITALE INIZIALE A UN TASSO DI RIV CONOSCIUTO CHE MONTANTE AVRO' TRA X ANNI? | JXY19: INVESTENDO UN CAPITALE ANNUALE CONOSCIUTO, CON O SENZA CAPITALE INIZIALE A UN TASSO DI RIV CONOSCIUTO CHE MONTANTE AVRO' TRA X ANNI? | JYO19: INVESTENDO UN CAPITALE ANNUALE CONOSCIUTO, CON O SENZA CAPITALE INIZIALE A UN TASSO DI RIV CONOSCIUTO CHE MONTANTE AVRO' TRA X ANNI? | JZE19: INVESTENDO UN CAPITALE ANNUALE CONOSCIUTO, CON O SENZA CAPITALE INIZIALE A UN TASSO DI RIV CONOSCIUTO CHE MONTANTE AVRO' TRA X ANNI? | JZU19: INVESTENDO UN CAPITALE ANNUALE CONOSCIUTO, CON O SENZA CAPITALE INIZIALE A UN TASSO DI RIV CONOSCIUTO CHE MONTANTE AVRO' TRA X ANNI? | KAK19: INVESTENDO UN CAPITALE ANNUALE CONOSCIUTO, CON O SENZA CAPITALE INIZIALE A UN TASSO DI RIV CONOSCIUTO CHE MONTANTE AVRO' TRA X ANNI? | KBA19: INVESTENDO UN CAPITALE ANNUALE CONOSCIUTO, CON O SENZA CAPITALE INIZIALE A UN TASSO DI RIV CONOSCIUTO CHE MONTANTE AVRO' TRA X ANNI? | KBQ19: INVESTENDO UN CAPITALE ANNUALE CONOSCIUTO, CON O SENZA CAPITALE INIZIALE A UN TASSO DI RIV CONOSCIUTO CHE MONTANTE AVRO' TRA X ANNI? | KCG19: INVESTENDO UN CAPITALE ANNUALE CONOSCIUTO, CON O SENZA CAPITALE INIZIALE A UN TASSO DI RIV CONOSCIUTO CHE MONTANTE AVRO' TRA X ANNI? | KCW19: INVESTENDO UN CAPITALE ANNUALE CONOSCIUTO, CON O SENZA CAPITALE INIZIALE A UN TASSO DI RIV CONOSCIUTO CHE MONTANTE AVRO' TRA X ANNI? | KDM19: INVESTENDO UN CAPITALE ANNUALE CONOSCIUTO, CON O SENZA CAPITALE INIZIALE A UN TASSO DI RIV CONOSCIUTO CHE MONTANTE AVRO' TRA X ANNI? | KEC19: INVESTENDO UN CAPITALE ANNUALE CONOSCIUTO, CON O SENZA CAPITALE INIZIALE A UN TASSO DI RIV CONOSCIUTO CHE MONTANTE AVRO' TRA X ANNI? | KES19: INVESTENDO UN CAPITALE ANNUALE CONOSCIUTO, CON O SENZA CAPITALE INIZIALE A UN TASSO DI RIV CONOSCIUTO CHE MONTANTE AVRO' TRA X ANNI? | KFI19: INVESTENDO UN CAPITALE ANNUALE CONOSCIUTO, CON O SENZA CAPITALE INIZIALE A UN TASSO DI RIV CONOSCIUTO CHE MONTANTE AVRO' TRA X ANNI? | KFY19: INVESTENDO UN CAPITALE ANNUALE CONOSCIUTO, CON O SENZA CAPITALE INIZIALE A UN TASSO DI RIV CONOSCIUTO CHE MONTANTE AVRO' TRA X ANNI? | KGO19: INVESTENDO UN CAPITALE ANNUALE CONOSCIUTO, CON O SENZA CAPITALE INIZIALE A UN TASSO DI RIV CONOSCIUTO CHE MONTANTE AVRO' TRA X ANNI? | KHE19: INVESTENDO UN CAPITALE ANNUALE CONOSCIUTO, CON O SENZA CAPITALE INIZIALE A UN TASSO DI RIV CONOSCIUTO CHE MONTANTE AVRO' TRA X ANNI? | KHU19: INVESTENDO UN CAPITALE ANNUALE CONOSCIUTO, CON O SENZA CAPITALE INIZIALE A UN TASSO DI RIV CONOSCIUTO CHE MONTANTE AVRO' TRA X ANNI? | KIK19: INVESTENDO UN CAPITALE ANNUALE CONOSCIUTO, CON O SENZA CAPITALE INIZIALE A UN TASSO DI RIV CONOSCIUTO CHE MONTANTE AVRO' TRA X ANNI? | KJA19: INVESTENDO UN CAPITALE ANNUALE CONOSCIUTO, CON O SENZA CAPITALE INIZIALE A UN TASSO DI RIV CONOSCIUTO CHE MONTANTE AVRO' TRA X ANNI? | KJQ19: INVESTENDO UN CAPITALE ANNUALE CONOSCIUTO, CON O SENZA CAPITALE INIZIALE A UN TASSO DI RIV CONOSCIUTO CHE MONTANTE AVRO' TRA X ANNI? | KKG19: INVESTENDO UN CAPITALE ANNUALE CONOSCIUTO, CON O SENZA CAPITALE INIZIALE A UN TASSO DI RIV CONOSCIUTO CHE MONTANTE AVRO' TRA X ANNI? | KKW19: INVESTENDO UN CAPITALE ANNUALE CONOSCIUTO, CON O SENZA CAPITALE INIZIALE A UN TASSO DI RIV CONOSCIUTO CHE MONTANTE AVRO' TRA X ANNI? | KLM19: INVESTENDO UN CAPITALE ANNUALE CONOSCIUTO, CON O SENZA CAPITALE INIZIALE A UN TASSO DI RIV CONOSCIUTO CHE MONTANTE AVRO' TRA X ANNI? | KMC19: INVESTENDO UN CAPITALE ANNUALE CONOSCIUTO, CON O SENZA CAPITALE INIZIALE A UN TASSO DI RIV CONOSCIUTO CHE MONTANTE AVRO' TRA X ANNI? | KMS19: INVESTENDO UN CAPITALE ANNUALE CONOSCIUTO, CON O SENZA CAPITALE INIZIALE A UN TASSO DI RIV CONOSCIUTO CHE MONTANTE AVRO' TRA X ANNI? | KNI19: INVESTENDO UN CAPITALE ANNUALE CONOSCIUTO, CON O SENZA CAPITALE INIZIALE A UN TASSO DI RIV CONOSCIUTO CHE MONTANTE AVRO' TRA X ANNI? | KNY19: INVESTENDO UN CAPITALE ANNUALE CONOSCIUTO, CON O SENZA CAPITALE INIZIALE A UN TASSO DI RIV CONOSCIUTO CHE MONTANTE AVRO' TRA X ANNI? | KOO19: INVESTENDO UN CAPITALE ANNUALE CONOSCIUTO, CON O SENZA CAPITALE INIZIALE A UN TASSO DI RIV CONOSCIUTO CHE MONTANTE AVRO' TRA X ANNI? | KPE19: INVESTENDO UN CAPITALE ANNUALE CONOSCIUTO, CON O SENZA CAPITALE INIZIALE A UN TASSO DI RIV CONOSCIUTO CHE MONTANTE AVRO' TRA X ANNI? | KPU19: INVESTENDO UN CAPITALE ANNUALE CONOSCIUTO, CON O SENZA CAPITALE INIZIALE A UN TASSO DI RIV CONOSCIUTO CHE MONTANTE AVRO' TRA X ANNI? | KQK19: INVESTENDO UN CAPITALE ANNUALE CONOSCIUTO, CON O SENZA CAPITALE INIZIALE A UN TASSO DI RIV CONOSCIUTO CHE MONTANTE AVRO' TRA X ANNI? | KRA19: INVESTENDO UN CAPITALE ANNUALE CONOSCIUTO, CON O SENZA CAPITALE INIZIALE A UN TASSO DI RIV CONOSCIUTO CHE MONTANTE AVRO' TRA X ANNI? | KRQ19: INVESTENDO UN CAPITALE ANNUALE CONOSCIUTO, CON O SENZA CAPITALE INIZIALE A UN TASSO DI RIV CONOSCIUTO CHE MONTANTE AVRO' TRA X ANNI? | KSG19: INVESTENDO UN CAPITALE ANNUALE CONOSCIUTO, CON O SENZA CAPITALE INIZIALE A UN TASSO DI RIV CONOSCIUTO CHE MONTANTE AVRO' TRA X ANNI? | KSW19: INVESTENDO UN CAPITALE ANNUALE CONOSCIUTO, CON O SENZA CAPITALE INIZIALE A UN TASSO DI RIV CONOSCIUTO CHE MONTANTE AVRO' TRA X ANNI? | KTM19: INVESTENDO UN CAPITALE ANNUALE CONOSCIUTO, CON O SENZA CAPITALE INIZIALE A UN TASSO DI RIV CONOSCIUTO CHE MONTANTE AVRO' TRA X ANNI? | KUC19: INVESTENDO UN CAPITALE ANNUALE CONOSCIUTO, CON O SENZA CAPITALE INIZIALE A UN TASSO DI RIV CONOSCIUTO CHE MONTANTE AVRO' TRA X ANNI? | KUS19: INVESTENDO UN CAPITALE ANNUALE CONOSCIUTO, CON O SENZA CAPITALE INIZIALE A UN TASSO DI RIV CONOSCIUTO CHE MONTANTE AVRO' TRA X ANNI? | KVI19: INVESTENDO UN CAPITALE ANNUALE CONOSCIUTO, CON O SENZA CAPITALE INIZIALE A UN TASSO DI RIV CONOSCIUTO CHE MONTANTE AVRO' TRA X ANNI? | KVY19: INVESTENDO UN CAPITALE ANNUALE CONOSCIUTO, CON O SENZA CAPITALE INIZIALE A UN TASSO DI RIV CONOSCIUTO CHE MONTANTE AVRO' TRA X ANNI? | KWO19: INVESTENDO UN CAPITALE ANNUALE CONOSCIUTO, CON O SENZA CAPITALE INIZIALE A UN TASSO DI RIV CONOSCIUTO CHE MONTANTE AVRO' TRA X ANNI? | KXE19: INVESTENDO UN CAPITALE ANNUALE CONOSCIUTO, CON O SENZA CAPITALE INIZIALE A UN TASSO DI RIV CONOSCIUTO CHE MONTANTE AVRO' TRA X ANNI? | KXU19: INVESTENDO UN CAPITALE ANNUALE CONOSCIUTO, CON O SENZA CAPITALE INIZIALE A UN TASSO DI RIV CONOSCIUTO CHE MONTANTE AVRO' TRA X ANNI? | KYK19: INVESTENDO UN CAPITALE ANNUALE CONOSCIUTO, CON O SENZA CAPITALE INIZIALE A UN TASSO DI RIV CONOSCIUTO CHE MONTANTE AVRO' TRA X ANNI? | KZA19: INVESTENDO UN CAPITALE ANNUALE CONOSCIUTO, CON O SENZA CAPITALE INIZIALE A UN TASSO DI RIV CONOSCIUTO CHE MONTANTE AVRO' TRA X ANNI? | KZQ19: INVESTENDO UN CAPITALE ANNUALE CONOSCIUTO, CON O SENZA CAPITALE INIZIALE A UN TASSO DI RIV CONOSCIUTO CHE MONTANTE AVRO' TRA X ANNI? | LAG19: INVESTENDO UN CAPITALE ANNUALE CONOSCIUTO, CON O SENZA CAPITALE INIZIALE A UN TASSO DI RIV CONOSCIUTO CHE MONTANTE AVRO' TRA X ANNI? | LAW19: INVESTENDO UN CAPITALE ANNUALE CONOSCIUTO, CON O SENZA CAPITALE INIZIALE A UN TASSO DI RIV CONOSCIUTO CHE MONTANTE AVRO' TRA X ANNI? | LBM19: INVESTENDO UN CAPITALE ANNUALE CONOSCIUTO, CON O SENZA CAPITALE INIZIALE A UN TASSO DI RIV CONOSCIUTO CHE MONTANTE AVRO' TRA X ANNI? | LCC19: INVESTENDO UN CAPITALE ANNUALE CONOSCIUTO, CON O SENZA CAPITALE INIZIALE A UN TASSO DI RIV CONOSCIUTO CHE MONTANTE AVRO' TRA X ANNI? | LCS19: INVESTENDO UN CAPITALE ANNUALE CONOSCIUTO, CON O SENZA CAPITALE INIZIALE A UN TASSO DI RIV CONOSCIUTO CHE MONTANTE AVRO' TRA X ANNI? | LDI19: INVESTENDO UN CAPITALE ANNUALE CONOSCIUTO, CON O SENZA CAPITALE INIZIALE A UN TASSO DI RIV CONOSCIUTO CHE MONTANTE AVRO' TRA X ANNI? | LDY19: INVESTENDO UN CAPITALE ANNUALE CONOSCIUTO, CON O SENZA CAPITALE INIZIALE A UN TASSO DI RIV CONOSCIUTO CHE MONTANTE AVRO' TRA X ANNI? | LEO19: INVESTENDO UN CAPITALE ANNUALE CONOSCIUTO, CON O SENZA CAPITALE INIZIALE A UN TASSO DI RIV CONOSCIUTO CHE MONTANTE AVRO' TRA X ANNI? | LFE19: INVESTENDO UN CAPITALE ANNUALE CONOSCIUTO, CON O SENZA CAPITALE INIZIALE A UN TASSO DI RIV CONOSCIUTO CHE MONTANTE AVRO' TRA X ANNI? | LFU19: INVESTENDO UN CAPITALE ANNUALE CONOSCIUTO, CON O SENZA CAPITALE INIZIALE A UN TASSO DI RIV CONOSCIUTO CHE MONTANTE AVRO' TRA X ANNI? | LGK19: INVESTENDO UN CAPITALE ANNUALE CONOSCIUTO, CON O SENZA CAPITALE INIZIALE A UN TASSO DI RIV CONOSCIUTO CHE MONTANTE AVRO' TRA X ANNI? | LHA19: INVESTENDO UN CAPITALE ANNUALE CONOSCIUTO, CON O SENZA CAPITALE INIZIALE A UN TASSO DI RIV CONOSCIUTO CHE MONTANTE AVRO' TRA X ANNI? | LHQ19: INVESTENDO UN CAPITALE ANNUALE CONOSCIUTO, CON O SENZA CAPITALE INIZIALE A UN TASSO DI RIV CONOSCIUTO CHE MONTANTE AVRO' TRA X ANNI? | LIG19: INVESTENDO UN CAPITALE ANNUALE CONOSCIUTO, CON O SENZA CAPITALE INIZIALE A UN TASSO DI RIV CONOSCIUTO CHE MONTANTE AVRO' TRA X ANNI? | LIW19: INVESTENDO UN CAPITALE ANNUALE CONOSCIUTO, CON O SENZA CAPITALE INIZIALE A UN TASSO DI RIV CONOSCIUTO CHE MONTANTE AVRO' TRA X ANNI? | LJM19: INVESTENDO UN CAPITALE ANNUALE CONOSCIUTO, CON O SENZA CAPITALE INIZIALE A UN TASSO DI RIV CONOSCIUTO CHE MONTANTE AVRO' TRA X ANNI? | LKC19: INVESTENDO UN CAPITALE ANNUALE CONOSCIUTO, CON O SENZA CAPITALE INIZIALE A UN TASSO DI RIV CONOSCIUTO CHE MONTANTE AVRO' TRA X ANNI? | LKS19: INVESTENDO UN CAPITALE ANNUALE CONOSCIUTO, CON O SENZA CAPITALE INIZIALE A UN TASSO DI RIV CONOSCIUTO CHE MONTANTE AVRO' TRA X ANNI? | LLI19: INVESTENDO UN CAPITALE ANNUALE CONOSCIUTO, CON O SENZA CAPITALE INIZIALE A UN TASSO DI RIV CONOSCIUTO CHE MONTANTE AVRO' TRA X ANNI? | LLY19: INVESTENDO UN CAPITALE ANNUALE CONOSCIUTO, CON O SENZA CAPITALE INIZIALE A UN TASSO DI RIV CONOSCIUTO CHE MONTANTE AVRO' TRA X ANNI? | LMO19: INVESTENDO UN CAPITALE ANNUALE CONOSCIUTO, CON O SENZA CAPITALE INIZIALE A UN TASSO DI RIV CONOSCIUTO CHE MONTANTE AVRO' TRA X ANNI? | LNE19: INVESTENDO UN CAPITALE ANNUALE CONOSCIUTO, CON O SENZA CAPITALE INIZIALE A UN TASSO DI RIV CONOSCIUTO CHE MONTANTE AVRO' TRA X ANNI? | LNU19: INVESTENDO UN CAPITALE ANNUALE CONOSCIUTO, CON O SENZA CAPITALE INIZIALE A UN TASSO DI RIV CONOSCIUTO CHE MONTANTE AVRO' TRA X ANNI? | LOK19: INVESTENDO UN CAPITALE ANNUALE CONOSCIUTO, CON O SENZA CAPITALE INIZIALE A UN TASSO DI RIV CONOSCIUTO CHE MONTANTE AVRO' TRA X ANNI? | LPA19: INVESTENDO UN CAPITALE ANNUALE CONOSCIUTO, CON O SENZA CAPITALE INIZIALE A UN TASSO DI RIV CONOSCIUTO CHE MONTANTE AVRO' TRA X ANNI? | LPQ19: INVESTENDO UN CAPITALE ANNUALE CONOSCIUTO, CON O SENZA CAPITALE INIZIALE A UN TASSO DI RIV CONOSCIUTO CHE MONTANTE AVRO' TRA X ANNI? | LQG19: INVESTENDO UN CAPITALE ANNUALE CONOSCIUTO, CON O SENZA CAPITALE INIZIALE A UN TASSO DI RIV CONOSCIUTO CHE MONTANTE AVRO' TRA X ANNI? | LQW19: INVESTENDO UN CAPITALE ANNUALE CONOSCIUTO, CON O SENZA CAPITALE INIZIALE A UN TASSO DI RIV CONOSCIUTO CHE MONTANTE AVRO' TRA X ANNI? | LRM19: INVESTENDO UN CAPITALE ANNUALE CONOSCIUTO, CON O SENZA CAPITALE INIZIALE A UN TASSO DI RIV CONOSCIUTO CHE MONTANTE AVRO' TRA X ANNI? | LSC19: INVESTENDO UN CAPITALE ANNUALE CONOSCIUTO, CON O SENZA CAPITALE INIZIALE A UN TASSO DI RIV CONOSCIUTO CHE MONTANTE AVRO' TRA X ANNI? | LSS19: INVESTENDO UN CAPITALE ANNUALE CONOSCIUTO, CON O SENZA CAPITALE INIZIALE A UN TASSO DI RIV CONOSCIUTO CHE MONTANTE AVRO' TRA X ANNI? | LTI19: INVESTENDO UN CAPITALE ANNUALE CONOSCIUTO, CON O SENZA CAPITALE INIZIALE A UN TASSO DI RIV CONOSCIUTO CHE MONTANTE AVRO' TRA X ANNI? | LTY19: INVESTENDO UN CAPITALE ANNUALE CONOSCIUTO, CON O SENZA CAPITALE INIZIALE A UN TASSO DI RIV CONOSCIUTO CHE MONTANTE AVRO' TRA X ANNI? | LUO19: INVESTENDO UN CAPITALE ANNUALE CONOSCIUTO, CON O SENZA CAPITALE INIZIALE A UN TASSO DI RIV CONOSCIUTO CHE MONTANTE AVRO' TRA X ANNI? | LVE19: INVESTENDO UN CAPITALE ANNUALE CONOSCIUTO, CON O SENZA CAPITALE INIZIALE A UN TASSO DI RIV CONOSCIUTO CHE MONTANTE AVRO' TRA X ANNI? | LVU19: INVESTENDO UN CAPITALE ANNUALE CONOSCIUTO, CON O SENZA CAPITALE INIZIALE A UN TASSO DI RIV CONOSCIUTO CHE MONTANTE AVRO' TRA X ANNI? | LWK19: INVESTENDO UN CAPITALE ANNUALE CONOSCIUTO, CON O SENZA CAPITALE INIZIALE A UN TASSO DI RIV CONOSCIUTO CHE MONTANTE AVRO' TRA X ANNI? | LXA19: INVESTENDO UN CAPITALE ANNUALE CONOSCIUTO, CON O SENZA CAPITALE INIZIALE A UN TASSO DI RIV CONOSCIUTO CHE MONTANTE AVRO' TRA X ANNI? | LXQ19: INVESTENDO UN CAPITALE ANNUALE CONOSCIUTO, CON O SENZA CAPITALE INIZIALE A UN TASSO DI RIV CONOSCIUTO CHE MONTANTE AVRO' TRA X ANNI? | LYG19: INVESTENDO UN CAPITALE ANNUALE CONOSCIUTO, CON O SENZA CAPITALE INIZIALE A UN TASSO DI RIV CONOSCIUTO CHE MONTANTE AVRO' TRA X ANNI? | LYW19: INVESTENDO UN CAPITALE ANNUALE CONOSCIUTO, CON O SENZA CAPITALE INIZIALE A UN TASSO DI RIV CONOSCIUTO CHE MONTANTE AVRO' TRA X ANNI? | LZM19: INVESTENDO UN CAPITALE ANNUALE CONOSCIUTO, CON O SENZA CAPITALE INIZIALE A UN TASSO DI RIV CONOSCIUTO CHE MONTANTE AVRO' TRA X ANNI? | MAC19: INVESTENDO UN CAPITALE ANNUALE CONOSCIUTO, CON O SENZA CAPITALE INIZIALE A UN TASSO DI RIV CONOSCIUTO CHE MONTANTE AVRO' TRA X ANNI? | MAS19: INVESTENDO UN CAPITALE ANNUALE CONOSCIUTO, CON O SENZA CAPITALE INIZIALE A UN TASSO DI RIV CONOSCIUTO CHE MONTANTE AVRO' TRA X ANNI? | MBI19: INVESTENDO UN CAPITALE ANNUALE CONOSCIUTO, CON O SENZA CAPITALE INIZIALE A UN TASSO DI RIV CONOSCIUTO CHE MONTANTE AVRO' TRA X ANNI? | MBY19: INVESTENDO UN CAPITALE ANNUALE CONOSCIUTO, CON O SENZA CAPITALE INIZIALE A UN TASSO DI RIV CONOSCIUTO CHE MONTANTE AVRO' TRA X ANNI? | MCO19: INVESTENDO UN CAPITALE ANNUALE CONOSCIUTO, CON O SENZA CAPITALE INIZIALE A UN TASSO DI RIV CONOSCIUTO CHE MONTANTE AVRO' TRA X ANNI? | MDE19: INVESTENDO UN CAPITALE ANNUALE CONOSCIUTO, CON O SENZA CAPITALE INIZIALE A UN TASSO DI RIV CONOSCIUTO CHE MONTANTE AVRO' TRA X ANNI? | MDU19: INVESTENDO UN CAPITALE ANNUALE CONOSCIUTO, CON O SENZA CAPITALE INIZIALE A UN TASSO DI RIV CONOSCIUTO CHE MONTANTE AVRO' TRA X ANNI? | MEK19: INVESTENDO UN CAPITALE ANNUALE CONOSCIUTO, CON O SENZA CAPITALE INIZIALE A UN TASSO DI RIV CONOSCIUTO CHE MONTANTE AVRO' TRA X ANNI? | MFA19: INVESTENDO UN CAPITALE ANNUALE CONOSCIUTO, CON O SENZA CAPITALE INIZIALE A UN TASSO DI RIV CONOSCIUTO CHE MONTANTE AVRO' TRA X ANNI? | MFQ19: INVESTENDO UN CAPITALE ANNUALE CONOSCIUTO, CON O SENZA CAPITALE INIZIALE A UN TASSO DI RIV CONOSCIUTO CHE MONTANTE AVRO' TRA X ANNI? | MGG19: INVESTENDO UN CAPITALE ANNUALE CONOSCIUTO, CON O SENZA CAPITALE INIZIALE A UN TASSO DI RIV CONOSCIUTO CHE MONTANTE AVRO' TRA X ANNI? | MGW19: INVESTENDO UN CAPITALE ANNUALE CONOSCIUTO, CON O SENZA CAPITALE INIZIALE A UN TASSO DI RIV CONOSCIUTO CHE MONTANTE AVRO' TRA X ANNI? | MHM19: INVESTENDO UN CAPITALE ANNUALE CONOSCIUTO, CON O SENZA CAPITALE INIZIALE A UN TASSO DI RIV CONOSCIUTO CHE MONTANTE AVRO' TRA X ANNI? | MIC19: INVESTENDO UN CAPITALE ANNUALE CONOSCIUTO, CON O SENZA CAPITALE INIZIALE A UN TASSO DI RIV CONOSCIUTO CHE MONTANTE AVRO' TRA X ANNI? | MIS19: INVESTENDO UN CAPITALE ANNUALE CONOSCIUTO, CON O SENZA CAPITALE INIZIALE A UN TASSO DI RIV CONOSCIUTO CHE MONTANTE AVRO' TRA X ANNI? | MJI19: INVESTENDO UN CAPITALE ANNUALE CONOSCIUTO, CON O SENZA CAPITALE INIZIALE A UN TASSO DI RIV CONOSCIUTO CHE MONTANTE AVRO' TRA X ANNI? | MJY19: INVESTENDO UN CAPITALE ANNUALE CONOSCIUTO, CON O SENZA CAPITALE INIZIALE A UN TASSO DI RIV CONOSCIUTO CHE MONTANTE AVRO' TRA X ANNI? | MKO19: INVESTENDO UN CAPITALE ANNUALE CONOSCIUTO, CON O SENZA CAPITALE INIZIALE A UN TASSO DI RIV CONOSCIUTO CHE MONTANTE AVRO' TRA X ANNI? | MLE19: INVESTENDO UN CAPITALE ANNUALE CONOSCIUTO, CON O SENZA CAPITALE INIZIALE A UN TASSO DI RIV CONOSCIUTO CHE MONTANTE AVRO' TRA X ANNI? | MLU19: INVESTENDO UN CAPITALE ANNUALE CONOSCIUTO, CON O SENZA CAPITALE INIZIALE A UN TASSO DI RIV CONOSCIUTO CHE MONTANTE AVRO' TRA X ANNI? | MMK19: INVESTENDO UN CAPITALE ANNUALE CONOSCIUTO, CON O SENZA CAPITALE INIZIALE A UN TASSO DI RIV CONOSCIUTO CHE MONTANTE AVRO' TRA X ANNI? | MNA19: INVESTENDO UN CAPITALE ANNUALE CONOSCIUTO, CON O SENZA CAPITALE INIZIALE A UN TASSO DI RIV CONOSCIUTO CHE MONTANTE AVRO' TRA X ANNI? | MNQ19: INVESTENDO UN CAPITALE ANNUALE CONOSCIUTO, CON O SENZA CAPITALE INIZIALE A UN TASSO DI RIV CONOSCIUTO CHE MONTANTE AVRO' TRA X ANNI? | MOG19: INVESTENDO UN CAPITALE ANNUALE CONOSCIUTO, CON O SENZA CAPITALE INIZIALE A UN TASSO DI RIV CONOSCIUTO CHE MONTANTE AVRO' TRA X ANNI? | MOW19: INVESTENDO UN CAPITALE ANNUALE CONOSCIUTO, CON O SENZA CAPITALE INIZIALE A UN TASSO DI RIV CONOSCIUTO CHE MONTANTE AVRO' TRA X ANNI? | MPM19: INVESTENDO UN CAPITALE ANNUALE CONOSCIUTO, CON O SENZA CAPITALE INIZIALE A UN TASSO DI RIV CONOSCIUTO CHE MONTANTE AVRO' TRA X ANNI? | MQC19: INVESTENDO UN CAPITALE ANNUALE CONOSCIUTO, CON O SENZA CAPITALE INIZIALE A UN TASSO DI RIV CONOSCIUTO CHE MONTANTE AVRO' TRA X ANNI? | MQS19: INVESTENDO UN CAPITALE ANNUALE CONOSCIUTO, CON O SENZA CAPITALE INIZIALE A UN TASSO DI RIV CONOSCIUTO CHE MONTANTE AVRO' TRA X ANNI? | MRI19: INVESTENDO UN CAPITALE ANNUALE CONOSCIUTO, CON O SENZA CAPITALE INIZIALE A UN TASSO DI RIV CONOSCIUTO CHE MONTANTE AVRO' TRA X ANNI? | MRY19: INVESTENDO UN CAPITALE ANNUALE CONOSCIUTO, CON O SENZA CAPITALE INIZIALE A UN TASSO DI RIV CONOSCIUTO CHE MONTANTE AVRO' TRA X ANNI? | MSO19: INVESTENDO UN CAPITALE ANNUALE CONOSCIUTO, CON O SENZA CAPITALE INIZIALE A UN TASSO DI RIV CONOSCIUTO CHE MONTANTE AVRO' TRA X ANNI? | MTE19: INVESTENDO UN CAPITALE ANNUALE CONOSCIUTO, CON O SENZA CAPITALE INIZIALE A UN TASSO DI RIV CONOSCIUTO CHE MONTANTE AVRO' TRA X ANNI? | MTU19: INVESTENDO UN CAPITALE ANNUALE CONOSCIUTO, CON O SENZA CAPITALE INIZIALE A UN TASSO DI RIV CONOSCIUTO CHE MONTANTE AVRO' TRA X ANNI? | MUK19: INVESTENDO UN CAPITALE ANNUALE CONOSCIUTO, CON O SENZA CAPITALE INIZIALE A UN TASSO DI RIV CONOSCIUTO CHE MONTANTE AVRO' TRA X ANNI? | MVA19: INVESTENDO UN CAPITALE ANNUALE CONOSCIUTO, CON O SENZA CAPITALE INIZIALE A UN TASSO DI RIV CONOSCIUTO CHE MONTANTE AVRO' TRA X ANNI? | MVQ19: INVESTENDO UN CAPITALE ANNUALE CONOSCIUTO, CON O SENZA CAPITALE INIZIALE A UN TASSO DI RIV CONOSCIUTO CHE MONTANTE AVRO' TRA X ANNI? | MWG19: INVESTENDO UN CAPITALE ANNUALE CONOSCIUTO, CON O SENZA CAPITALE INIZIALE A UN TASSO DI RIV CONOSCIUTO CHE MONTANTE AVRO' TRA X ANNI? | MWW19: INVESTENDO UN CAPITALE ANNUALE CONOSCIUTO, CON O SENZA CAPITALE INIZIALE A UN TASSO DI RIV CONOSCIUTO CHE MONTANTE AVRO' TRA X ANNI? | MXM19: INVESTENDO UN CAPITALE ANNUALE CONOSCIUTO, CON O SENZA CAPITALE INIZIALE A UN TASSO DI RIV CONOSCIUTO CHE MONTANTE AVRO' TRA X ANNI? | MYC19: INVESTENDO UN CAPITALE ANNUALE CONOSCIUTO, CON O SENZA CAPITALE INIZIALE A UN TASSO DI RIV CONOSCIUTO CHE MONTANTE AVRO' TRA X ANNI? | MYS19: INVESTENDO UN CAPITALE ANNUALE CONOSCIUTO, CON O SENZA CAPITALE INIZIALE A UN TASSO DI RIV CONOSCIUTO CHE MONTANTE AVRO' TRA X ANNI? | MZI19: INVESTENDO UN CAPITALE ANNUALE CONOSCIUTO, CON O SENZA CAPITALE INIZIALE A UN TASSO DI RIV CONOSCIUTO CHE MONTANTE AVRO' TRA X ANNI? | MZY19: INVESTENDO UN CAPITALE ANNUALE CONOSCIUTO, CON O SENZA CAPITALE INIZIALE A UN TASSO DI RIV CONOSCIUTO CHE MONTANTE AVRO' TRA X ANNI? | NAO19: INVESTENDO UN CAPITALE ANNUALE CONOSCIUTO, CON O SENZA CAPITALE INIZIALE A UN TASSO DI RIV CONOSCIUTO CHE MONTANTE AVRO' TRA X ANNI? | NBE19: INVESTENDO UN CAPITALE ANNUALE CONOSCIUTO, CON O SENZA CAPITALE INIZIALE A UN TASSO DI RIV CONOSCIUTO CHE MONTANTE AVRO' TRA X ANNI? | NBU19: INVESTENDO UN CAPITALE ANNUALE CONOSCIUTO, CON O SENZA CAPITALE INIZIALE A UN TASSO DI RIV CONOSCIUTO CHE MONTANTE AVRO' TRA X ANNI? | NCK19: INVESTENDO UN CAPITALE ANNUALE CONOSCIUTO, CON O SENZA CAPITALE INIZIALE A UN TASSO DI RIV CONOSCIUTO CHE MONTANTE AVRO' TRA X ANNI? | NDA19: INVESTENDO UN CAPITALE ANNUALE CONOSCIUTO, CON O SENZA CAPITALE INIZIALE A UN TASSO DI RIV CONOSCIUTO CHE MONTANTE AVRO' TRA X ANNI? | NDQ19: INVESTENDO UN CAPITALE ANNUALE CONOSCIUTO, CON O SENZA CAPITALE INIZIALE A UN TASSO DI RIV CONOSCIUTO CHE MONTANTE AVRO' TRA X ANNI? | NEG19: INVESTENDO UN CAPITALE ANNUALE CONOSCIUTO, CON O SENZA CAPITALE INIZIALE A UN TASSO DI RIV CONOSCIUTO CHE MONTANTE AVRO' TRA X ANNI? | NEW19: INVESTENDO UN CAPITALE ANNUALE CONOSCIUTO, CON O SENZA CAPITALE INIZIALE A UN TASSO DI RIV CONOSCIUTO CHE MONTANTE AVRO' TRA X ANNI? | NFM19: INVESTENDO UN CAPITALE ANNUALE CONOSCIUTO, CON O SENZA CAPITALE INIZIALE A UN TASSO DI RIV CONOSCIUTO CHE MONTANTE AVRO' TRA X ANNI? | NGC19: INVESTENDO UN CAPITALE ANNUALE CONOSCIUTO, CON O SENZA CAPITALE INIZIALE A UN TASSO DI RIV CONOSCIUTO CHE MONTANTE AVRO' TRA X ANNI? | NGS19: INVESTENDO UN CAPITALE ANNUALE CONOSCIUTO, CON O SENZA CAPITALE INIZIALE A UN TASSO DI RIV CONOSCIUTO CHE MONTANTE AVRO' TRA X ANNI? | NHI19: INVESTENDO UN CAPITALE ANNUALE CONOSCIUTO, CON O SENZA CAPITALE INIZIALE A UN TASSO DI RIV CONOSCIUTO CHE MONTANTE AVRO' TRA X ANNI? | NHY19: INVESTENDO UN CAPITALE ANNUALE CONOSCIUTO, CON O SENZA CAPITALE INIZIALE A UN TASSO DI RIV CONOSCIUTO CHE MONTANTE AVRO' TRA X ANNI? | NIO19: INVESTENDO UN CAPITALE ANNUALE CONOSCIUTO, CON O SENZA CAPITALE INIZIALE A UN TASSO DI RIV CONOSCIUTO CHE MONTANTE AVRO' TRA X ANNI? | NJE19: INVESTENDO UN CAPITALE ANNUALE CONOSCIUTO, CON O SENZA CAPITALE INIZIALE A UN TASSO DI RIV CONOSCIUTO CHE MONTANTE AVRO' TRA X ANNI? | NJU19: INVESTENDO UN CAPITALE ANNUALE CONOSCIUTO, CON O SENZA CAPITALE INIZIALE A UN TASSO DI RIV CONOSCIUTO CHE MONTANTE AVRO' TRA X ANNI? | NKK19: INVESTENDO UN CAPITALE ANNUALE CONOSCIUTO, CON O SENZA CAPITALE INIZIALE A UN TASSO DI RIV CONOSCIUTO CHE MONTANTE AVRO' TRA X ANNI? | NLA19: INVESTENDO UN CAPITALE ANNUALE CONOSCIUTO, CON O SENZA CAPITALE INIZIALE A UN TASSO DI RIV CONOSCIUTO CHE MONTANTE AVRO' TRA X ANNI? | NLQ19: INVESTENDO UN CAPITALE ANNUALE CONOSCIUTO, CON O SENZA CAPITALE INIZIALE A UN TASSO DI RIV CONOSCIUTO CHE MONTANTE AVRO' TRA X ANNI? | NMG19: INVESTENDO UN CAPITALE ANNUALE CONOSCIUTO, CON O SENZA CAPITALE INIZIALE A UN TASSO DI RIV CONOSCIUTO CHE MONTANTE AVRO' TRA X ANNI? | NMW19: INVESTENDO UN CAPITALE ANNUALE CONOSCIUTO, CON O SENZA CAPITALE INIZIALE A UN TASSO DI RIV CONOSCIUTO CHE MONTANTE AVRO' TRA X ANNI? | NNM19: INVESTENDO UN CAPITALE ANNUALE CONOSCIUTO, CON O SENZA CAPITALE INIZIALE A UN TASSO DI RIV CONOSCIUTO CHE MONTANTE AVRO' TRA X ANNI? | NOC19: INVESTENDO UN CAPITALE ANNUALE CONOSCIUTO, CON O SENZA CAPITALE INIZIALE A UN TASSO DI RIV CONOSCIUTO CHE MONTANTE AVRO' TRA X ANNI? | NOS19: INVESTENDO UN CAPITALE ANNUALE CONOSCIUTO, CON O SENZA CAPITALE INIZIALE A UN TASSO DI RIV CONOSCIUTO CHE MONTANTE AVRO' TRA X ANNI? | NPI19: INVESTENDO UN CAPITALE ANNUALE CONOSCIUTO, CON O SENZA CAPITALE INIZIALE A UN TASSO DI RIV CONOSCIUTO CHE MONTANTE AVRO' TRA X ANNI? | NPY19: INVESTENDO UN CAPITALE ANNUALE CONOSCIUTO, CON O SENZA CAPITALE INIZIALE A UN TASSO DI RIV CONOSCIUTO CHE MONTANTE AVRO' TRA X ANNI? | NQO19: INVESTENDO UN CAPITALE ANNUALE CONOSCIUTO, CON O SENZA CAPITALE INIZIALE A UN TASSO DI RIV CONOSCIUTO CHE MONTANTE AVRO' TRA X ANNI? | NRE19: INVESTENDO UN CAPITALE ANNUALE CONOSCIUTO, CON O SENZA CAPITALE INIZIALE A UN TASSO DI RIV CONOSCIUTO CHE MONTANTE AVRO' TRA X ANNI? | NRU19: INVESTENDO UN CAPITALE ANNUALE CONOSCIUTO, CON O SENZA CAPITALE INIZIALE A UN TASSO DI RIV CONOSCIUTO CHE MONTANTE AVRO' TRA X ANNI? | NSK19: INVESTENDO UN CAPITALE ANNUALE CONOSCIUTO, CON O SENZA CAPITALE INIZIALE A UN TASSO DI RIV CONOSCIUTO CHE MONTANTE AVRO' TRA X ANNI? | NTA19: INVESTENDO UN CAPITALE ANNUALE CONOSCIUTO, CON O SENZA CAPITALE INIZIALE A UN TASSO DI RIV CONOSCIUTO CHE MONTANTE AVRO' TRA X ANNI? | NTQ19: INVESTENDO UN CAPITALE ANNUALE CONOSCIUTO, CON O SENZA CAPITALE INIZIALE A UN TASSO DI RIV CONOSCIUTO CHE MONTANTE AVRO' TRA X ANNI? | NUG19: INVESTENDO UN CAPITALE ANNUALE CONOSCIUTO, CON O SENZA CAPITALE INIZIALE A UN TASSO DI RIV CONOSCIUTO CHE MONTANTE AVRO' TRA X ANNI? | NUW19: INVESTENDO UN CAPITALE ANNUALE CONOSCIUTO, CON O SENZA CAPITALE INIZIALE A UN TASSO DI RIV CONOSCIUTO CHE MONTANTE AVRO' TRA X ANNI? | NVM19: INVESTENDO UN CAPITALE ANNUALE CONOSCIUTO, CON O SENZA CAPITALE INIZIALE A UN TASSO DI RIV CONOSCIUTO CHE MONTANTE AVRO' TRA X ANNI? | NWC19: INVESTENDO UN CAPITALE ANNUALE CONOSCIUTO, CON O SENZA CAPITALE INIZIALE A UN TASSO DI RIV CONOSCIUTO CHE MONTANTE AVRO' TRA X ANNI? | NWS19: INVESTENDO UN CAPITALE ANNUALE CONOSCIUTO, CON O SENZA CAPITALE INIZIALE A UN TASSO DI RIV CONOSCIUTO CHE MONTANTE AVRO' TRA X ANNI? | NXI19: INVESTENDO UN CAPITALE ANNUALE CONOSCIUTO, CON O SENZA CAPITALE INIZIALE A UN TASSO DI RIV CONOSCIUTO CHE MONTANTE AVRO' TRA X ANNI? | NXY19: INVESTENDO UN CAPITALE ANNUALE CONOSCIUTO, CON O SENZA CAPITALE INIZIALE A UN TASSO DI RIV CONOSCIUTO CHE MONTANTE AVRO' TRA X ANNI? | NYO19: INVESTENDO UN CAPITALE ANNUALE CONOSCIUTO, CON O SENZA CAPITALE INIZIALE A UN TASSO DI RIV CONOSCIUTO CHE MONTANTE AVRO' TRA X ANNI? | NZE19: INVESTENDO UN CAPITALE ANNUALE CONOSCIUTO, CON O SENZA CAPITALE INIZIALE A UN TASSO DI RIV CONOSCIUTO CHE MONTANTE AVRO' TRA X ANNI? | NZU19: INVESTENDO UN CAPITALE ANNUALE CONOSCIUTO, CON O SENZA CAPITALE INIZIALE A UN TASSO DI RIV CONOSCIUTO CHE MONTANTE AVRO' TRA X ANNI? | OAK19: INVESTENDO UN CAPITALE ANNUALE CONOSCIUTO, CON O SENZA CAPITALE INIZIALE A UN TASSO DI RIV CONOSCIUTO CHE MONTANTE AVRO' TRA X ANNI? | OBA19: INVESTENDO UN CAPITALE ANNUALE CONOSCIUTO, CON O SENZA CAPITALE INIZIALE A UN TASSO DI RIV CONOSCIUTO CHE MONTANTE AVRO' TRA X ANNI? | OBQ19: INVESTENDO UN CAPITALE ANNUALE CONOSCIUTO, CON O SENZA CAPITALE INIZIALE A UN TASSO DI RIV CONOSCIUTO CHE MONTANTE AVRO' TRA X ANNI? | OCG19: INVESTENDO UN CAPITALE ANNUALE CONOSCIUTO, CON O SENZA CAPITALE INIZIALE A UN TASSO DI RIV CONOSCIUTO CHE MONTANTE AVRO' TRA X ANNI? | OCW19: INVESTENDO UN CAPITALE ANNUALE CONOSCIUTO, CON O SENZA CAPITALE INIZIALE A UN TASSO DI RIV CONOSCIUTO CHE MONTANTE AVRO' TRA X ANNI? | ODM19: INVESTENDO UN CAPITALE ANNUALE CONOSCIUTO, CON O SENZA CAPITALE INIZIALE A UN TASSO DI RIV CONOSCIUTO CHE MONTANTE AVRO' TRA X ANNI? | OEC19: INVESTENDO UN CAPITALE ANNUALE CONOSCIUTO, CON O SENZA CAPITALE INIZIALE A UN TASSO DI RIV CONOSCIUTO CHE MONTANTE AVRO' TRA X ANNI? | OES19: INVESTENDO UN CAPITALE ANNUALE CONOSCIUTO, CON O SENZA CAPITALE INIZIALE A UN TASSO DI RIV CONOSCIUTO CHE MONTANTE AVRO' TRA X ANNI? | OFI19: INVESTENDO UN CAPITALE ANNUALE CONOSCIUTO, CON O SENZA CAPITALE INIZIALE A UN TASSO DI RIV CONOSCIUTO CHE MONTANTE AVRO' TRA X ANNI? | OFY19: INVESTENDO UN CAPITALE ANNUALE CONOSCIUTO, CON O SENZA CAPITALE INIZIALE A UN TASSO DI RIV CONOSCIUTO CHE MONTANTE AVRO' TRA X ANNI? | OGO19: INVESTENDO UN CAPITALE ANNUALE CONOSCIUTO, CON O SENZA CAPITALE INIZIALE A UN TASSO DI RIV CONOSCIUTO CHE MONTANTE AVRO' TRA X ANNI? | OHE19: INVESTENDO UN CAPITALE ANNUALE CONOSCIUTO, CON O SENZA CAPITALE INIZIALE A UN TASSO DI RIV CONOSCIUTO CHE MONTANTE AVRO' TRA X ANNI? | OHU19: INVESTENDO UN CAPITALE ANNUALE CONOSCIUTO, CON O SENZA CAPITALE INIZIALE A UN TASSO DI RIV CONOSCIUTO CHE MONTANTE AVRO' TRA X ANNI? | OIK19: INVESTENDO UN CAPITALE ANNUALE CONOSCIUTO, CON O SENZA CAPITALE INIZIALE A UN TASSO DI RIV CONOSCIUTO CHE MONTANTE AVRO' TRA X ANNI? | OJA19: INVESTENDO UN CAPITALE ANNUALE CONOSCIUTO, CON O SENZA CAPITALE INIZIALE A UN TASSO DI RIV CONOSCIUTO CHE MONTANTE AVRO' TRA X ANNI? | OJQ19: INVESTENDO UN CAPITALE ANNUALE CONOSCIUTO, CON O SENZA CAPITALE INIZIALE A UN TASSO DI RIV CONOSCIUTO CHE MONTANTE AVRO' TRA X ANNI? | OKG19: INVESTENDO UN CAPITALE ANNUALE CONOSCIUTO, CON O SENZA CAPITALE INIZIALE A UN TASSO DI RIV CONOSCIUTO CHE MONTANTE AVRO' TRA X ANNI? | OKW19: INVESTENDO UN CAPITALE ANNUALE CONOSCIUTO, CON O SENZA CAPITALE INIZIALE A UN TASSO DI RIV CONOSCIUTO CHE MONTANTE AVRO' TRA X ANNI? | OLM19: INVESTENDO UN CAPITALE ANNUALE CONOSCIUTO, CON O SENZA CAPITALE INIZIALE A UN TASSO DI RIV CONOSCIUTO CHE MONTANTE AVRO' TRA X ANNI? | OMC19: INVESTENDO UN CAPITALE ANNUALE CONOSCIUTO, CON O SENZA CAPITALE INIZIALE A UN TASSO DI RIV CONOSCIUTO CHE MONTANTE AVRO' TRA X ANNI? | OMS19: INVESTENDO UN CAPITALE ANNUALE CONOSCIUTO, CON O SENZA CAPITALE INIZIALE A UN TASSO DI RIV CONOSCIUTO CHE MONTANTE AVRO' TRA X ANNI? | ONI19: INVESTENDO UN CAPITALE ANNUALE CONOSCIUTO, CON O SENZA CAPITALE INIZIALE A UN TASSO DI RIV CONOSCIUTO CHE MONTANTE AVRO' TRA X ANNI? | ONY19: INVESTENDO UN CAPITALE ANNUALE CONOSCIUTO, CON O SENZA CAPITALE INIZIALE A UN TASSO DI RIV CONOSCIUTO CHE MONTANTE AVRO' TRA X ANNI? | OOO19: INVESTENDO UN CAPITALE ANNUALE CONOSCIUTO, CON O SENZA CAPITALE INIZIALE A UN TASSO DI RIV CONOSCIUTO CHE MONTANTE AVRO' TRA X ANNI? | OPE19: INVESTENDO UN CAPITALE ANNUALE CONOSCIUTO, CON O SENZA CAPITALE INIZIALE A UN TASSO DI RIV CONOSCIUTO CHE MONTANTE AVRO' TRA X ANNI? | OPU19: INVESTENDO UN CAPITALE ANNUALE CONOSCIUTO, CON O SENZA CAPITALE INIZIALE A UN TASSO DI RIV CONOSCIUTO CHE MONTANTE AVRO' TRA X ANNI? | OQK19: INVESTENDO UN CAPITALE ANNUALE CONOSCIUTO, CON O SENZA CAPITALE INIZIALE A UN TASSO DI RIV CONOSCIUTO CHE MONTANTE AVRO' TRA X ANNI? | ORA19: INVESTENDO UN CAPITALE ANNUALE CONOSCIUTO, CON O SENZA CAPITALE INIZIALE A UN TASSO DI RIV CONOSCIUTO CHE MONTANTE AVRO' TRA X ANNI? | ORQ19: INVESTENDO UN CAPITALE ANNUALE CONOSCIUTO, CON O SENZA CAPITALE INIZIALE A UN TASSO DI RIV CONOSCIUTO CHE MONTANTE AVRO' TRA X ANNI? | OSG19: INVESTENDO UN CAPITALE ANNUALE CONOSCIUTO, CON O SENZA CAPITALE INIZIALE A UN TASSO DI RIV CONOSCIUTO CHE MONTANTE AVRO' TRA X ANNI? | OSW19: INVESTENDO UN CAPITALE ANNUALE CONOSCIUTO, CON O SENZA CAPITALE INIZIALE A UN TASSO DI RIV CONOSCIUTO CHE MONTANTE AVRO' TRA X ANNI? | OTM19: INVESTENDO UN CAPITALE ANNUALE CONOSCIUTO, CON O SENZA CAPITALE INIZIALE A UN TASSO DI RIV CONOSCIUTO CHE MONTANTE AVRO' TRA X ANNI? | OUC19: INVESTENDO UN CAPITALE ANNUALE CONOSCIUTO, CON O SENZA CAPITALE INIZIALE A UN TASSO DI RIV CONOSCIUTO CHE MONTANTE AVRO' TRA X ANNI? | OUS19: INVESTENDO UN CAPITALE ANNUALE CONOSCIUTO, CON O SENZA CAPITALE INIZIALE A UN TASSO DI RIV CONOSCIUTO CHE MONTANTE AVRO' TRA X ANNI? | OVI19: INVESTENDO UN CAPITALE ANNUALE CONOSCIUTO, CON O SENZA CAPITALE INIZIALE A UN TASSO DI RIV CONOSCIUTO CHE MONTANTE AVRO' TRA X ANNI? | OVY19: INVESTENDO UN CAPITALE ANNUALE CONOSCIUTO, CON O SENZA CAPITALE INIZIALE A UN TASSO DI RIV CONOSCIUTO CHE MONTANTE AVRO' TRA X ANNI? | OWO19: INVESTENDO UN CAPITALE ANNUALE CONOSCIUTO, CON O SENZA CAPITALE INIZIALE A UN TASSO DI RIV CONOSCIUTO CHE MONTANTE AVRO' TRA X ANNI? | OXE19: INVESTENDO UN CAPITALE ANNUALE CONOSCIUTO, CON O SENZA CAPITALE INIZIALE A UN TASSO DI RIV CONOSCIUTO CHE MONTANTE AVRO' TRA X ANNI? | OXU19: INVESTENDO UN CAPITALE ANNUALE CONOSCIUTO, CON O SENZA CAPITALE INIZIALE A UN TASSO DI RIV CONOSCIUTO CHE MONTANTE AVRO' TRA X ANNI? | OYK19: INVESTENDO UN CAPITALE ANNUALE CONOSCIUTO, CON O SENZA CAPITALE INIZIALE A UN TASSO DI RIV CONOSCIUTO CHE MONTANTE AVRO' TRA X ANNI? | OZA19: INVESTENDO UN CAPITALE ANNUALE CONOSCIUTO, CON O SENZA CAPITALE INIZIALE A UN TASSO DI RIV CONOSCIUTO CHE MONTANTE AVRO' TRA X ANNI? | OZQ19: INVESTENDO UN CAPITALE ANNUALE CONOSCIUTO, CON O SENZA CAPITALE INIZIALE A UN TASSO DI RIV CONOSCIUTO CHE MONTANTE AVRO' TRA X ANNI? | PAG19: INVESTENDO UN CAPITALE ANNUALE CONOSCIUTO, CON O SENZA CAPITALE INIZIALE A UN TASSO DI RIV CONOSCIUTO CHE MONTANTE AVRO' TRA X ANNI? | PAW19: INVESTENDO UN CAPITALE ANNUALE CONOSCIUTO, CON O SENZA CAPITALE INIZIALE A UN TASSO DI RIV CONOSCIUTO CHE MONTANTE AVRO' TRA X ANNI? | PBM19: INVESTENDO UN CAPITALE ANNUALE CONOSCIUTO, CON O SENZA CAPITALE INIZIALE A UN TASSO DI RIV CONOSCIUTO CHE MONTANTE AVRO' TRA X ANNI? | PCC19: INVESTENDO UN CAPITALE ANNUALE CONOSCIUTO, CON O SENZA CAPITALE INIZIALE A UN TASSO DI RIV CONOSCIUTO CHE MONTANTE AVRO' TRA X ANNI? | PCS19: INVESTENDO UN CAPITALE ANNUALE CONOSCIUTO, CON O SENZA CAPITALE INIZIALE A UN TASSO DI RIV CONOSCIUTO CHE MONTANTE AVRO' TRA X ANNI? | PDI19: INVESTENDO UN CAPITALE ANNUALE CONOSCIUTO, CON O SENZA CAPITALE INIZIALE A UN TASSO DI RIV CONOSCIUTO CHE MONTANTE AVRO' TRA X ANNI? | PDY19: INVESTENDO UN CAPITALE ANNUALE CONOSCIUTO, CON O SENZA CAPITALE INIZIALE A UN TASSO DI RIV CONOSCIUTO CHE MONTANTE AVRO' TRA X ANNI? | PEO19: INVESTENDO UN CAPITALE ANNUALE CONOSCIUTO, CON O SENZA CAPITALE INIZIALE A UN TASSO DI RIV CONOSCIUTO CHE MONTANTE AVRO' TRA X ANNI? | PFE19: INVESTENDO UN CAPITALE ANNUALE CONOSCIUTO, CON O SENZA CAPITALE INIZIALE A UN TASSO DI RIV CONOSCIUTO CHE MONTANTE AVRO' TRA X ANNI? | PFU19: INVESTENDO UN CAPITALE ANNUALE CONOSCIUTO, CON O SENZA CAPITALE INIZIALE A UN TASSO DI RIV CONOSCIUTO CHE MONTANTE AVRO' TRA X ANNI? | PGK19: INVESTENDO UN CAPITALE ANNUALE CONOSCIUTO, CON O SENZA CAPITALE INIZIALE A UN TASSO DI RIV CONOSCIUTO CHE MONTANTE AVRO' TRA X ANNI? | PHA19: INVESTENDO UN CAPITALE ANNUALE CONOSCIUTO, CON O SENZA CAPITALE INIZIALE A UN TASSO DI RIV CONOSCIUTO CHE MONTANTE AVRO' TRA X ANNI? | PHQ19: INVESTENDO UN CAPITALE ANNUALE CONOSCIUTO, CON O SENZA CAPITALE INIZIALE A UN TASSO DI RIV CONOSCIUTO CHE MONTANTE AVRO' TRA X ANNI? | PIG19: INVESTENDO UN CAPITALE ANNUALE CONOSCIUTO, CON O SENZA CAPITALE INIZIALE A UN TASSO DI RIV CONOSCIUTO CHE MONTANTE AVRO' TRA X ANNI? | PIW19: INVESTENDO UN CAPITALE ANNUALE CONOSCIUTO, CON O SENZA CAPITALE INIZIALE A UN TASSO DI RIV CONOSCIUTO CHE MONTANTE AVRO' TRA X ANNI? | PJM19: INVESTENDO UN CAPITALE ANNUALE CONOSCIUTO, CON O SENZA CAPITALE INIZIALE A UN TASSO DI RIV CONOSCIUTO CHE MONTANTE AVRO' TRA X ANNI? | PKC19: INVESTENDO UN CAPITALE ANNUALE CONOSCIUTO, CON O SENZA CAPITALE INIZIALE A UN TASSO DI RIV CONOSCIUTO CHE MONTANTE AVRO' TRA X ANNI? | PKS19: INVESTENDO UN CAPITALE ANNUALE CONOSCIUTO, CON O SENZA CAPITALE INIZIALE A UN TASSO DI RIV CONOSCIUTO CHE MONTANTE AVRO' TRA X ANNI? | PLI19: INVESTENDO UN CAPITALE ANNUALE CONOSCIUTO, CON O SENZA CAPITALE INIZIALE A UN TASSO DI RIV CONOSCIUTO CHE MONTANTE AVRO' TRA X ANNI? | PLY19: INVESTENDO UN CAPITALE ANNUALE CONOSCIUTO, CON O SENZA CAPITALE INIZIALE A UN TASSO DI RIV CONOSCIUTO CHE MONTANTE AVRO' TRA X ANNI? | PMO19: INVESTENDO UN CAPITALE ANNUALE CONOSCIUTO, CON O SENZA CAPITALE INIZIALE A UN TASSO DI RIV CONOSCIUTO CHE MONTANTE AVRO' TRA X ANNI? | PNE19: INVESTENDO UN CAPITALE ANNUALE CONOSCIUTO, CON O SENZA CAPITALE INIZIALE A UN TASSO DI RIV CONOSCIUTO CHE MONTANTE AVRO' TRA X ANNI? | PNU19: INVESTENDO UN CAPITALE ANNUALE CONOSCIUTO, CON O SENZA CAPITALE INIZIALE A UN TASSO DI RIV CONOSCIUTO CHE MONTANTE AVRO' TRA X ANNI? | POK19: INVESTENDO UN CAPITALE ANNUALE CONOSCIUTO, CON O SENZA CAPITALE INIZIALE A UN TASSO DI RIV CONOSCIUTO CHE MONTANTE AVRO' TRA X ANNI? | PPA19: INVESTENDO UN CAPITALE ANNUALE CONOSCIUTO, CON O SENZA CAPITALE INIZIALE A UN TASSO DI RIV CONOSCIUTO CHE MONTANTE AVRO' TRA X ANNI? | PPQ19: INVESTENDO UN CAPITALE ANNUALE CONOSCIUTO, CON O SENZA CAPITALE INIZIALE A UN TASSO DI RIV CONOSCIUTO CHE MONTANTE AVRO' TRA X ANNI? | PQG19: INVESTENDO UN CAPITALE ANNUALE CONOSCIUTO, CON O SENZA CAPITALE INIZIALE A UN TASSO DI RIV CONOSCIUTO CHE MONTANTE AVRO' TRA X ANNI? | PQW19: INVESTENDO UN CAPITALE ANNUALE CONOSCIUTO, CON O SENZA CAPITALE INIZIALE A UN TASSO DI RIV CONOSCIUTO CHE MONTANTE AVRO' TRA X ANNI? | PRM19: INVESTENDO UN CAPITALE ANNUALE CONOSCIUTO, CON O SENZA CAPITALE INIZIALE A UN TASSO DI RIV CONOSCIUTO CHE MONTANTE AVRO' TRA X ANNI? | PSC19: INVESTENDO UN CAPITALE ANNUALE CONOSCIUTO, CON O SENZA CAPITALE INIZIALE A UN TASSO DI RIV CONOSCIUTO CHE MONTANTE AVRO' TRA X ANNI? | PSS19: INVESTENDO UN CAPITALE ANNUALE CONOSCIUTO, CON O SENZA CAPITALE INIZIALE A UN TASSO DI RIV CONOSCIUTO CHE MONTANTE AVRO' TRA X ANNI? | PTI19: INVESTENDO UN CAPITALE ANNUALE CONOSCIUTO, CON O SENZA CAPITALE INIZIALE A UN TASSO DI RIV CONOSCIUTO CHE MONTANTE AVRO' TRA X ANNI? | PTY19: INVESTENDO UN CAPITALE ANNUALE CONOSCIUTO, CON O SENZA CAPITALE INIZIALE A UN TASSO DI RIV CONOSCIUTO CHE MONTANTE AVRO' TRA X ANNI? | PUO19: INVESTENDO UN CAPITALE ANNUALE CONOSCIUTO, CON O SENZA CAPITALE INIZIALE A UN TASSO DI RIV CONOSCIUTO CHE MONTANTE AVRO' TRA X ANNI? | PVE19: INVESTENDO UN CAPITALE ANNUALE CONOSCIUTO, CON O SENZA CAPITALE INIZIALE A UN TASSO DI RIV CONOSCIUTO CHE MONTANTE AVRO' TRA X ANNI? | PVU19: INVESTENDO UN CAPITALE ANNUALE CONOSCIUTO, CON O SENZA CAPITALE INIZIALE A UN TASSO DI RIV CONOSCIUTO CHE MONTANTE AVRO' TRA X ANNI? | PWK19: INVESTENDO UN CAPITALE ANNUALE CONOSCIUTO, CON O SENZA CAPITALE INIZIALE A UN TASSO DI RIV CONOSCIUTO CHE MONTANTE AVRO' TRA X ANNI? | PXA19: INVESTENDO UN CAPITALE ANNUALE CONOSCIUTO, CON O SENZA CAPITALE INIZIALE A UN TASSO DI RIV CONOSCIUTO CHE MONTANTE AVRO' TRA X ANNI? | PXQ19: INVESTENDO UN CAPITALE ANNUALE CONOSCIUTO, CON O SENZA CAPITALE INIZIALE A UN TASSO DI RIV CONOSCIUTO CHE MONTANTE AVRO' TRA X ANNI? | PYG19: INVESTENDO UN CAPITALE ANNUALE CONOSCIUTO, CON O SENZA CAPITALE INIZIALE A UN TASSO DI RIV CONOSCIUTO CHE MONTANTE AVRO' TRA X ANNI? | PYW19: INVESTENDO UN CAPITALE ANNUALE CONOSCIUTO, CON O SENZA CAPITALE INIZIALE A UN TASSO DI RIV CONOSCIUTO CHE MONTANTE AVRO' TRA X ANNI? | PZM19: INVESTENDO UN CAPITALE ANNUALE CONOSCIUTO, CON O SENZA CAPITALE INIZIALE A UN TASSO DI RIV CONOSCIUTO CHE MONTANTE AVRO' TRA X ANNI? | QAC19: INVESTENDO UN CAPITALE ANNUALE CONOSCIUTO, CON O SENZA CAPITALE INIZIALE A UN TASSO DI RIV CONOSCIUTO CHE MONTANTE AVRO' TRA X ANNI? | QAS19: INVESTENDO UN CAPITALE ANNUALE CONOSCIUTO, CON O SENZA CAPITALE INIZIALE A UN TASSO DI RIV CONOSCIUTO CHE MONTANTE AVRO' TRA X ANNI? | QBI19: INVESTENDO UN CAPITALE ANNUALE CONOSCIUTO, CON O SENZA CAPITALE INIZIALE A UN TASSO DI RIV CONOSCIUTO CHE MONTANTE AVRO' TRA X ANNI? | QBY19: INVESTENDO UN CAPITALE ANNUALE CONOSCIUTO, CON O SENZA CAPITALE INIZIALE A UN TASSO DI RIV CONOSCIUTO CHE MONTANTE AVRO' TRA X ANNI? | QCO19: INVESTENDO UN CAPITALE ANNUALE CONOSCIUTO, CON O SENZA CAPITALE INIZIALE A UN TASSO DI RIV CONOSCIUTO CHE MONTANTE AVRO' TRA X ANNI? | QDE19: INVESTENDO UN CAPITALE ANNUALE CONOSCIUTO, CON O SENZA CAPITALE INIZIALE A UN TASSO DI RIV CONOSCIUTO CHE MONTANTE AVRO' TRA X ANNI? | QDU19: INVESTENDO UN CAPITALE ANNUALE CONOSCIUTO, CON O SENZA CAPITALE INIZIALE A UN TASSO DI RIV CONOSCIUTO CHE MONTANTE AVRO' TRA X ANNI? | QEK19: INVESTENDO UN CAPITALE ANNUALE CONOSCIUTO, CON O SENZA CAPITALE INIZIALE A UN TASSO DI RIV CONOSCIUTO CHE MONTANTE AVRO' TRA X ANNI? | QFA19: INVESTENDO UN CAPITALE ANNUALE CONOSCIUTO, CON O SENZA CAPITALE INIZIALE A UN TASSO DI RIV CONOSCIUTO CHE MONTANTE AVRO' TRA X ANNI? | QFQ19: INVESTENDO UN CAPITALE ANNUALE CONOSCIUTO, CON O SENZA CAPITALE INIZIALE A UN TASSO DI RIV CONOSCIUTO CHE MONTANTE AVRO' TRA X ANNI? | QGG19: INVESTENDO UN CAPITALE ANNUALE CONOSCIUTO, CON O SENZA CAPITALE INIZIALE A UN TASSO DI RIV CONOSCIUTO CHE MONTANTE AVRO' TRA X ANNI? | QGW19: INVESTENDO UN CAPITALE ANNUALE CONOSCIUTO, CON O SENZA CAPITALE INIZIALE A UN TASSO DI RIV CONOSCIUTO CHE MONTANTE AVRO' TRA X ANNI? | QHM19: INVESTENDO UN CAPITALE ANNUALE CONOSCIUTO, CON O SENZA CAPITALE INIZIALE A UN TASSO DI RIV CONOSCIUTO CHE MONTANTE AVRO' TRA X ANNI? | QIC19: INVESTENDO UN CAPITALE ANNUALE CONOSCIUTO, CON O SENZA CAPITALE INIZIALE A UN TASSO DI RIV CONOSCIUTO CHE MONTANTE AVRO' TRA X ANNI? | QIS19: INVESTENDO UN CAPITALE ANNUALE CONOSCIUTO, CON O SENZA CAPITALE INIZIALE A UN TASSO DI RIV CONOSCIUTO CHE MONTANTE AVRO' TRA X ANNI? | QJI19: INVESTENDO UN CAPITALE ANNUALE CONOSCIUTO, CON O SENZA CAPITALE INIZIALE A UN TASSO DI RIV CONOSCIUTO CHE MONTANTE AVRO' TRA X ANNI? | QJY19: INVESTENDO UN CAPITALE ANNUALE CONOSCIUTO, CON O SENZA CAPITALE INIZIALE A UN TASSO DI RIV CONOSCIUTO CHE MONTANTE AVRO' TRA X ANNI? | QKO19: INVESTENDO UN CAPITALE ANNUALE CONOSCIUTO, CON O SENZA CAPITALE INIZIALE A UN TASSO DI RIV CONOSCIUTO CHE MONTANTE AVRO' TRA X ANNI? | QLE19: INVESTENDO UN CAPITALE ANNUALE CONOSCIUTO, CON O SENZA CAPITALE INIZIALE A UN TASSO DI RIV CONOSCIUTO CHE MONTANTE AVRO' TRA X ANNI? | QLU19: INVESTENDO UN CAPITALE ANNUALE CONOSCIUTO, CON O SENZA CAPITALE INIZIALE A UN TASSO DI RIV CONOSCIUTO CHE MONTANTE AVRO' TRA X ANNI? | QMK19: INVESTENDO UN CAPITALE ANNUALE CONOSCIUTO, CON O SENZA CAPITALE INIZIALE A UN TASSO DI RIV CONOSCIUTO CHE MONTANTE AVRO' TRA X ANNI? | QNA19: INVESTENDO UN CAPITALE ANNUALE CONOSCIUTO, CON O SENZA CAPITALE INIZIALE A UN TASSO DI RIV CONOSCIUTO CHE MONTANTE AVRO' TRA X ANNI? | QNQ19: INVESTENDO UN CAPITALE ANNUALE CONOSCIUTO, CON O SENZA CAPITALE INIZIALE A UN TASSO DI RIV CONOSCIUTO CHE MONTANTE AVRO' TRA X ANNI? | QOG19: INVESTENDO UN CAPITALE ANNUALE CONOSCIUTO, CON O SENZA CAPITALE INIZIALE A UN TASSO DI RIV CONOSCIUTO CHE MONTANTE AVRO' TRA X ANNI? | QOW19: INVESTENDO UN CAPITALE ANNUALE CONOSCIUTO, CON O SENZA CAPITALE INIZIALE A UN TASSO DI RIV CONOSCIUTO CHE MONTANTE AVRO' TRA X ANNI? | QPM19: INVESTENDO UN CAPITALE ANNUALE CONOSCIUTO, CON O SENZA CAPITALE INIZIALE A UN TASSO DI RIV CONOSCIUTO CHE MONTANTE AVRO' TRA X ANNI? | QQC19: INVESTENDO UN CAPITALE ANNUALE CONOSCIUTO, CON O SENZA CAPITALE INIZIALE A UN TASSO DI RIV CONOSCIUTO CHE MONTANTE AVRO' TRA X ANNI? | QQS19: INVESTENDO UN CAPITALE ANNUALE CONOSCIUTO, CON O SENZA CAPITALE INIZIALE A UN TASSO DI RIV CONOSCIUTO CHE MONTANTE AVRO' TRA X ANNI? | QRI19: INVESTENDO UN CAPITALE ANNUALE CONOSCIUTO, CON O SENZA CAPITALE INIZIALE A UN TASSO DI RIV CONOSCIUTO CHE MONTANTE AVRO' TRA X ANNI? | QRY19: INVESTENDO UN CAPITALE ANNUALE CONOSCIUTO, CON O SENZA CAPITALE INIZIALE A UN TASSO DI RIV CONOSCIUTO CHE MONTANTE AVRO' TRA X ANNI? | QSO19: INVESTENDO UN CAPITALE ANNUALE CONOSCIUTO, CON O SENZA CAPITALE INIZIALE A UN TASSO DI RIV CONOSCIUTO CHE MONTANTE AVRO' TRA X ANNI? | QTE19: INVESTENDO UN CAPITALE ANNUALE CONOSCIUTO, CON O SENZA CAPITALE INIZIALE A UN TASSO DI RIV CONOSCIUTO CHE MONTANTE AVRO' TRA X ANNI? | QTU19: INVESTENDO UN CAPITALE ANNUALE CONOSCIUTO, CON O SENZA CAPITALE INIZIALE A UN TASSO DI RIV CONOSCIUTO CHE MONTANTE AVRO' TRA X ANNI? | QUK19: INVESTENDO UN CAPITALE ANNUALE CONOSCIUTO, CON O SENZA CAPITALE INIZIALE A UN TASSO DI RIV CONOSCIUTO CHE MONTANTE AVRO' TRA X ANNI? | QVA19: INVESTENDO UN CAPITALE ANNUALE CONOSCIUTO, CON O SENZA CAPITALE INIZIALE A UN TASSO DI RIV CONOSCIUTO CHE MONTANTE AVRO' TRA X ANNI? | QVQ19: INVESTENDO UN CAPITALE ANNUALE CONOSCIUTO, CON O SENZA CAPITALE INIZIALE A UN TASSO DI RIV CONOSCIUTO CHE MONTANTE AVRO' TRA X ANNI? | QWG19: INVESTENDO UN CAPITALE ANNUALE CONOSCIUTO, CON O SENZA CAPITALE INIZIALE A UN TASSO DI RIV CONOSCIUTO CHE MONTANTE AVRO' TRA X ANNI? | QWW19: INVESTENDO UN CAPITALE ANNUALE CONOSCIUTO, CON O SENZA CAPITALE INIZIALE A UN TASSO DI RIV CONOSCIUTO CHE MONTANTE AVRO' TRA X ANNI? | QXM19: INVESTENDO UN CAPITALE ANNUALE CONOSCIUTO, CON O SENZA CAPITALE INIZIALE A UN TASSO DI RIV CONOSCIUTO CHE MONTANTE AVRO' TRA X ANNI? | QYC19: INVESTENDO UN CAPITALE ANNUALE CONOSCIUTO, CON O SENZA CAPITALE INIZIALE A UN TASSO DI RIV CONOSCIUTO CHE MONTANTE AVRO' TRA X ANNI? | QYS19: INVESTENDO UN CAPITALE ANNUALE CONOSCIUTO, CON O SENZA CAPITALE INIZIALE A UN TASSO DI RIV CONOSCIUTO CHE MONTANTE AVRO' TRA X ANNI? | QZI19: INVESTENDO UN CAPITALE ANNUALE CONOSCIUTO, CON O SENZA CAPITALE INIZIALE A UN TASSO DI RIV CONOSCIUTO CHE MONTANTE AVRO' TRA X ANNI? | QZY19: INVESTENDO UN CAPITALE ANNUALE CONOSCIUTO, CON O SENZA CAPITALE INIZIALE A UN TASSO DI RIV CONOSCIUTO CHE MONTANTE AVRO' TRA X ANNI? | RAO19: INVESTENDO UN CAPITALE ANNUALE CONOSCIUTO, CON O SENZA CAPITALE INIZIALE A UN TASSO DI RIV CONOSCIUTO CHE MONTANTE AVRO' TRA X ANNI? | RBE19: INVESTENDO UN CAPITALE ANNUALE CONOSCIUTO, CON O SENZA CAPITALE INIZIALE A UN TASSO DI RIV CONOSCIUTO CHE MONTANTE AVRO' TRA X ANNI? | RBU19: INVESTENDO UN CAPITALE ANNUALE CONOSCIUTO, CON O SENZA CAPITALE INIZIALE A UN TASSO DI RIV CONOSCIUTO CHE MONTANTE AVRO' TRA X ANNI? | RCK19: INVESTENDO UN CAPITALE ANNUALE CONOSCIUTO, CON O SENZA CAPITALE INIZIALE A UN TASSO DI RIV CONOSCIUTO CHE MONTANTE AVRO' TRA X ANNI? | RDA19: INVESTENDO UN CAPITALE ANNUALE CONOSCIUTO, CON O SENZA CAPITALE INIZIALE A UN TASSO DI RIV CONOSCIUTO CHE MONTANTE AVRO' TRA X ANNI? | RDQ19: INVESTENDO UN CAPITALE ANNUALE CONOSCIUTO, CON O SENZA CAPITALE INIZIALE A UN TASSO DI RIV CONOSCIUTO CHE MONTANTE AVRO' TRA X ANNI? | REG19: INVESTENDO UN CAPITALE ANNUALE CONOSCIUTO, CON O SENZA CAPITALE INIZIALE A UN TASSO DI RIV CONOSCIUTO CHE MONTANTE AVRO' TRA X ANNI? | REW19: INVESTENDO UN CAPITALE ANNUALE CONOSCIUTO, CON O SENZA CAPITALE INIZIALE A UN TASSO DI RIV CONOSCIUTO CHE MONTANTE AVRO' TRA X ANNI? | RFM19: INVESTENDO UN CAPITALE ANNUALE CONOSCIUTO, CON O SENZA CAPITALE INIZIALE A UN TASSO DI RIV CONOSCIUTO CHE MONTANTE AVRO' TRA X ANNI? | RGC19: INVESTENDO UN CAPITALE ANNUALE CONOSCIUTO, CON O SENZA CAPITALE INIZIALE A UN TASSO DI RIV CONOSCIUTO CHE MONTANTE AVRO' TRA X ANNI? | RGS19: INVESTENDO UN CAPITALE ANNUALE CONOSCIUTO, CON O SENZA CAPITALE INIZIALE A UN TASSO DI RIV CONOSCIUTO CHE MONTANTE AVRO' TRA X ANNI? | RHI19: INVESTENDO UN CAPITALE ANNUALE CONOSCIUTO, CON O SENZA CAPITALE INIZIALE A UN TASSO DI RIV CONOSCIUTO CHE MONTANTE AVRO' TRA X ANNI? | RHY19: INVESTENDO UN CAPITALE ANNUALE CONOSCIUTO, CON O SENZA CAPITALE INIZIALE A UN TASSO DI RIV CONOSCIUTO CHE MONTANTE AVRO' TRA X ANNI? | RIO19: INVESTENDO UN CAPITALE ANNUALE CONOSCIUTO, CON O SENZA CAPITALE INIZIALE A UN TASSO DI RIV CONOSCIUTO CHE MONTANTE AVRO' TRA X ANNI? | RJE19: INVESTENDO UN CAPITALE ANNUALE CONOSCIUTO, CON O SENZA CAPITALE INIZIALE A UN TASSO DI RIV CONOSCIUTO CHE MONTANTE AVRO' TRA X ANNI? | RJU19: INVESTENDO UN CAPITALE ANNUALE CONOSCIUTO, CON O SENZA CAPITALE INIZIALE A UN TASSO DI RIV CONOSCIUTO CHE MONTANTE AVRO' TRA X ANNI? | RKK19: INVESTENDO UN CAPITALE ANNUALE CONOSCIUTO, CON O SENZA CAPITALE INIZIALE A UN TASSO DI RIV CONOSCIUTO CHE MONTANTE AVRO' TRA X ANNI? | RLA19: INVESTENDO UN CAPITALE ANNUALE CONOSCIUTO, CON O SENZA CAPITALE INIZIALE A UN TASSO DI RIV CONOSCIUTO CHE MONTANTE AVRO' TRA X ANNI? | RLQ19: INVESTENDO UN CAPITALE ANNUALE CONOSCIUTO, CON O SENZA CAPITALE INIZIALE A UN TASSO DI RIV CONOSCIUTO CHE MONTANTE AVRO' TRA X ANNI? | RMG19: INVESTENDO UN CAPITALE ANNUALE CONOSCIUTO, CON O SENZA CAPITALE INIZIALE A UN TASSO DI RIV CONOSCIUTO CHE MONTANTE AVRO' TRA X ANNI? | RMW19: INVESTENDO UN CAPITALE ANNUALE CONOSCIUTO, CON O SENZA CAPITALE INIZIALE A UN TASSO DI RIV CONOSCIUTO CHE MONTANTE AVRO' TRA X ANNI? | RNM19: INVESTENDO UN CAPITALE ANNUALE CONOSCIUTO, CON O SENZA CAPITALE INIZIALE A UN TASSO DI RIV CONOSCIUTO CHE MONTANTE AVRO' TRA X ANNI? | ROC19: INVESTENDO UN CAPITALE ANNUALE CONOSCIUTO, CON O SENZA CAPITALE INIZIALE A UN TASSO DI RIV CONOSCIUTO CHE MONTANTE AVRO' TRA X ANNI? | ROS19: INVESTENDO UN CAPITALE ANNUALE CONOSCIUTO, CON O SENZA CAPITALE INIZIALE A UN TASSO DI RIV CONOSCIUTO CHE MONTANTE AVRO' TRA X ANNI? | RPI19: INVESTENDO UN CAPITALE ANNUALE CONOSCIUTO, CON O SENZA CAPITALE INIZIALE A UN TASSO DI RIV CONOSCIUTO CHE MONTANTE AVRO' TRA X ANNI? | RPY19: INVESTENDO UN CAPITALE ANNUALE CONOSCIUTO, CON O SENZA CAPITALE INIZIALE A UN TASSO DI RIV CONOSCIUTO CHE MONTANTE AVRO' TRA X ANNI? | RQO19: INVESTENDO UN CAPITALE ANNUALE CONOSCIUTO, CON O SENZA CAPITALE INIZIALE A UN TASSO DI RIV CONOSCIUTO CHE MONTANTE AVRO' TRA X ANNI? | RRE19: INVESTENDO UN CAPITALE ANNUALE CONOSCIUTO, CON O SENZA CAPITALE INIZIALE A UN TASSO DI RIV CONOSCIUTO CHE MONTANTE AVRO' TRA X ANNI? | RRU19: INVESTENDO UN CAPITALE ANNUALE CONOSCIUTO, CON O SENZA CAPITALE INIZIALE A UN TASSO DI RIV CONOSCIUTO CHE MONTANTE AVRO' TRA X ANNI? | RSK19: INVESTENDO UN CAPITALE ANNUALE CONOSCIUTO, CON O SENZA CAPITALE INIZIALE A UN TASSO DI RIV CONOSCIUTO CHE MONTANTE AVRO' TRA X ANNI? | RTA19: INVESTENDO UN CAPITALE ANNUALE CONOSCIUTO, CON O SENZA CAPITALE INIZIALE A UN TASSO DI RIV CONOSCIUTO CHE MONTANTE AVRO' TRA X ANNI? | RTQ19: INVESTENDO UN CAPITALE ANNUALE CONOSCIUTO, CON O SENZA CAPITALE INIZIALE A UN TASSO DI RIV CONOSCIUTO CHE MONTANTE AVRO' TRA X ANNI? | RUG19: INVESTENDO UN CAPITALE ANNUALE CONOSCIUTO, CON O SENZA CAPITALE INIZIALE A UN TASSO DI RIV CONOSCIUTO CHE MONTANTE AVRO' TRA X ANNI? | RUW19: INVESTENDO UN CAPITALE ANNUALE CONOSCIUTO, CON O SENZA CAPITALE INIZIALE A UN TASSO DI RIV CONOSCIUTO CHE MONTANTE AVRO' TRA X ANNI? | RVM19: INVESTENDO UN CAPITALE ANNUALE CONOSCIUTO, CON O SENZA CAPITALE INIZIALE A UN TASSO DI RIV CONOSCIUTO CHE MONTANTE AVRO' TRA X ANNI? | RWC19: INVESTENDO UN CAPITALE ANNUALE CONOSCIUTO, CON O SENZA CAPITALE INIZIALE A UN TASSO DI RIV CONOSCIUTO CHE MONTANTE AVRO' TRA X ANNI? | RWS19: INVESTENDO UN CAPITALE ANNUALE CONOSCIUTO, CON O SENZA CAPITALE INIZIALE A UN TASSO DI RIV CONOSCIUTO CHE MONTANTE AVRO' TRA X ANNI? | RXI19: INVESTENDO UN CAPITALE ANNUALE CONOSCIUTO, CON O SENZA CAPITALE INIZIALE A UN TASSO DI RIV CONOSCIUTO CHE MONTANTE AVRO' TRA X ANNI? | RXY19: INVESTENDO UN CAPITALE ANNUALE CONOSCIUTO, CON O SENZA CAPITALE INIZIALE A UN TASSO DI RIV CONOSCIUTO CHE MONTANTE AVRO' TRA X ANNI? | RYO19: INVESTENDO UN CAPITALE ANNUALE CONOSCIUTO, CON O SENZA CAPITALE INIZIALE A UN TASSO DI RIV CONOSCIUTO CHE MONTANTE AVRO' TRA X ANNI? | RZE19: INVESTENDO UN CAPITALE ANNUALE CONOSCIUTO, CON O SENZA CAPITALE INIZIALE A UN TASSO DI RIV CONOSCIUTO CHE MONTANTE AVRO' TRA X ANNI? | RZU19: INVESTENDO UN CAPITALE ANNUALE CONOSCIUTO, CON O SENZA CAPITALE INIZIALE A UN TASSO DI RIV CONOSCIUTO CHE MONTANTE AVRO' TRA X ANNI? | SAK19: INVESTENDO UN CAPITALE ANNUALE CONOSCIUTO, CON O SENZA CAPITALE INIZIALE A UN TASSO DI RIV CONOSCIUTO CHE MONTANTE AVRO' TRA X ANNI? | SBA19: INVESTENDO UN CAPITALE ANNUALE CONOSCIUTO, CON O SENZA CAPITALE INIZIALE A UN TASSO DI RIV CONOSCIUTO CHE MONTANTE AVRO' TRA X ANNI? | SBQ19: INVESTENDO UN CAPITALE ANNUALE CONOSCIUTO, CON O SENZA CAPITALE INIZIALE A UN TASSO DI RIV CONOSCIUTO CHE MONTANTE AVRO' TRA X ANNI? | SCG19: INVESTENDO UN CAPITALE ANNUALE CONOSCIUTO, CON O SENZA CAPITALE INIZIALE A UN TASSO DI RIV CONOSCIUTO CHE MONTANTE AVRO' TRA X ANNI? | SCW19: INVESTENDO UN CAPITALE ANNUALE CONOSCIUTO, CON O SENZA CAPITALE INIZIALE A UN TASSO DI RIV CONOSCIUTO CHE MONTANTE AVRO' TRA X ANNI? | SDM19: INVESTENDO UN CAPITALE ANNUALE CONOSCIUTO, CON O SENZA CAPITALE INIZIALE A UN TASSO DI RIV CONOSCIUTO CHE MONTANTE AVRO' TRA X ANNI? | SEC19: INVESTENDO UN CAPITALE ANNUALE CONOSCIUTO, CON O SENZA CAPITALE INIZIALE A UN TASSO DI RIV CONOSCIUTO CHE MONTANTE AVRO' TRA X ANNI? | SES19: INVESTENDO UN CAPITALE ANNUALE CONOSCIUTO, CON O SENZA CAPITALE INIZIALE A UN TASSO DI RIV CONOSCIUTO CHE MONTANTE AVRO' TRA X ANNI? | SFI19: INVESTENDO UN CAPITALE ANNUALE CONOSCIUTO, CON O SENZA CAPITALE INIZIALE A UN TASSO DI RIV CONOSCIUTO CHE MONTANTE AVRO' TRA X ANNI? | SFY19: INVESTENDO UN CAPITALE ANNUALE CONOSCIUTO, CON O SENZA CAPITALE INIZIALE A UN TASSO DI RIV CONOSCIUTO CHE MONTANTE AVRO' TRA X ANNI? | SGO19: INVESTENDO UN CAPITALE ANNUALE CONOSCIUTO, CON O SENZA CAPITALE INIZIALE A UN TASSO DI RIV CONOSCIUTO CHE MONTANTE AVRO' TRA X ANNI? | SHE19: INVESTENDO UN CAPITALE ANNUALE CONOSCIUTO, CON O SENZA CAPITALE INIZIALE A UN TASSO DI RIV CONOSCIUTO CHE MONTANTE AVRO' TRA X ANNI? | SHU19: INVESTENDO UN CAPITALE ANNUALE CONOSCIUTO, CON O SENZA CAPITALE INIZIALE A UN TASSO DI RIV CONOSCIUTO CHE MONTANTE AVRO' TRA X ANNI? | SIK19: INVESTENDO UN CAPITALE ANNUALE CONOSCIUTO, CON O SENZA CAPITALE INIZIALE A UN TASSO DI RIV CONOSCIUTO CHE MONTANTE AVRO' TRA X ANNI? | SJA19: INVESTENDO UN CAPITALE ANNUALE CONOSCIUTO, CON O SENZA CAPITALE INIZIALE A UN TASSO DI RIV CONOSCIUTO CHE MONTANTE AVRO' TRA X ANNI? | SJQ19: INVESTENDO UN CAPITALE ANNUALE CONOSCIUTO, CON O SENZA CAPITALE INIZIALE A UN TASSO DI RIV CONOSCIUTO CHE MONTANTE AVRO' TRA X ANNI? | SKG19: INVESTENDO UN CAPITALE ANNUALE CONOSCIUTO, CON O SENZA CAPITALE INIZIALE A UN TASSO DI RIV CONOSCIUTO CHE MONTANTE AVRO' TRA X ANNI? | SKW19: INVESTENDO UN CAPITALE ANNUALE CONOSCIUTO, CON O SENZA CAPITALE INIZIALE A UN TASSO DI RIV CONOSCIUTO CHE MONTANTE AVRO' TRA X ANNI? | SLM19: INVESTENDO UN CAPITALE ANNUALE CONOSCIUTO, CON O SENZA CAPITALE INIZIALE A UN TASSO DI RIV CONOSCIUTO CHE MONTANTE AVRO' TRA X ANNI? | SMC19: INVESTENDO UN CAPITALE ANNUALE CONOSCIUTO, CON O SENZA CAPITALE INIZIALE A UN TASSO DI RIV CONOSCIUTO CHE MONTANTE AVRO' TRA X ANNI? | SMS19: INVESTENDO UN CAPITALE ANNUALE CONOSCIUTO, CON O SENZA CAPITALE INIZIALE A UN TASSO DI RIV CONOSCIUTO CHE MONTANTE AVRO' TRA X ANNI? | SNI19: INVESTENDO UN CAPITALE ANNUALE CONOSCIUTO, CON O SENZA CAPITALE INIZIALE A UN TASSO DI RIV CONOSCIUTO CHE MONTANTE AVRO' TRA X ANNI? | SNY19: INVESTENDO UN CAPITALE ANNUALE CONOSCIUTO, CON O SENZA CAPITALE INIZIALE A UN TASSO DI RIV CONOSCIUTO CHE MONTANTE AVRO' TRA X ANNI? | SOO19: INVESTENDO UN CAPITALE ANNUALE CONOSCIUTO, CON O SENZA CAPITALE INIZIALE A UN TASSO DI RIV CONOSCIUTO CHE MONTANTE AVRO' TRA X ANNI? | SPE19: INVESTENDO UN CAPITALE ANNUALE CONOSCIUTO, CON O SENZA CAPITALE INIZIALE A UN TASSO DI RIV CONOSCIUTO CHE MONTANTE AVRO' TRA X ANNI? | SPU19: INVESTENDO UN CAPITALE ANNUALE CONOSCIUTO, CON O SENZA CAPITALE INIZIALE A UN TASSO DI RIV CONOSCIUTO CHE MONTANTE AVRO' TRA X ANNI? | SQK19: INVESTENDO UN CAPITALE ANNUALE CONOSCIUTO, CON O SENZA CAPITALE INIZIALE A UN TASSO DI RIV CONOSCIUTO CHE MONTANTE AVRO' TRA X ANNI? | SRA19: INVESTENDO UN CAPITALE ANNUALE CONOSCIUTO, CON O SENZA CAPITALE INIZIALE A UN TASSO DI RIV CONOSCIUTO CHE MONTANTE AVRO' TRA X ANNI? | SRQ19: INVESTENDO UN CAPITALE ANNUALE CONOSCIUTO, CON O SENZA CAPITALE INIZIALE A UN TASSO DI RIV CONOSCIUTO CHE MONTANTE AVRO' TRA X ANNI? | SSG19: INVESTENDO UN CAPITALE ANNUALE CONOSCIUTO, CON O SENZA CAPITALE INIZIALE A UN TASSO DI RIV CONOSCIUTO CHE MONTANTE AVRO' TRA X ANNI? | SSW19: INVESTENDO UN CAPITALE ANNUALE CONOSCIUTO, CON O SENZA CAPITALE INIZIALE A UN TASSO DI RIV CONOSCIUTO CHE MONTANTE AVRO' TRA X ANNI? | STM19: INVESTENDO UN CAPITALE ANNUALE CONOSCIUTO, CON O SENZA CAPITALE INIZIALE A UN TASSO DI RIV CONOSCIUTO CHE MONTANTE AVRO' TRA X ANNI? | SUC19: INVESTENDO UN CAPITALE ANNUALE CONOSCIUTO, CON O SENZA CAPITALE INIZIALE A UN TASSO DI RIV CONOSCIUTO CHE MONTANTE AVRO' TRA X ANNI? | SUS19: INVESTENDO UN CAPITALE ANNUALE CONOSCIUTO, CON O SENZA CAPITALE INIZIALE A UN TASSO DI RIV CONOSCIUTO CHE MONTANTE AVRO' TRA X ANNI? | SVI19: INVESTENDO UN CAPITALE ANNUALE CONOSCIUTO, CON O SENZA CAPITALE INIZIALE A UN TASSO DI RIV CONOSCIUTO CHE MONTANTE AVRO' TRA X ANNI? | SVY19: INVESTENDO UN CAPITALE ANNUALE CONOSCIUTO, CON O SENZA CAPITALE INIZIALE A UN TASSO DI RIV CONOSCIUTO CHE MONTANTE AVRO' TRA X ANNI? | SWO19: INVESTENDO UN CAPITALE ANNUALE CONOSCIUTO, CON O SENZA CAPITALE INIZIALE A UN TASSO DI RIV CONOSCIUTO CHE MONTANTE AVRO' TRA X ANNI? | SXE19: INVESTENDO UN CAPITALE ANNUALE CONOSCIUTO, CON O SENZA CAPITALE INIZIALE A UN TASSO DI RIV CONOSCIUTO CHE MONTANTE AVRO' TRA X ANNI? | SXU19: INVESTENDO UN CAPITALE ANNUALE CONOSCIUTO, CON O SENZA CAPITALE INIZIALE A UN TASSO DI RIV CONOSCIUTO CHE MONTANTE AVRO' TRA X ANNI? | SYK19: INVESTENDO UN CAPITALE ANNUALE CONOSCIUTO, CON O SENZA CAPITALE INIZIALE A UN TASSO DI RIV CONOSCIUTO CHE MONTANTE AVRO' TRA X ANNI? | SZA19: INVESTENDO UN CAPITALE ANNUALE CONOSCIUTO, CON O SENZA CAPITALE INIZIALE A UN TASSO DI RIV CONOSCIUTO CHE MONTANTE AVRO' TRA X ANNI? | SZQ19: INVESTENDO UN CAPITALE ANNUALE CONOSCIUTO, CON O SENZA CAPITALE INIZIALE A UN TASSO DI RIV CONOSCIUTO CHE MONTANTE AVRO' TRA X ANNI? | TAG19: INVESTENDO UN CAPITALE ANNUALE CONOSCIUTO, CON O SENZA CAPITALE INIZIALE A UN TASSO DI RIV CONOSCIUTO CHE MONTANTE AVRO' TRA X ANNI? | TAW19: INVESTENDO UN CAPITALE ANNUALE CONOSCIUTO, CON O SENZA CAPITALE INIZIALE A UN TASSO DI RIV CONOSCIUTO CHE MONTANTE AVRO' TRA X ANNI? | TBM19: INVESTENDO UN CAPITALE ANNUALE CONOSCIUTO, CON O SENZA CAPITALE INIZIALE A UN TASSO DI RIV CONOSCIUTO CHE MONTANTE AVRO' TRA X ANNI? | TCC19: INVESTENDO UN CAPITALE ANNUALE CONOSCIUTO, CON O SENZA CAPITALE INIZIALE A UN TASSO DI RIV CONOSCIUTO CHE MONTANTE AVRO' TRA X ANNI? | TCS19: INVESTENDO UN CAPITALE ANNUALE CONOSCIUTO, CON O SENZA CAPITALE INIZIALE A UN TASSO DI RIV CONOSCIUTO CHE MONTANTE AVRO' TRA X ANNI? | TDI19: INVESTENDO UN CAPITALE ANNUALE CONOSCIUTO, CON O SENZA CAPITALE INIZIALE A UN TASSO DI RIV CONOSCIUTO CHE MONTANTE AVRO' TRA X ANNI? | TDY19: INVESTENDO UN CAPITALE ANNUALE CONOSCIUTO, CON O SENZA CAPITALE INIZIALE A UN TASSO DI RIV CONOSCIUTO CHE MONTANTE AVRO' TRA X ANNI? | TEO19: INVESTENDO UN CAPITALE ANNUALE CONOSCIUTO, CON O SENZA CAPITALE INIZIALE A UN TASSO DI RIV CONOSCIUTO CHE MONTANTE AVRO' TRA X ANNI? | TFE19: INVESTENDO UN CAPITALE ANNUALE CONOSCIUTO, CON O SENZA CAPITALE INIZIALE A UN TASSO DI RIV CONOSCIUTO CHE MONTANTE AVRO' TRA X ANNI? | TFU19: INVESTENDO UN CAPITALE ANNUALE CONOSCIUTO, CON O SENZA CAPITALE INIZIALE A UN TASSO DI RIV CONOSCIUTO CHE MONTANTE AVRO' TRA X ANNI? | TGK19: INVESTENDO UN CAPITALE ANNUALE CONOSCIUTO, CON O SENZA CAPITALE INIZIALE A UN TASSO DI RIV CONOSCIUTO CHE MONTANTE AVRO' TRA X ANNI? | THA19: INVESTENDO UN CAPITALE ANNUALE CONOSCIUTO, CON O SENZA CAPITALE INIZIALE A UN TASSO DI RIV CONOSCIUTO CHE MONTANTE AVRO' TRA X ANNI? | THQ19: INVESTENDO UN CAPITALE ANNUALE CONOSCIUTO, CON O SENZA CAPITALE INIZIALE A UN TASSO DI RIV CONOSCIUTO CHE MONTANTE AVRO' TRA X ANNI? | TIG19: INVESTENDO UN CAPITALE ANNUALE CONOSCIUTO, CON O SENZA CAPITALE INIZIALE A UN TASSO DI RIV CONOSCIUTO CHE MONTANTE AVRO' TRA X ANNI? | TIW19: INVESTENDO UN CAPITALE ANNUALE CONOSCIUTO, CON O SENZA CAPITALE INIZIALE A UN TASSO DI RIV CONOSCIUTO CHE MONTANTE AVRO' TRA X ANNI? | TJM19: INVESTENDO UN CAPITALE ANNUALE CONOSCIUTO, CON O SENZA CAPITALE INIZIALE A UN TASSO DI RIV CONOSCIUTO CHE MONTANTE AVRO' TRA X ANNI? | TKC19: INVESTENDO UN CAPITALE ANNUALE CONOSCIUTO, CON O SENZA CAPITALE INIZIALE A UN TASSO DI RIV CONOSCIUTO CHE MONTANTE AVRO' TRA X ANNI? | TKS19: INVESTENDO UN CAPITALE ANNUALE CONOSCIUTO, CON O SENZA CAPITALE INIZIALE A UN TASSO DI RIV CONOSCIUTO CHE MONTANTE AVRO' TRA X ANNI? | TLI19: INVESTENDO UN CAPITALE ANNUALE CONOSCIUTO, CON O SENZA CAPITALE INIZIALE A UN TASSO DI RIV CONOSCIUTO CHE MONTANTE AVRO' TRA X ANNI? | TLY19: INVESTENDO UN CAPITALE ANNUALE CONOSCIUTO, CON O SENZA CAPITALE INIZIALE A UN TASSO DI RIV CONOSCIUTO CHE MONTANTE AVRO' TRA X ANNI? | TMO19: INVESTENDO UN CAPITALE ANNUALE CONOSCIUTO, CON O SENZA CAPITALE INIZIALE A UN TASSO DI RIV CONOSCIUTO CHE MONTANTE AVRO' TRA X ANNI? | TNE19: INVESTENDO UN CAPITALE ANNUALE CONOSCIUTO, CON O SENZA CAPITALE INIZIALE A UN TASSO DI RIV CONOSCIUTO CHE MONTANTE AVRO' TRA X ANNI? | TNU19: INVESTENDO UN CAPITALE ANNUALE CONOSCIUTO, CON O SENZA CAPITALE INIZIALE A UN TASSO DI RIV CONOSCIUTO CHE MONTANTE AVRO' TRA X ANNI? | TOK19: INVESTENDO UN CAPITALE ANNUALE CONOSCIUTO, CON O SENZA CAPITALE INIZIALE A UN TASSO DI RIV CONOSCIUTO CHE MONTANTE AVRO' TRA X ANNI? | TPA19: INVESTENDO UN CAPITALE ANNUALE CONOSCIUTO, CON O SENZA CAPITALE INIZIALE A UN TASSO DI RIV CONOSCIUTO CHE MONTANTE AVRO' TRA X ANNI? | TPQ19: INVESTENDO UN CAPITALE ANNUALE CONOSCIUTO, CON O SENZA CAPITALE INIZIALE A UN TASSO DI RIV CONOSCIUTO CHE MONTANTE AVRO' TRA X ANNI? | TQG19: INVESTENDO UN CAPITALE ANNUALE CONOSCIUTO, CON O SENZA CAPITALE INIZIALE A UN TASSO DI RIV CONOSCIUTO CHE MONTANTE AVRO' TRA X ANNI? | TQW19: INVESTENDO UN CAPITALE ANNUALE CONOSCIUTO, CON O SENZA CAPITALE INIZIALE A UN TASSO DI RIV CONOSCIUTO CHE MONTANTE AVRO' TRA X ANNI? | TRM19: INVESTENDO UN CAPITALE ANNUALE CONOSCIUTO, CON O SENZA CAPITALE INIZIALE A UN TASSO DI RIV CONOSCIUTO CHE MONTANTE AVRO' TRA X ANNI? | TSC19: INVESTENDO UN CAPITALE ANNUALE CONOSCIUTO, CON O SENZA CAPITALE INIZIALE A UN TASSO DI RIV CONOSCIUTO CHE MONTANTE AVRO' TRA X ANNI? | TSS19: INVESTENDO UN CAPITALE ANNUALE CONOSCIUTO, CON O SENZA CAPITALE INIZIALE A UN TASSO DI RIV CONOSCIUTO CHE MONTANTE AVRO' TRA X ANNI? | TTI19: INVESTENDO UN CAPITALE ANNUALE CONOSCIUTO, CON O SENZA CAPITALE INIZIALE A UN TASSO DI RIV CONOSCIUTO CHE MONTANTE AVRO' TRA X ANNI? | TTY19: INVESTENDO UN CAPITALE ANNUALE CONOSCIUTO, CON O SENZA CAPITALE INIZIALE A UN TASSO DI RIV CONOSCIUTO CHE MONTANTE AVRO' TRA X ANNI? | TUO19: INVESTENDO UN CAPITALE ANNUALE CONOSCIUTO, CON O SENZA CAPITALE INIZIALE A UN TASSO DI RIV CONOSCIUTO CHE MONTANTE AVRO' TRA X ANNI? | TVE19: INVESTENDO UN CAPITALE ANNUALE CONOSCIUTO, CON O SENZA CAPITALE INIZIALE A UN TASSO DI RIV CONOSCIUTO CHE MONTANTE AVRO' TRA X ANNI? | TVU19: INVESTENDO UN CAPITALE ANNUALE CONOSCIUTO, CON O SENZA CAPITALE INIZIALE A UN TASSO DI RIV CONOSCIUTO CHE MONTANTE AVRO' TRA X ANNI? | TWK19: INVESTENDO UN CAPITALE ANNUALE CONOSCIUTO, CON O SENZA CAPITALE INIZIALE A UN TASSO DI RIV CONOSCIUTO CHE MONTANTE AVRO' TRA X ANNI? | TXA19: INVESTENDO UN CAPITALE ANNUALE CONOSCIUTO, CON O SENZA CAPITALE INIZIALE A UN TASSO DI RIV CONOSCIUTO CHE MONTANTE AVRO' TRA X ANNI? | TXQ19: INVESTENDO UN CAPITALE ANNUALE CONOSCIUTO, CON O SENZA CAPITALE INIZIALE A UN TASSO DI RIV CONOSCIUTO CHE MONTANTE AVRO' TRA X ANNI? | TYG19: INVESTENDO UN CAPITALE ANNUALE CONOSCIUTO, CON O SENZA CAPITALE INIZIALE A UN TASSO DI RIV CONOSCIUTO CHE MONTANTE AVRO' TRA X ANNI? | TYW19: INVESTENDO UN CAPITALE ANNUALE CONOSCIUTO, CON O SENZA CAPITALE INIZIALE A UN TASSO DI RIV CONOSCIUTO CHE MONTANTE AVRO' TRA X ANNI? | TZM19: INVESTENDO UN CAPITALE ANNUALE CONOSCIUTO, CON O SENZA CAPITALE INIZIALE A UN TASSO DI RIV CONOSCIUTO CHE MONTANTE AVRO' TRA X ANNI? | UAC19: INVESTENDO UN CAPITALE ANNUALE CONOSCIUTO, CON O SENZA CAPITALE INIZIALE A UN TASSO DI RIV CONOSCIUTO CHE MONTANTE AVRO' TRA X ANNI? | UAS19: INVESTENDO UN CAPITALE ANNUALE CONOSCIUTO, CON O SENZA CAPITALE INIZIALE A UN TASSO DI RIV CONOSCIUTO CHE MONTANTE AVRO' TRA X ANNI? | UBI19: INVESTENDO UN CAPITALE ANNUALE CONOSCIUTO, CON O SENZA CAPITALE INIZIALE A UN TASSO DI RIV CONOSCIUTO CHE MONTANTE AVRO' TRA X ANNI? | UBY19: INVESTENDO UN CAPITALE ANNUALE CONOSCIUTO, CON O SENZA CAPITALE INIZIALE A UN TASSO DI RIV CONOSCIUTO CHE MONTANTE AVRO' TRA X ANNI? | UCO19: INVESTENDO UN CAPITALE ANNUALE CONOSCIUTO, CON O SENZA CAPITALE INIZIALE A UN TASSO DI RIV CONOSCIUTO CHE MONTANTE AVRO' TRA X ANNI? | UDE19: INVESTENDO UN CAPITALE ANNUALE CONOSCIUTO, CON O SENZA CAPITALE INIZIALE A UN TASSO DI RIV CONOSCIUTO CHE MONTANTE AVRO' TRA X ANNI? | UDU19: INVESTENDO UN CAPITALE ANNUALE CONOSCIUTO, CON O SENZA CAPITALE INIZIALE A UN TASSO DI RIV CONOSCIUTO CHE MONTANTE AVRO' TRA X ANNI? | UEK19: INVESTENDO UN CAPITALE ANNUALE CONOSCIUTO, CON O SENZA CAPITALE INIZIALE A UN TASSO DI RIV CONOSCIUTO CHE MONTANTE AVRO' TRA X ANNI? | UFA19: INVESTENDO UN CAPITALE ANNUALE CONOSCIUTO, CON O SENZA CAPITALE INIZIALE A UN TASSO DI RIV CONOSCIUTO CHE MONTANTE AVRO' TRA X ANNI? | UFQ19: INVESTENDO UN CAPITALE ANNUALE CONOSCIUTO, CON O SENZA CAPITALE INIZIALE A UN TASSO DI RIV CONOSCIUTO CHE MONTANTE AVRO' TRA X ANNI? | UGG19: INVESTENDO UN CAPITALE ANNUALE CONOSCIUTO, CON O SENZA CAPITALE INIZIALE A UN TASSO DI RIV CONOSCIUTO CHE MONTANTE AVRO' TRA X ANNI? | UGW19: INVESTENDO UN CAPITALE ANNUALE CONOSCIUTO, CON O SENZA CAPITALE INIZIALE A UN TASSO DI RIV CONOSCIUTO CHE MONTANTE AVRO' TRA X ANNI? | UHM19: INVESTENDO UN CAPITALE ANNUALE CONOSCIUTO, CON O SENZA CAPITALE INIZIALE A UN TASSO DI RIV CONOSCIUTO CHE MONTANTE AVRO' TRA X ANNI? | UIC19: INVESTENDO UN CAPITALE ANNUALE CONOSCIUTO, CON O SENZA CAPITALE INIZIALE A UN TASSO DI RIV CONOSCIUTO CHE MONTANTE AVRO' TRA X ANNI? | UIS19: INVESTENDO UN CAPITALE ANNUALE CONOSCIUTO, CON O SENZA CAPITALE INIZIALE A UN TASSO DI RIV CONOSCIUTO CHE MONTANTE AVRO' TRA X ANNI? | UJI19: INVESTENDO UN CAPITALE ANNUALE CONOSCIUTO, CON O SENZA CAPITALE INIZIALE A UN TASSO DI RIV CONOSCIUTO CHE MONTANTE AVRO' TRA X ANNI? | UJY19: INVESTENDO UN CAPITALE ANNUALE CONOSCIUTO, CON O SENZA CAPITALE INIZIALE A UN TASSO DI RIV CONOSCIUTO CHE MONTANTE AVRO' TRA X ANNI? | UKO19: INVESTENDO UN CAPITALE ANNUALE CONOSCIUTO, CON O SENZA CAPITALE INIZIALE A UN TASSO DI RIV CONOSCIUTO CHE MONTANTE AVRO' TRA X ANNI? | ULE19: INVESTENDO UN CAPITALE ANNUALE CONOSCIUTO, CON O SENZA CAPITALE INIZIALE A UN TASSO DI RIV CONOSCIUTO CHE MONTANTE AVRO' TRA X ANNI? | ULU19: INVESTENDO UN CAPITALE ANNUALE CONOSCIUTO, CON O SENZA CAPITALE INIZIALE A UN TASSO DI RIV CONOSCIUTO CHE MONTANTE AVRO' TRA X ANNI? | UMK19: INVESTENDO UN CAPITALE ANNUALE CONOSCIUTO, CON O SENZA CAPITALE INIZIALE A UN TASSO DI RIV CONOSCIUTO CHE MONTANTE AVRO' TRA X ANNI? | UNA19: INVESTENDO UN CAPITALE ANNUALE CONOSCIUTO, CON O SENZA CAPITALE INIZIALE A UN TASSO DI RIV CONOSCIUTO CHE MONTANTE AVRO' TRA X ANNI? | UNQ19: INVESTENDO UN CAPITALE ANNUALE CONOSCIUTO, CON O SENZA CAPITALE INIZIALE A UN TASSO DI RIV CONOSCIUTO CHE MONTANTE AVRO' TRA X ANNI? | UOG19: INVESTENDO UN CAPITALE ANNUALE CONOSCIUTO, CON O SENZA CAPITALE INIZIALE A UN TASSO DI RIV CONOSCIUTO CHE MONTANTE AVRO' TRA X ANNI? | UOW19: INVESTENDO UN CAPITALE ANNUALE CONOSCIUTO, CON O SENZA CAPITALE INIZIALE A UN TASSO DI RIV CONOSCIUTO CHE MONTANTE AVRO' TRA X ANNI? | UPM19: INVESTENDO UN CAPITALE ANNUALE CONOSCIUTO, CON O SENZA CAPITALE INIZIALE A UN TASSO DI RIV CONOSCIUTO CHE MONTANTE AVRO' TRA X ANNI? | UQC19: INVESTENDO UN CAPITALE ANNUALE CONOSCIUTO, CON O SENZA CAPITALE INIZIALE A UN TASSO DI RIV CONOSCIUTO CHE MONTANTE AVRO' TRA X ANNI? | UQS19: INVESTENDO UN CAPITALE ANNUALE CONOSCIUTO, CON O SENZA CAPITALE INIZIALE A UN TASSO DI RIV CONOSCIUTO CHE MONTANTE AVRO' TRA X ANNI? | URI19: INVESTENDO UN CAPITALE ANNUALE CONOSCIUTO, CON O SENZA CAPITALE INIZIALE A UN TASSO DI RIV CONOSCIUTO CHE MONTANTE AVRO' TRA X ANNI? | URY19: INVESTENDO UN CAPITALE ANNUALE CONOSCIUTO, CON O SENZA CAPITALE INIZIALE A UN TASSO DI RIV CONOSCIUTO CHE MONTANTE AVRO' TRA X ANNI? | USO19: INVESTENDO UN CAPITALE ANNUALE CONOSCIUTO, CON O SENZA CAPITALE INIZIALE A UN TASSO DI RIV CONOSCIUTO CHE MONTANTE AVRO' TRA X ANNI? | UTE19: INVESTENDO UN CAPITALE ANNUALE CONOSCIUTO, CON O SENZA CAPITALE INIZIALE A UN TASSO DI RIV CONOSCIUTO CHE MONTANTE AVRO' TRA X ANNI? | UTU19: INVESTENDO UN CAPITALE ANNUALE CONOSCIUTO, CON O SENZA CAPITALE INIZIALE A UN TASSO DI RIV CONOSCIUTO CHE MONTANTE AVRO' TRA X ANNI? | UUK19: INVESTENDO UN CAPITALE ANNUALE CONOSCIUTO, CON O SENZA CAPITALE INIZIALE A UN TASSO DI RIV CONOSCIUTO CHE MONTANTE AVRO' TRA X ANNI? | UVA19: INVESTENDO UN CAPITALE ANNUALE CONOSCIUTO, CON O SENZA CAPITALE INIZIALE A UN TASSO DI RIV CONOSCIUTO CHE MONTANTE AVRO' TRA X ANNI? | UVQ19: INVESTENDO UN CAPITALE ANNUALE CONOSCIUTO, CON O SENZA CAPITALE INIZIALE A UN TASSO DI RIV CONOSCIUTO CHE MONTANTE AVRO' TRA X ANNI? | UWG19: INVESTENDO UN CAPITALE ANNUALE CONOSCIUTO, CON O SENZA CAPITALE INIZIALE A UN TASSO DI RIV CONOSCIUTO CHE MONTANTE AVRO' TRA X ANNI? | UWW19: INVESTENDO UN CAPITALE ANNUALE CONOSCIUTO, CON O SENZA CAPITALE INIZIALE A UN TASSO DI RIV CONOSCIUTO CHE MONTANTE AVRO' TRA X ANNI? | UXM19: INVESTENDO UN CAPITALE ANNUALE CONOSCIUTO, CON O SENZA CAPITALE INIZIALE A UN TASSO DI RIV CONOSCIUTO CHE MONTANTE AVRO' TRA X ANNI? | UYC19: INVESTENDO UN CAPITALE ANNUALE CONOSCIUTO, CON O SENZA CAPITALE INIZIALE A UN TASSO DI RIV CONOSCIUTO CHE MONTANTE AVRO' TRA X ANNI? | UYS19: INVESTENDO UN CAPITALE ANNUALE CONOSCIUTO, CON O SENZA CAPITALE INIZIALE A UN TASSO DI RIV CONOSCIUTO CHE MONTANTE AVRO' TRA X ANNI? | UZI19: INVESTENDO UN CAPITALE ANNUALE CONOSCIUTO, CON O SENZA CAPITALE INIZIALE A UN TASSO DI RIV CONOSCIUTO CHE MONTANTE AVRO' TRA X ANNI? | UZY19: INVESTENDO UN CAPITALE ANNUALE CONOSCIUTO, CON O SENZA CAPITALE INIZIALE A UN TASSO DI RIV CONOSCIUTO CHE MONTANTE AVRO' TRA X ANNI? | VAO19: INVESTENDO UN CAPITALE ANNUALE CONOSCIUTO, CON O SENZA CAPITALE INIZIALE A UN TASSO DI RIV CONOSCIUTO CHE MONTANTE AVRO' TRA X ANNI? | VBE19: INVESTENDO UN CAPITALE ANNUALE CONOSCIUTO, CON O SENZA CAPITALE INIZIALE A UN TASSO DI RIV CONOSCIUTO CHE MONTANTE AVRO' TRA X ANNI? | VBU19: INVESTENDO UN CAPITALE ANNUALE CONOSCIUTO, CON O SENZA CAPITALE INIZIALE A UN TASSO DI RIV CONOSCIUTO CHE MONTANTE AVRO' TRA X ANNI? | VCK19: INVESTENDO UN CAPITALE ANNUALE CONOSCIUTO, CON O SENZA CAPITALE INIZIALE A UN TASSO DI RIV CONOSCIUTO CHE MONTANTE AVRO' TRA X ANNI? | VDA19: INVESTENDO UN CAPITALE ANNUALE CONOSCIUTO, CON O SENZA CAPITALE INIZIALE A UN TASSO DI RIV CONOSCIUTO CHE MONTANTE AVRO' TRA X ANNI? | VDQ19: INVESTENDO UN CAPITALE ANNUALE CONOSCIUTO, CON O SENZA CAPITALE INIZIALE A UN TASSO DI RIV CONOSCIUTO CHE MONTANTE AVRO' TRA X ANNI? | VEG19: INVESTENDO UN CAPITALE ANNUALE CONOSCIUTO, CON O SENZA CAPITALE INIZIALE A UN TASSO DI RIV CONOSCIUTO CHE MONTANTE AVRO' TRA X ANNI? | VEW19: INVESTENDO UN CAPITALE ANNUALE CONOSCIUTO, CON O SENZA CAPITALE INIZIALE A UN TASSO DI RIV CONOSCIUTO CHE MONTANTE AVRO' TRA X ANNI? | VFM19: INVESTENDO UN CAPITALE ANNUALE CONOSCIUTO, CON O SENZA CAPITALE INIZIALE A UN TASSO DI RIV CONOSCIUTO CHE MONTANTE AVRO' TRA X ANNI? | VGC19: INVESTENDO UN CAPITALE ANNUALE CONOSCIUTO, CON O SENZA CAPITALE INIZIALE A UN TASSO DI RIV CONOSCIUTO CHE MONTANTE AVRO' TRA X ANNI? | VGS19: INVESTENDO UN CAPITALE ANNUALE CONOSCIUTO, CON O SENZA CAPITALE INIZIALE A UN TASSO DI RIV CONOSCIUTO CHE MONTANTE AVRO' TRA X ANNI? | VHI19: INVESTENDO UN CAPITALE ANNUALE CONOSCIUTO, CON O SENZA CAPITALE INIZIALE A UN TASSO DI RIV CONOSCIUTO CHE MONTANTE AVRO' TRA X ANNI? | VHY19: INVESTENDO UN CAPITALE ANNUALE CONOSCIUTO, CON O SENZA CAPITALE INIZIALE A UN TASSO DI RIV CONOSCIUTO CHE MONTANTE AVRO' TRA X ANNI? | VIO19: INVESTENDO UN CAPITALE ANNUALE CONOSCIUTO, CON O SENZA CAPITALE INIZIALE A UN TASSO DI RIV CONOSCIUTO CHE MONTANTE AVRO' TRA X ANNI? | VJE19: INVESTENDO UN CAPITALE ANNUALE CONOSCIUTO, CON O SENZA CAPITALE INIZIALE A UN TASSO DI RIV CONOSCIUTO CHE MONTANTE AVRO' TRA X ANNI? | VJU19: INVESTENDO UN CAPITALE ANNUALE CONOSCIUTO, CON O SENZA CAPITALE INIZIALE A UN TASSO DI RIV CONOSCIUTO CHE MONTANTE AVRO' TRA X ANNI? | VKK19: INVESTENDO UN CAPITALE ANNUALE CONOSCIUTO, CON O SENZA CAPITALE INIZIALE A UN TASSO DI RIV CONOSCIUTO CHE MONTANTE AVRO' TRA X ANNI? | VLA19: INVESTENDO UN CAPITALE ANNUALE CONOSCIUTO, CON O SENZA CAPITALE INIZIALE A UN TASSO DI RIV CONOSCIUTO CHE MONTANTE AVRO' TRA X ANNI? | VLQ19: INVESTENDO UN CAPITALE ANNUALE CONOSCIUTO, CON O SENZA CAPITALE INIZIALE A UN TASSO DI RIV CONOSCIUTO CHE MONTANTE AVRO' TRA X ANNI? | VMG19: INVESTENDO UN CAPITALE ANNUALE CONOSCIUTO, CON O SENZA CAPITALE INIZIALE A UN TASSO DI RIV CONOSCIUTO CHE MONTANTE AVRO' TRA X ANNI? | VMW19: INVESTENDO UN CAPITALE ANNUALE CONOSCIUTO, CON O SENZA CAPITALE INIZIALE A UN TASSO DI RIV CONOSCIUTO CHE MONTANTE AVRO' TRA X ANNI? | VNM19: INVESTENDO UN CAPITALE ANNUALE CONOSCIUTO, CON O SENZA CAPITALE INIZIALE A UN TASSO DI RIV CONOSCIUTO CHE MONTANTE AVRO' TRA X ANNI? | VOC19: INVESTENDO UN CAPITALE ANNUALE CONOSCIUTO, CON O SENZA CAPITALE INIZIALE A UN TASSO DI RIV CONOSCIUTO CHE MONTANTE AVRO' TRA X ANNI? | VOS19: INVESTENDO UN CAPITALE ANNUALE CONOSCIUTO, CON O SENZA CAPITALE INIZIALE A UN TASSO DI RIV CONOSCIUTO CHE MONTANTE AVRO' TRA X ANNI? | VPI19: INVESTENDO UN CAPITALE ANNUALE CONOSCIUTO, CON O SENZA CAPITALE INIZIALE A UN TASSO DI RIV CONOSCIUTO CHE MONTANTE AVRO' TRA X ANNI? | VPY19: INVESTENDO UN CAPITALE ANNUALE CONOSCIUTO, CON O SENZA CAPITALE INIZIALE A UN TASSO DI RIV CONOSCIUTO CHE MONTANTE AVRO' TRA X ANNI? | VQO19: INVESTENDO UN CAPITALE ANNUALE CONOSCIUTO, CON O SENZA CAPITALE INIZIALE A UN TASSO DI RIV CONOSCIUTO CHE MONTANTE AVRO' TRA X ANNI? | VRE19: INVESTENDO UN CAPITALE ANNUALE CONOSCIUTO, CON O SENZA CAPITALE INIZIALE A UN TASSO DI RIV CONOSCIUTO CHE MONTANTE AVRO' TRA X ANNI? | VRU19: INVESTENDO UN CAPITALE ANNUALE CONOSCIUTO, CON O SENZA CAPITALE INIZIALE A UN TASSO DI RIV CONOSCIUTO CHE MONTANTE AVRO' TRA X ANNI? | VSK19: INVESTENDO UN CAPITALE ANNUALE CONOSCIUTO, CON O SENZA CAPITALE INIZIALE A UN TASSO DI RIV CONOSCIUTO CHE MONTANTE AVRO' TRA X ANNI? | VTA19: INVESTENDO UN CAPITALE ANNUALE CONOSCIUTO, CON O SENZA CAPITALE INIZIALE A UN TASSO DI RIV CONOSCIUTO CHE MONTANTE AVRO' TRA X ANNI? | VTQ19: INVESTENDO UN CAPITALE ANNUALE CONOSCIUTO, CON O SENZA CAPITALE INIZIALE A UN TASSO DI RIV CONOSCIUTO CHE MONTANTE AVRO' TRA X ANNI? | VUG19: INVESTENDO UN CAPITALE ANNUALE CONOSCIUTO, CON O SENZA CAPITALE INIZIALE A UN TASSO DI RIV CONOSCIUTO CHE MONTANTE AVRO' TRA X ANNI? | VUW19: INVESTENDO UN CAPITALE ANNUALE CONOSCIUTO, CON O SENZA CAPITALE INIZIALE A UN TASSO DI RIV CONOSCIUTO CHE MONTANTE AVRO' TRA X ANNI? | VVM19: INVESTENDO UN CAPITALE ANNUALE CONOSCIUTO, CON O SENZA CAPITALE INIZIALE A UN TASSO DI RIV CONOSCIUTO CHE MONTANTE AVRO' TRA X ANNI? | VWC19: INVESTENDO UN CAPITALE ANNUALE CONOSCIUTO, CON O SENZA CAPITALE INIZIALE A UN TASSO DI RIV CONOSCIUTO CHE MONTANTE AVRO' TRA X ANNI? | VWS19: INVESTENDO UN CAPITALE ANNUALE CONOSCIUTO, CON O SENZA CAPITALE INIZIALE A UN TASSO DI RIV CONOSCIUTO CHE MONTANTE AVRO' TRA X ANNI? | VXI19: INVESTENDO UN CAPITALE ANNUALE CONOSCIUTO, CON O SENZA CAPITALE INIZIALE A UN TASSO DI RIV CONOSCIUTO CHE MONTANTE AVRO' TRA X ANNI? | VXY19: INVESTENDO UN CAPITALE ANNUALE CONOSCIUTO, CON O SENZA CAPITALE INIZIALE A UN TASSO DI RIV CONOSCIUTO CHE MONTANTE AVRO' TRA X ANNI? | VYO19: INVESTENDO UN CAPITALE ANNUALE CONOSCIUTO, CON O SENZA CAPITALE INIZIALE A UN TASSO DI RIV CONOSCIUTO CHE MONTANTE AVRO' TRA X ANNI? | VZE19: INVESTENDO UN CAPITALE ANNUALE CONOSCIUTO, CON O SENZA CAPITALE INIZIALE A UN TASSO DI RIV CONOSCIUTO CHE MONTANTE AVRO' TRA X ANNI? | VZU19: INVESTENDO UN CAPITALE ANNUALE CONOSCIUTO, CON O SENZA CAPITALE INIZIALE A UN TASSO DI RIV CONOSCIUTO CHE MONTANTE AVRO' TRA X ANNI? | WAK19: INVESTENDO UN CAPITALE ANNUALE CONOSCIUTO, CON O SENZA CAPITALE INIZIALE A UN TASSO DI RIV CONOSCIUTO CHE MONTANTE AVRO' TRA X ANNI? | WBA19: INVESTENDO UN CAPITALE ANNUALE CONOSCIUTO, CON O SENZA CAPITALE INIZIALE A UN TASSO DI RIV CONOSCIUTO CHE MONTANTE AVRO' TRA X ANNI? | WBQ19: INVESTENDO UN CAPITALE ANNUALE CONOSCIUTO, CON O SENZA CAPITALE INIZIALE A UN TASSO DI RIV CONOSCIUTO CHE MONTANTE AVRO' TRA X ANNI? | WCG19: INVESTENDO UN CAPITALE ANNUALE CONOSCIUTO, CON O SENZA CAPITALE INIZIALE A UN TASSO DI RIV CONOSCIUTO CHE MONTANTE AVRO' TRA X ANNI? | WCW19: INVESTENDO UN CAPITALE ANNUALE CONOSCIUTO, CON O SENZA CAPITALE INIZIALE A UN TASSO DI RIV CONOSCIUTO CHE MONTANTE AVRO' TRA X ANNI? | WDM19: INVESTENDO UN CAPITALE ANNUALE CONOSCIUTO, CON O SENZA CAPITALE INIZIALE A UN TASSO DI RIV CONOSCIUTO CHE MONTANTE AVRO' TRA X ANNI? | WEC19: INVESTENDO UN CAPITALE ANNUALE CONOSCIUTO, CON O SENZA CAPITALE INIZIALE A UN TASSO DI RIV CONOSCIUTO CHE MONTANTE AVRO' TRA X ANNI? | WES19: INVESTENDO UN CAPITALE ANNUALE CONOSCIUTO, CON O SENZA CAPITALE INIZIALE A UN TASSO DI RIV CONOSCIUTO CHE MONTANTE AVRO' TRA X ANNI? | WFI19: INVESTENDO UN CAPITALE ANNUALE CONOSCIUTO, CON O SENZA CAPITALE INIZIALE A UN TASSO DI RIV CONOSCIUTO CHE MONTANTE AVRO' TRA X ANNI? | WFY19: INVESTENDO UN CAPITALE ANNUALE CONOSCIUTO, CON O SENZA CAPITALE INIZIALE A UN TASSO DI RIV CONOSCIUTO CHE MONTANTE AVRO' TRA X ANNI? | WGO19: INVESTENDO UN CAPITALE ANNUALE CONOSCIUTO, CON O SENZA CAPITALE INIZIALE A UN TASSO DI RIV CONOSCIUTO CHE MONTANTE AVRO' TRA X ANNI? | WHE19: INVESTENDO UN CAPITALE ANNUALE CONOSCIUTO, CON O SENZA CAPITALE INIZIALE A UN TASSO DI RIV CONOSCIUTO CHE MONTANTE AVRO' TRA X ANNI? | WHU19: INVESTENDO UN CAPITALE ANNUALE CONOSCIUTO, CON O SENZA CAPITALE INIZIALE A UN TASSO DI RIV CONOSCIUTO CHE MONTANTE AVRO' TRA X ANNI? | WIK19: INVESTENDO UN CAPITALE ANNUALE CONOSCIUTO, CON O SENZA CAPITALE INIZIALE A UN TASSO DI RIV CONOSCIUTO CHE MONTANTE AVRO' TRA X ANNI? | WJA19: INVESTENDO UN CAPITALE ANNUALE CONOSCIUTO, CON O SENZA CAPITALE INIZIALE A UN TASSO DI RIV CONOSCIUTO CHE MONTANTE AVRO' TRA X ANNI? | WJQ19: INVESTENDO UN CAPITALE ANNUALE CONOSCIUTO, CON O SENZA CAPITALE INIZIALE A UN TASSO DI RIV CONOSCIUTO CHE MONTANTE AVRO' TRA X ANNI? | WKG19: INVESTENDO UN CAPITALE ANNUALE CONOSCIUTO, CON O SENZA CAPITALE INIZIALE A UN TASSO DI RIV CONOSCIUTO CHE MONTANTE AVRO' TRA X ANNI? | WKW19: INVESTENDO UN CAPITALE ANNUALE CONOSCIUTO, CON O SENZA CAPITALE INIZIALE A UN TASSO DI RIV CONOSCIUTO CHE MONTANTE AVRO' TRA X ANNI? | WLM19: INVESTENDO UN CAPITALE ANNUALE CONOSCIUTO, CON O SENZA CAPITALE INIZIALE A UN TASSO DI RIV CONOSCIUTO CHE MONTANTE AVRO' TRA X ANNI? | WMC19: INVESTENDO UN CAPITALE ANNUALE CONOSCIUTO, CON O SENZA CAPITALE INIZIALE A UN TASSO DI RIV CONOSCIUTO CHE MONTANTE AVRO' TRA X ANNI? | WMS19: INVESTENDO UN CAPITALE ANNUALE CONOSCIUTO, CON O SENZA CAPITALE INIZIALE A UN TASSO DI RIV CONOSCIUTO CHE MONTANTE AVRO' TRA X ANNI? | WNI19: INVESTENDO UN CAPITALE ANNUALE CONOSCIUTO, CON O SENZA CAPITALE INIZIALE A UN TASSO DI RIV CONOSCIUTO CHE MONTANTE AVRO' TRA X ANNI? | WNY19: INVESTENDO UN CAPITALE ANNUALE CONOSCIUTO, CON O SENZA CAPITALE INIZIALE A UN TASSO DI RIV CONOSCIUTO CHE MONTANTE AVRO' TRA X ANNI? | WOO19: INVESTENDO UN CAPITALE ANNUALE CONOSCIUTO, CON O SENZA CAPITALE INIZIALE A UN TASSO DI RIV CONOSCIUTO CHE MONTANTE AVRO' TRA X ANNI? | WPE19: INVESTENDO UN CAPITALE ANNUALE CONOSCIUTO, CON O SENZA CAPITALE INIZIALE A UN TASSO DI RIV CONOSCIUTO CHE MONTANTE AVRO' TRA X ANNI? | WPU19: INVESTENDO UN CAPITALE ANNUALE CONOSCIUTO, CON O SENZA CAPITALE INIZIALE A UN TASSO DI RIV CONOSCIUTO CHE MONTANTE AVRO' TRA X ANNI? | WQK19: INVESTENDO UN CAPITALE ANNUALE CONOSCIUTO, CON O SENZA CAPITALE INIZIALE A UN TASSO DI RIV CONOSCIUTO CHE MONTANTE AVRO' TRA X ANNI? | WRA19: INVESTENDO UN CAPITALE ANNUALE CONOSCIUTO, CON O SENZA CAPITALE INIZIALE A UN TASSO DI RIV CONOSCIUTO CHE MONTANTE AVRO' TRA X ANNI? | WRQ19: INVESTENDO UN CAPITALE ANNUALE CONOSCIUTO, CON O SENZA CAPITALE INIZIALE A UN TASSO DI RIV CONOSCIUTO CHE MONTANTE AVRO' TRA X ANNI? | WSG19: INVESTENDO UN CAPITALE ANNUALE CONOSCIUTO, CON O SENZA CAPITALE INIZIALE A UN TASSO DI RIV CONOSCIUTO CHE MONTANTE AVRO' TRA X ANNI? | WSW19: INVESTENDO UN CAPITALE ANNUALE CONOSCIUTO, CON O SENZA CAPITALE INIZIALE A UN TASSO DI RIV CONOSCIUTO CHE MONTANTE AVRO' TRA X ANNI? | WTM19: INVESTENDO UN CAPITALE ANNUALE CONOSCIUTO, CON O SENZA CAPITALE INIZIALE A UN TASSO DI RIV CONOSCIUTO CHE MONTANTE AVRO' TRA X ANNI? | WUC19: INVESTENDO UN CAPITALE ANNUALE CONOSCIUTO, CON O SENZA CAPITALE INIZIALE A UN TASSO DI RIV CONOSCIUTO CHE MONTANTE AVRO' TRA X ANNI? | WUS19: INVESTENDO UN CAPITALE ANNUALE CONOSCIUTO, CON O SENZA CAPITALE INIZIALE A UN TASSO DI RIV CONOSCIUTO CHE MONTANTE AVRO' TRA X ANNI? | WVI19: INVESTENDO UN CAPITALE ANNUALE CONOSCIUTO, CON O SENZA CAPITALE INIZIALE A UN TASSO DI RIV CONOSCIUTO CHE MONTANTE AVRO' TRA X ANNI? | WVY19: INVESTENDO UN CAPITALE ANNUALE CONOSCIUTO, CON O SENZA CAPITALE INIZIALE A UN TASSO DI RIV CONOSCIUTO CHE MONTANTE AVRO' TRA X ANNI? | WWO19: INVESTENDO UN CAPITALE ANNUALE CONOSCIUTO, CON O SENZA CAPITALE INIZIALE A UN TASSO DI RIV CONOSCIUTO CHE MONTANTE AVRO' TRA X ANNI? | WXE19: INVESTENDO UN CAPITALE ANNUALE CONOSCIUTO, CON O SENZA CAPITALE INIZIALE A UN TASSO DI RIV CONOSCIUTO CHE MONTANTE AVRO' TRA X ANNI? | WXU19: INVESTENDO UN CAPITALE ANNUALE CONOSCIUTO, CON O SENZA CAPITALE INIZIALE A UN TASSO DI RIV CONOSCIUTO CHE MONTANTE AVRO' TRA X ANNI? | WYK19: INVESTENDO UN CAPITALE ANNUALE CONOSCIUTO, CON O SENZA CAPITALE INIZIALE A UN TASSO DI RIV CONOSCIUTO CHE MONTANTE AVRO' TRA X ANNI? | WZA19: INVESTENDO UN CAPITALE ANNUALE CONOSCIUTO, CON O SENZA CAPITALE INIZIALE A UN TASSO DI RIV CONOSCIUTO CHE MONTANTE AVRO' TRA X ANNI? | WZQ19: INVESTENDO UN CAPITALE ANNUALE CONOSCIUTO, CON O SENZA CAPITALE INIZIALE A UN TASSO DI RIV CONOSCIUTO CHE MONTANTE AVRO' TRA X ANNI? | XAG19: INVESTENDO UN CAPITALE ANNUALE CONOSCIUTO, CON O SENZA CAPITALE INIZIALE A UN TASSO DI RIV CONOSCIUTO CHE MONTANTE AVRO' TRA X ANNI? | XAW19: INVESTENDO UN CAPITALE ANNUALE CONOSCIUTO, CON O SENZA CAPITALE INIZIALE A UN TASSO DI RIV CONOSCIUTO CHE MONTANTE AVRO' TRA X ANNI? | XBM19: INVESTENDO UN CAPITALE ANNUALE CONOSCIUTO, CON O SENZA CAPITALE INIZIALE A UN TASSO DI RIV CONOSCIUTO CHE MONTANTE AVRO' TRA X ANNI? | XCC19: INVESTENDO UN CAPITALE ANNUALE CONOSCIUTO, CON O SENZA CAPITALE INIZIALE A UN TASSO DI RIV CONOSCIUTO CHE MONTANTE AVRO' TRA X ANNI? | XCS19: INVESTENDO UN CAPITALE ANNUALE CONOSCIUTO, CON O SENZA CAPITALE INIZIALE A UN TASSO DI RIV CONOSCIUTO CHE MONTANTE AVRO' TRA X ANNI? | XDI19: INVESTENDO UN CAPITALE ANNUALE CONOSCIUTO, CON O SENZA CAPITALE INIZIALE A UN TASSO DI RIV CONOSCIUTO CHE MONTANTE AVRO' TRA X ANNI? | XDY19: INVESTENDO UN CAPITALE ANNUALE CONOSCIUTO, CON O SENZA CAPITALE INIZIALE A UN TASSO DI RIV CONOSCIUTO CHE MONTANTE AVRO' TRA X ANNI? | XEO19: INVESTENDO UN CAPITALE ANNUALE CONOSCIUTO, CON O SENZA CAPITALE INIZIALE A UN TASSO DI RIV CONOSCIUTO CHE MONTANTE AVRO' TRA X ANNI?
A23: Avvertenza: I risultati di calcolo sono basati su procedure che utilizzano dati stimati dall'aderente e pertanto potrebbero non trovare conferma nel corso del rapporto. Quindi la posizione
A24: individuale maturata e la prestazione pensionistica corrispondente risulteranno differenti da quelle riportate nel progetto esemplificativo individuale
H26: PROGETTO ESEMPLIFICATIVO INDIVIDUALE
H29: CALCOLO RENDITA VITALIZIA
E31: PROPRIETA' INTELLETTUALE E REALIZZAZIONE DI GIUSEPPE NICOLETTI - E' VIETATA LA RIPRODUZIONE E/O COMMERCIALIZZAZIONE ANCHE PARZIALE

Sheet TFR
E3: CONVIENE INVESTIRE IL TFR IN UN FONDO O LASCIARLO IN AZIENDA?
C6: RETRIBUZIONE ANNUALE INIZIALE | H6: 30000
C8: % INCREMENTO ANNUO RETRIBUZIONE | H8: 2 | I8: la percentuale inserita può essere modificata secondo stime individuali
K9: ANNI
C10: ANNO INIZIO INVESTIMENTO TFR NEL FONDO | H10: 2007 | K10: =+H11-H10+1 -> 28 | M10: TASSAZIONE
C11: ANNO FINE INVESTIMENTO NEL FONDO | H11: 2034 | L11: RISCATTO | O11: PENSIONAMENTO
I12: O/W RIV | J12: SOLO TFR | L12: FONDO | M12: AZIENDA | O12: FONDO | P12: AZIENDA
C13: TFR YTD NEL FONDO | H13: =VLOOKUP(H11,CALCOLI1!$H$29:$U$59,5) -> 130056.7668 | I13: =VLOOKUP(H11,CALCOLI1!$H$29:$U$59,14) -> 47720.74389 | J13: =+H13-I13 -> 82336.02291 | L13: 0.23 | M13: =+CALCOLI1!Q69/100 -> 0.2563181964 | O13: =VLOOKUP(K10,CALCOLI1!$H$72:$J$113,3)/100 -> 0.111 | P13: =+M13 -> 0.2563181964
C14: TFR YTD IN AZIENDA | H14: =VLOOKUP(H11,CALCOLI1!$H$29:$U$59,4) -> 123085.374 | I14: =VLOOKUP(H11,CALCOLI1!$H$29:$U$59,13) -> 40749.35114 | J14: =+H14-I14 -> 82336.02291
C16: DELTA FONDO - AZIENDA | H16: =+H13-H14 -> 6971.39275 | L16: =+M13-L13 -> 0.02631819643 | O16: =+P13-O13 -> 0.1453181964
D19: <===== campi modificabili
D20: <===== risultato | I20: <===== modifica facoltativa
A22: ATTENZIONE: LE PERCENTUALI DI RIVALUTAZIONE DOPO IL 2013 SONO STIMATE CON INFLAZIONE CHE SI INCREMENTA DEL 2% ALL'ANNO E FONDO CHE SI MANTIENE STABILE AL 4% ANNUO
C23: PROPRIETA' INTELLETTUALE E REALIZZAZIONE DI GIUSEPPE NICOLETTI - E' VIETATA LA RIPRODUZIONE E/O COMMERCIALIZZAZIONE ANCHE PARZIALE

Sheet TCM
C3: TRA QUANTO TEMPO INVESTENDO UN CAPITALE NOTO A UN TASSO ANNUO DI RENDIMENTO NOTO POTRO' AVERE IL MONTANTE CHE MI SERVE?
C5: CAPITALE INVESTITO | F5: 5000 | H5: anni | I5: mesi | J5: giorni
C6: MONTANTE DESIDERATO | F6: 20000 | H6: =+CALCOLI!H8 -> 35 | I6: =+CALCOLI!I8 -> 4 | J6: =+CALCOLI!J8 -> 4
C7: TASSO ANNUO RENDIMENTO | F7: 4
C9: QUANTO CAPITALE DEVO INVESTIRE PER OTTENERE TRA X ANNI UN MONTANTE DESIDERATO? | Q9: <===== dati modificabili
C11: MONTANTE DESIDERATO | F11: 556000 | Q11: <===== dati fissi
C12: TASSO ANNUO RENDIMENTO | F12: 3
C13: PERIODO INVESTIMENTO ANNI | F13: 6 | Q13: <===== risultato
C14: CAPITALE DA INVESTIRE | F14: =+CALCOLI!M8 -> 465641.2467
Q16: <===== modifica facoltativa
C19: INVESTENDO UN CAPITALE ANNUALE CONOSCIUTO, CON O SENZA CAPITALE INIZIALE A UN TASSO DI RIV CONOSCIUTO CHE MONTANTE AVRO' TRA X ANNI?
C21: EVENTUALE CAPITALE INIZIALE | F21: 409019.76 | J21: =IF(F26=0,0,VLOOKUP(F26,CALCOLI1!$L$74:$U$123,5)) -> 808339.1547 | K21: MONTANTE FINALE
C22: VERSAMENTO ANNUO | F22: 50000 | J22: =IF(F26=0,0,VLOOKUP(F26,CALCOLI1!$L$74:$V$123,11)) -> 99319.39467 | K22: O/W RIVALUTAZIONE
C23: INCREM VERSAMENTO ANNUO | F23: 0 | G23: (*) | J23: =IF(F26=0,0,VLOOKUP(F26,CALCOLI1!$L$74:$W$123,12)) -> 709019.76 | K23: CAPITALE INVESTITO
C24: TASSO ANNUO RENDIMENTO | F24: 3 | J24: 0.05 | K24: % CARICAMENTO
C25: INCREMENTO ANNUO RIV | F25: 1 | J25: 0.4 | K25: % NON RETROC. SU RIV.
C26: ANNI INVESTIMENTO | F26: 6 | J26: (*) la percentuale inserita può essere modificata secondo stime personali
D28: PROPRIETA' INTELLETTUALE E REALIZZAZIONE DI GIUSEPPE NICOLETTI - E' VIETATA LA RIPRODUZIONE E/O COMMERCIALIZZAZIONE ANCHE PARZIALE

Sheet M&R
B4: PROGETTO ESEMPLIFICATIVO PERSONALIZZATO: STIMA DELLA PENSIONE COMPLEMENTARE | M4: ETA' MINIMA 51 ANNI=========> | Q4: =+CALCOLI1!S3 -> 66 | R4: < === età
B6: SESSO | D6: M | E6: (M o F) | G6: ANNO DI NASCITA | I6: 1953 | J6: ANNO INIZIO VERSAMENTI | L6: 1986 | M6: ANNO FINE VERSAMENTI | O6: 2019 | Q6: =IF(O6-L6>0,O6-L6,0) -> 33 | R6: < === anni versamenti
B8: RETRIBUZIONE ANNUALE | D8: 100000 | G8: % INCR. RETRIB. ANNUA | I8: 1 | J8: TFR ANNUALE | L8: =+CALCOLI1!E11 -> 7407.407407 | M8: % TFR ACCANTONATO | O8: 100 | R8: <== campi modificabili
B10: CODICE AZIENDA | D10: 1 | E10: (**) | G10: QUALIFICA CONTRATTUALE | J10: CONTR VOLONTARIO INIZIO € | L10: 20000 | R10: <== modifica facoltativa
B12: % RIV FONDO | D12: 3 | E12: (°) | G12: % CARICAMENTO | I12: 0.05 | J12: % SU RIV CON OVER PERF PER ASS | L12: =0.4+CALCOLI1!AT5 -> 0.45 | R12: <===== dati fissi
B14: CONTRIBUTI YTD | D14: =+CALCOLI1!E22 -> 406743.3229 | G14: TFR YTD | I14: =+CALCOLI1!E23 -> 285039.3959 | J14: TOT YTD CON RIV | L14: =+CALCOLI1!E24 -> 824925.6902 | M14: SOLO RIVALUTAZIONE | O14: =+CALCOLI1!E25 -> 133142.9715 | R14: <===== risultato
B15: ULTIMA RETRIB PERCEPITA | D15: =+CALCOLI1!U7 -> 190936.6488
B19: (**) 1=IBM/IBM SERV FIN/TOSHIBA/ACG/MODIS/HCL/BP2I/SEM; 2=LENOVO+ GLOBAL TEC;
B20: (*) valore calcolato su superstite di età < di 10 anni a quella dell'aderente
B21: (^) tasso di sostituzione calcolato sull'ultima retribuzione lorda percepita
B22: (°) percentuale modificabile in funzione del comparto da 1% a 4%
B25: PROPRIETA' INTELLETTUALE E REALIZZAZIONE DI GIUSEPPE NICOLETTI - E' VIETATA LA RIPRODUZIONE E/O COMMERCIALIZZAZIONE ANCHE PARZIALE

Sheet CALCOLI1 (hidden)
C3: DETERMINAZIONE DELLA RENDITA IMMEDIATA, REVERSIBILE, CERTA PER 5 E 10 ANNI, CONTROASSICURATA CASO MORTE | S3: =IF($E$7-$E$5>0,$E$7-$E$5,0) -> 66 | U3: =IF($E$4="M",VLOOKUP($S$3,$X$13:$Y$102,2),VLOOKUP($S$3,$AA$13:$AB$100,2)) -> 0 | AQ3: calcolo over performance per M&R
C4: SESSO | E4: =+'M&R'!D6 -> M | Q4: RENDITA IMMEDIATA | U4: RETRIBUZIONE | V4: TASSO SOST
C5: ANNO DI NASCITA | E5: =IF('M&R'!I6>0,'M&R'!I6,0) -> 1953 | Q5: ETA' ALLA PENSIONE | S5: =IF($E$7-$E$5>0,$E$7-$E$5+U3,0) -> 66 | Z5: RENDITA | AA5: VALORE | AB5: TASSO SOST.(^) | AQ5: =+'M&R'!D12 -> 3 | AR5: =IF(AQ5>2.5,AQ5-2.5,0) -> 0.5 | AS5: =+AR5*10 -> 5 | AT5: =+AS5*0.01 -> 0.05
C6: ANNO INIZIO VERSAMENTI | E6: =IF('M&R'!L6>0,'M&R'!L6,0) -> 1986 | Q6: PENSIONE COEFF | T6: =IF($E$4="M",VLOOKUP($S$5,CALCOLI!$F$16:$H$36,2),VLOOKUP($S$5,CALCOLI!$F$16:$H$36,3)) -> 0.0469 | Z6: ORDINARIA | AA6: =+T7 -> 38689.01487 | AB6: =+V7 -> 0.2026274951
C7: ANNO FINE VERSAMENTI | E7: =IF('M&R'!O6>0,'M&R'!O6,0) -> 2019 | H7: =+E7-E6 -> 33 | Q7: VALORE PENSIONE ANNUA | T7: =+E24*T6 -> 38689.01487 | U7: =IF($S$5>0,VLOOKUP($S$5,CALCOLI!$A$41:$J$110,10),0) -> 190936.6488 | V7: =+T7/U7 -> 0.2026274951 | Y7: =+AA6*73.53% -> 28448.03264 | Z7: REVERSIBILE | AA7: =+Y7 -> 28448.03264 | AB7: =+V11 -> 0.1489919971
H8: % INCR RETR ANNUALE | L8: % RIV FONDO | N8: % CARIC | O8: % SU RIV | Q8: RENDITA REVERSIBILE | Z8: AL SUPERSTITE * | AA8: =+U11 -> 17580.81631 | AB8: =+W11 -> 0.09207669884
C9: RETRIBUZIONE ANNUALE | E9: =+'M&R'!D8 -> 100000 | H9: =+'M&R'!I8 -> 1 | I9: =IF(E9>46031,46031,E9) -> 46031 | J9: =IF(I9<46031,0,E9-I9) -> 53969 | L9: =+'M&R'!D12 -> 3 | N9: =+'M&R'!I12 -> 0.05 | O9: =+'M&R'!L12 -> 0.45 | Q9: ETA' ALLA PENSIONE | S9: =+S5 -> 66 | U9: AL SUPERSTITE | Y9: =+T15*99.29% -> 38217.74637 | Z9: CERTA 5 ANNI | AA9: =+Y9 -> 38217.74637 | AB9: =+V15 -> 0.2001593021
C10: % INCREMENTO RETRIB | I10: 2 | J10: 7 | Q10: PENSIONE COEFF | T10: =IF($E$4="M",VLOOKUP($S$5,CALCOLI!$Z$5:$AB$25,2),VLOOKUP($S$5,CALCOLI!$Z$5:AJ$25,3)) -> 0.03552 | Y10: =+T19*97.11% -> 36665.67591 | Z10: CERTA 10 ANNI | AA10: =+Y10 -> 36665.67591 | AB10: =+V19 -> 0.1920305826
C11: TFR ANNUALE | E11: =+E9/13.5 -> 7407.407407 | I11: =+I9*I10% -> 920.62 | J11: =+J9*J10% -> 3777.83 | K11: =+I11+J11 -> 4698.45 | Q11: VALORE PENSIONE ANNUA | T11: =+E24*T10 -> 29301.36052 | U11: =+T11*60% -> 17580.81631 | V11: =+Y7/U7 -> 0.1489919971 | W11: =+U11/U7 -> 0.09207669884 | Y11: =+T23*85.56% -> 26735.94721 | Z11: CONTROASSICURATA | AA11: =+Y11 -> 26735.94721 | AB11: =+V23 -> 0.140025225
C12: % TFR ACCANTONATO | E12: =+'M&R'!O8 -> 100 | K12: =+K11/E9% -> 4.69845 | O12: CTR DIR | P12: CTR AZ | Q12: RENDITA CERTA 5 ANNI | X12: maschi | AA12: femmine
C13: TFR ACCANTONATO | E13: =+E11*E12% -> 7407.407407 | Q13: ETA' ALLA PENSIONE | S13: =+S9 -> 66 | X13: 0 | Y13: -2 | AA13: 0 | AB13: -2
C14: % CONTR DIP AL FONDO | E14: =+O19 -> 4.501160845 | I14: 0 | K14: 63000 | L14: =+K14-I14 -> 63000 | M14: =IF(E9>L14,L14,E9) -> 63000 | N14: =+E9-M14 -> 37000 | O14: =+M14*3.25% -> 2047.5 | P14: =+M14*2.89% -> 1820.7 | Q14: PENSIONE COEFF | T14: =IF($E$4="M",VLOOKUP($S$5,CALCOLI!$J$16:$L$36,2),VLOOKUP($S$5,CALCOLI!$J$16:$L$36,3)) -> 0.04666 | X14: =1+X13 -> 1 | Y14: -2 | AA14: =1+AA13 -> 1 | AB14: -2
C15: %CONTR AZ AL FONDO | E15: =+P19 -> 3.661789775 | I15: 63000.01 | K15: 76411.46 | L15: =+K15-I15 -> 13411.45 | M15: =IF(N14>=L15,L15,N14) -> 13411.45 | N15: =+N14-M15 -> 23588.55 | O15: =+M15*5.95% -> 797.981275 | P15: =+M15*4.46% -> 598.15067 | Q15: VALORE PENSIONE ANNUA | T15: =+E24*T14 -> 38491.03271 | V15: =+Y9/U7 -> 0.2001593021 | X15: =1+X14 -> 2 | Y15: -2 | AA15: =1+AA14 -> 2 | AB15: -2
C16: CONTRIBUTO DIPENDENTE | E16: =+O18 -> 4501.160845 | I16: 76411.47 | K16: 87458.9 | L16: 11047.43 | M16: =IF(N15>=L16,L16,N15) -> 11047.43 | N16: =+N15-M16 -> 12541.12 | O16: =+M16*6.7% -> 740.17781 | P16: =+M16*5.03% -> 555.685729 | Q16: RENDITA CERTA 10 ANNI | X16: 3 | Y16: -2 | AA16: 3 | AB16: -2
C17: CONTRIBUTO AZIENDA | E17: =+P18 -> 3661.789775 | I17: 87458.91 | K17: 999999 | L17: 912540.09 | M17: =+N16 -> 12541.12 | O17: =+M17*7.3% -> 915.50176 | P17: =+M17*5.48% -> 687.253376 | Q17: ETA' ALLA PENSIONE | S17: =+S13 -> 66 | X17: 4 | Y17: -2 | AA17: 4 | AB17: -2
C18: IMPORTO CONTR VOL | O18: =SUM(O14:O17) -> 4501.160845 | P18: =SUM(P14:P17) -> 3661.789775 | Q18: PENSIONE COEFF | T18: =IF($E$4="M",VLOOKUP($S$5,CALCOLI!$N$16:$P$36,2),VLOOKUP($S$5,CALCOLI!$N$16:$P$36,3)) -> 0.04577 | X18: 5 | Y18: -2 | AA18: 5 | AB18: -2
C19: TOTALE | E19: =+E13+E16+E17+E18 -> 15570.35803 | L19: ALIQUOTA MEDIA IBM TOSHIBA | O19: =+O18/E9% -> 4.501160845 | P19: =+P18/E9% -> 3.661789775 | Q19: VALORE PENSIONE ANNUA | T19: =+E24*T18 -> 37756.84884 | V19: =+Y10/U7 -> 0.1920305826 | X19: 6 | Y19: -2 | AA19: 6 | AB19: -2
C20: VERSAMENTO INIZIALE | E20: =+'M&R'!L10*99% -> 19800 | Q20: RENDITA CONTRASSICURATA | X20: 7 | Y20: -2 | AA20: 7 | AB20: -2
Q21: ETA' ALLA PENSIONE | S21: =+S17 -> 66 | X21: 8 | Y21: -2 | AA21: 8 | AB21: -2
C22: VERSAMENTI YTD | E22: =IF(H7>0,VLOOKUP(H7,CALCOLI!$A$41:$I$110,9),0) -> 406743.3229 | Q22: PENSIONE COEFF | T22: =IF($E$4="M",VLOOKUP($S$5,CALCOLI!$R$16:$T$36,2),VLOOKUP($S$5,CALCOLI!$R$16:$T$36,3)) -> 0.03788 | X22: 9 | Y22: -2 | AA22: 9 | AB22: -2
C23: TFR YTD | E23: =IF(H7>0,VLOOKUP(H7,CALCOLI!$A$41:$H$110,6),0) -> 285039.3959 | Q23: VALORE PENSIONE ANNUA | T23: =+E24*T22 -> 31248.18515 | V23: =+Y11/U7 -> 0.140025225 | X23: 10 | Y23: -2 | AA23: 10 | AB23: -2
C24: TOT YTD CON RIV | E24: =IF(H7>0,VLOOKUP(H7,CALCOLI!$A$41:$H$110,8),0) -> 824925.6902 | X24: 11 | Y24: -2 | AA24: 11 | AB24: -2
C25: SOLO RIV | E25: =+E24-E23-E22 -> 133142.9715 | L25: =+TFR!H8+100 -> 102 | X25: 12 | Y25: -2 | AA25: 12 | AB25: -2
I26: =+TFR!H6 -> 30000 | X26: 13 | Y26: -2 | AA26: 13 | AB26: -2
C27: RETRIBUZIONE | D27: IN | E27: ANNI | H27: ANNI | I27: RETR ANNUALE | J27: TFR | K27: TFRYTD ISTAT | L27: TFRYTD FONDO | M27: CAP+RIV | N27: RIV ISTAT | O27: RIV FONDO | Q27: RIV ISTAT | R27: RIV TFR | T27: ytd riv istat | U27: ytd riv fondo | X27: 14 | Y27: -2 | AA27: 14 | AB27: -2
C28: =IF(D28<>0,0,$I$26) -> 30000 | D28: =+TFR!$H$10-E28 -> 0 | E28: 2007 | I28: =+C28 -> 30000 | J28: =+I28/13.5 -> 2222.222222 | K28: =+J28 -> 2222.222222 | X28: 15 | Y28: -2 | AA28: 15 | AB28: -2
C29: =IF(D29<>0,0,$I$26) -> 0 | D29: =+TFR!$H$10-E29 -> -1 | E29: 2008 | H29: 2008 | I29: =IF(I28=0,C29,+I28*$L$25/100) -> 30600 | J29: =+I29/13.5 -> 2266.666667 | K29: =+J29+K28+Q29 -> 4556.222222 | L29: =+K28+J29+R29 -> 4585.777778 | N29: 3.03 | O29: 4.36 | Q29: =+K28*N29% -> 67.33333333 | R29: =+K28*O29% -> 96.88888889 | T29: =+Q29 -> 67.33333333 | U29: =+R29 -> 96.88888889 | X29: 16 | Y29: -2 | AA29: 16 | AB29: -2
C30: =IF(D30<>0,0,$I$26) -> 0 | D30: =+TFR!$H$10-E30 -> -2 | E30: 2009 | H30: 2009 | I30: =IF(I29=0,C30,+I29*$L$25/100) -> 31212 | J30: 2312 | K30: 6969.370356 | L30: =+L29+J30+R30 -> 7092.214756 | N30: 2.22 | O30: 4.24 | Q30: 101.1481333 | R30: =+L29*O30% -> 194.4369778 | T30: =+Q30+T29 -> 168.4814667 | U30: =+R30+U29 -> 291.3258667 | X30: 17 | Y30: -2 | AA30: 17 | AB30: -2
C31: =IF(D31<>0,0,$I$26) -> 0 | D31: =+TFR!$H$10-E31 -> -3 | E31: 2010 | H31: 2010 | I31: =IF(I30=0,C31,+I30*$L$25/100) -> 31836.24 | J31: 2358.24 | K31: 9531.812907 | L31: =+L30+J31+R31 -> 9719.958916 | N31: 2.93 | O31: 3.8 | Q31: 204.2025514 | R31: =+L30*O31% -> 269.5041607 | T31: =+Q31+T30 -> 372.6840181 | U31: =+R31+U30 -> 560.8300274 | X31: 18 | Y31: -2 | AA31: 18 | AB31: -2
C32: 0 | D32: =+TFR!$H$10-E32 -> -4 | E32: 2011 | H32: 2011 | I32: 32472.9648 | J32: 2405.4048 | K32: 12307.05205 | L32: =+L31+J32+R32 -> 12515.13407 | N32: 3.88 | O32: 4.01 | Q32: 369.8343408 | R32: =+L31*O32% -> 389.7703525 | T32: 742.5183589 | U32: 950.6003799 | X32: 19 | Y32: -2 | AA32: 19 | AB32: -2
C33: 0 | D33: =+TFR!$H$10-E33 -> -5 | E33: 2012 | H33: 2012 | I33: 33122.4241 | J33: 2453.512896 | K33: 15166.69766 | L33: =+L32+J33+R33 -> 15447.9766 | N33: 3.3 | O33: 3.83 | Q33: 406.1327176 | R33: =+L32*O33% -> 479.3296348 | T33: 1148.651076 | U33: 1429.930015 | X33: 20 | Y33: -2 | AA33: 20 | AB33: -2
C34: 0 | D34: =+TFR!$H$10-E34 -> -6 | E34: 2013 | H34: 2013 | I34: 33784.87258 | J34: 2502.583154 | K34: 17960.48141 | L34: =+L33+J34+R34 -> 18554.57564 | N34: 1.92 | O34: 3.91 | Q34: 291.2005951 | R34: =+L33*O34% -> 604.015885 | T34: 1439.851672 | U34: 2033.9459 | X34: 21 | Y34: -2 | AA34: 21 | AB34: -2
C35: 0 | D35: =+TFR!$H$10-E35 -> -7 | E35: 2014 | H35: 2014 | I35: 34460.57003 | J35: 2552.634817 | K35: =+J35+K34+Q35 -> 20820.24046 | L35: =+L34+J35+R35 -> 21830.83891 | N35: =0.21+1.5 -> 1.71 | O35: 3.9 | Q35: =+K34*N35% -> 307.1242321 | R35: =+L34*O35% -> 723.6284499 | T35: 1746.975904 | U35: 2757.57435 | X35: 22 | Y35: -2 | AA35: 22 | AB35: -2
C36: 0 | D36: =+TFR!$H$10-E36 -> -8 | E36: =+E35+1 -> 2015 | H36: =+H35+1 -> 2015 | I36: 35149.78143 | J36: 2603.687513 | K36: =+J36+K35+Q36 -> 23840.33278 | L36: 25187.69036 | N36: 2 | O36: =4-0.55 -> 3.45 | Q36: 416.4048092 | R36: 753.1639422 | T36: 2163.380713 | U36: 3510.738292 | X36: 23 | Y36: -2 | AA36: 23 | AB36: -2
C37: 0 | D37: =+TFR!$H$10-E37 -> -9 | E37: =+E36+1 -> 2016 | H37: =+H36+1 -> 2016 | I37: 35852.77706 | J37: 2655.761264 | K37: 27068.26203 | L37: 28712.42694 | N37: 2.4 | O37: =4-0.55 -> 3.45 | Q37: 572.1679868 | R37: 868.9753175 | T37: 2735.5487 | U37: 4379.713609 | X37: 24 | Y37: -2 | AA37: 24 | AB37: -2
C38: 0 | D38: =+TFR!$H$10-E38 -> -10 | E38: 2017 | H38: 2017 | I38: 36569.8326 | J38: 2708.876489 | K38: 30535.04986 | L38: 32411.88216 | N38: 2.8 | O38: 3.45 | Q38: 757.9113369 | R38: 990.5787295 | T38: 3493.460037 | U38: 5370.292339 | X38: 25 | Y38: -2 | AA38: 25 | AB38: -2
C39: 0 | D39: =+TFR!$H$10-E39 -> -11 | E39: 2018 | H39: 2018 | I39: 37301.22925 | J39: 2763.054019 | K39: 34275.22547 | L39: 36293.14611 | N39: 3.2 | O39: 3.45 | Q39: 977.1215955 | R39: 1118.209935 | T39: 4470.581632 | U39: 6488.502273 | X39: 26 | Y39: -2 | AA39: 26 | AB39: -2
C40: 0 | D40: =+TFR!$H$10-E40 -> -12 | E40: 2019 | H40: 2019 | I40: 38047.25384 | J40: 2818.315099 | K40: 38190.34779 | L40: 40363.57475 | N40: 3.2 | O40: 3.45 | Q40: 1096.807215 | R40: 1252.113541 | T40: 5567.388847 | U40: 7740.615814 | X40: 27 | Y40: -2 | AA40: 27 | AB40: -2
C41: 0 | D41: =+TFR!$H$10-E41 -> -13 | E41: 2020 | H41: 2020 | I41: 38808.19891 | J41: 2874.681401 | K41: 42287.12032 | L41: 44630.79948 | N41: 3.2 | O41: 3.45 | Q41: 1222.091129 | R41: 1392.543329 | T41: 6789.479976 | U41: 9133.159143 | X41: 28 | Y41: -2 | AA41: 28 | AB41: -2
C42: 0 | D42: =+TFR!$H$10-E42 -> -14 | E42: 2021 | H42: 2021 | I42: 39584.36289 | J42: 2932.175029 | K42: 46572.4832 | L42: 49102.73709 | N42: 3.2 | O42: 3.45 | Q42: 1353.18785 | R42: 1539.762582 | T42: 8142.667826 | U42: 10672.92173 | X42: 29 | Y42: -2 | AA42: 29 | AB42: -2
C43: 0 | D43: =+TFR!$H$10-E43 -> -15 | E43: 2022 | H43: 2022 | I43: 40376.05015 | J43: 2990.81853 | K43: 51053.62119 | L43: 53787.60005 | N43: 3.2 | O43: 3.45 | Q43: 1490.319462 | R43: 1694.04443 | T43: 9632.987289 | U43: 12366.96616 | X43: 30 | Y43: -2 | AA43: 30 | AB43: -2
C44: 0 | D44: =+TFR!$H$10-E44 -> -16 | E44: 2023 | H44: 2023 | I44: 41183.57115 | J44: 3050.6349 | K44: 55737.97197 | L44: 58693.90716 | N44: 3.2 | O44: 3.45 | Q44: 1633.715878 | R44: 1855.672202 | T44: 11266.70317 | U44: 14222.63836 | X44: 31 | Y44: -2 | AA44: 31 | AB44: -2
C45: 0 | D45: =+TFR!$H$10-E45 -> -17 | E45: 2024 | H45: 2024 | I45: 42007.24258 | J45: 3111.647598 | K45: 60633.23467 | L45: 63830.49455 | N45: 3.2 | O45: 3.45 | Q45: 1783.615103 | R45: 2024.939797 | T45: 13050.31827 | U45: 16247.57815 | X45: 32 | Y45: -2 | AA45: 32 | AB45: -2
C46: 0 | D46: =+TFR!$H$10-E46 -> -18 | E46: 2025 | H46: 2025 | I46: 42847.38743 | J46: 3173.88055 | K46: 65747.37873 | L46: 69206.52716 | N46: 3.2 | O46: 3.45 | Q46: 1940.263509 | R46: 2202.152062 | T46: 14990.58178 | U46: 18449.73022 | X46: 33 | Y46: -2 | AA46: 33 | AB46: -2
C47: 0 | D47: =+TFR!$H$10-E47 -> -19 | E47: 2026 | H47: 2026 | I47: 43704.33518 | J47: 3237.358161 | K47: 71088.65301 | L47: 74831.51051 | N47: 3.2 | O47: 3.45 | Q47: 2103.916119 | R47: 2387.625187 | T47: 17094.4979 | U47: 20837.3554 | X47: 34 | Y47: -2 | AA47: 34 | AB47: -2
C48: 0 | D48: =+TFR!$H$10-E48 -> -20 | E48: 2027 | H48: 2027 | I48: 44578.42188 | J48: 3302.105324 | K48: 76665.59523 | L48: 80715.30295 | N48: 3.2 | O48: 3.45 | Q48: 2274.836896 | R48: 2581.687113 | T48: 19369.33479 | U48: 23419.04252 | X48: 35 | Y48: -2 | AA48: 35 | AB48: -2
C49: 0 | D49: =+TFR!$H$10-E49 -> -21 | E49: 2028 | H49: 2028 | I49: 45469.99032 | J49: 3368.147431 | K49: 82487.04171 | L49: 86868.12833 | N49: 3.2 | O49: 3.45 | Q49: 2453.299047 | R49: 2784.677952 | T49: 21822.63384 | U49: 26203.72047 | X49: 36 | Y49: -2 | AA49: 36 | AB49: -2
C50: 0 | D50: =+TFR!$H$10-E50 -> -22 | E50: 2029 | H50: 2029 | I50: 46379.39012 | J50: 3435.51038 | K50: 88562.13742 | L50: 93300.58914 | N50: 3.2 | O50: 3.45 | Q50: 2639.585335 | R50: 2996.950427 | T50: 24462.21918 | U50: 29200.6709 | X50: 37 | Y50: -2 | AA50: 37 | AB50: -2
C51: 0 | D51: =+TFR!$H$10-E51 -> -23 | E51: 2030 | H51: 2030 | I51: 47306.97793 | J51: 3504.220587 | K51: 94900.3464 | L51: 100023.6801 | N51: 3.2 | O51: 3.45 | Q51: 2833.988397 | R51: 3218.870325 | T51: 27296.20757 | U51: 32419.54122 | X51: 38 | Y51: -2 | AA51: 38 | AB51: -2
C52: 0 | D52: =+TFR!$H$10-E52 -> -24 | E52: 2031 | H52: 2031 | I52: 48253.11748 | J52: 3574.304999 | K52: 101511.4625 | L52: 107048.802 | N52: 3.2 | O52: 3.45 | Q52: 3036.811085 | R52: 3450.816962 | T52: 30333.01866 | U52: 35870.35818 | X52: 39 | Y52: -2 | AA52: 39 | AB52: -2
C53: 0 | D53: =+TFR!$H$10-E53 -> -25 | E53: 2032 | H53: 2032 | I53: 49218.17983 | J53: 3645.791099 | K53: 108405.6204 | L53: 114387.7768 | N53: 3.2 | O53: 3.45 | Q53: 3248.3668 | R53: 3693.183669 | T53: 33581.38546 | U53: 39563.54185 | X53: 40 | Y53: -2 | AA53: 40 | AB53: -2
C54: 0 | D54: =+TFR!$H$10-E54 -> -26 | E54: 2033 | H54: 2033 | I54: 50202.54343 | J54: 3718.706921 | K54: 115593.3072 | L54: 122052.862 | N54: 3.2 | O54: 3.45 | Q54: 3468.979852 | R54: 3946.378299 | T54: 37050.36531 | U54: 43509.92015 | X54: 41 | Y54: -2 | AA54: 41 | AB54: -2
C55: 0 | D55: =+TFR!$H$10-E55 -> -27 | E55: 2034 | H55: 2034 | I55: 51206.5943 | J55: 3793.081059 | K55: 123085.374 | L55: 130056.7668 | N55: 3.2 | O55: 3.45 | Q55: 3698.985829 | R55: 4210.823739 | T55: 40749.35114 | U55: 47720.74389 | X55: 42 | Y55: -2 | AA55: 42 | AB55: -2
C56: 0 | D56: =+TFR!$H$10-E56 -> -28 | E56: 2035 | H56: 2035 | I56: 52230.72619 | J56: 3868.94268 | K56: 130893.0487 | L56: 138412.6679 | N56: 3.2 | O56: 3.45 | Q56: 3938.73197 | R56: 4486.958455 | T56: 44688.08311 | U56: 52207.70234 | X56: 43 | Y56: -2 | AA56: 43 | AB56: -2
C57: 0 | D57: =+TFR!$H$10-E57 -> -29 | E57: 2036 | H57: 2036 | I57: 53275.34071 | J57: 3946.321534 | K57: 139027.9478 | L57: 147134.2265 | N57: 3.2 | O57: 3.45 | Q57: 4188.577558 | R57: 4775.237044 | T57: 48876.66067 | U57: 56982.93939 | X57: 44 | Y57: -2 | AA57: 44 | AB57: -2
C58: 0 | D58: =+TFR!$H$10-E58 -> -30 | E58: 2037 | H58: 2037 | I58: 54340.84752 | J58: 4025.247965 | K58: 147502.0901 | L58: 156235.6053 | N58: 3.2 | O58: 3.45 | Q58: 4448.894329 | R58: 5076.130815 | T58: 53325.555 | U58: 62059.0702 | X58: 45 | Y58: -2 | AA58: 45 | AB58: -2
C59: 0 | D59: =+TFR!$H$10-E59 -> -31 | E59: 2038 | H59: 2038 | I59: 55427.66447 | J59: 4105.752924 | K59: 156327.9099 | L59: 165731.4866 | N59: 3.2 | O59: =4-0.55 -> 3.45 | Q59: 4720.066883 | R59: 5390.128382 | T59: 58045.62188 | U59: 67449.19858 | X59: 46 | Y59: -2 | AA59: 46 | AB59: -1
X60: 47 | Y60: -2 | AA60: 47 | AB60: -1
M61: ANNI | N61: TFR | O61: RR | X61: 48 | Y61: -1 | AA61: 48 | AB61: -1
H62: SCAGLIONI | K62: ALIQUOTE | L62: RESIDUI | Q62: IMPOSTE | X62: 49 | Y62: -1 | AA62: 49 | AB62: -1
H63: 0 | I63: 26000 | J63: 26000 | K63: 23 | L63: =IF(O63>I63,I63,O63) -> 26000 | M63: =+TFR!K10 -> 28 | N63: =+TFR!J13 -> 82336.02291 | O63: =+N63*144/(M63*12) -> 35286.86696 | Q63: =+L63*K63% -> 5980 | X63: 50 | Y63: -1 | AA63: 50 | AB63: -1
H64: 26000.01 | I64: =+J64-H64 -> 28999.99 | J64: 55000 | K64: 33 | L64: =IF(O64>I64,I64,O64) -> 9286.866961 | O64: =IF(O63>L63,O63-L63,0) -> 9286.866961 | Q64: =+L64*K64% -> 3064.666097 | X64: 51 | Y64: -1 | AA64: 51 | AB64: -1
H65: 55000.01 | I65: =+J65-H65 -> 44999.99 | J65: 100000 | K65: 39 | L65: =IF(O65>I65,I65,O65) -> 0 | O65: =IF(O64>L64,O64-L64,0) -> 0 | Q65: =+L65*K65% -> 0 | X65: 52 | Y65: -1 | AA65: 52 | AB65: -1
H66: 100000.01 | I66: =+J66-H66 -> 899998.99 | J66: 999999 | K66: 43 | L66: =IF(O66>I66,I66,O66) -> 0 | O66: =IF(O65>L65,O65-L65,0) -> 0 | Q66: =+L66*K66% -> 0 | X66: 53 | Y66: -1 | AA66: 53 | AB66: -1
Q67: =SUM(Q63:Q66) -> 9044.666097 | X67: 54 | Y67: -1 | AA67: 54 | AB67: -1
X68: 55 | Y68: -1 | AA68: 55 | AB68: -1
O69: % MEDIA | Q69: =+Q67/O63*100 -> 25.63181964 | X69: 56 | Y69: -1 | AA69: 56 | AB69: 0
I70: TASSAZIONE FONDO PER PENSIONAMENTO | X70: 57 | Y70: -1 | AA70: 57 | AB70: 0
X71: 58 | Y71: 0 | AA71: 58 | AB71: 0
H72: 1 | J72: 15 | P72: 4000 | Q72: =+P72*99% -> 3960 | X72: 59 | Y72: 0 | AA72: 59 | AB72: 0
H73: =1+H72 -> 2 | J73: 15 | L73: ANNI | M73: EVENTUALE CAPITALE INIZIALE | N73: VERSAMENTO ANNUALE | O73: INCREMENTO ANNUALE DEL VERSAMENTO | P73: MONTANTE ANNUALE | Q73: RIVALUTAZIONE ANNUALE | R73: EVENTUALE INCREMENTO RIVALUTAZIONE ANNUALE | T73: VERSAMENTO INCREMENTATO | U73: RIVALUTAZIONE | X73: 60 | Y73: 0 | AA73: 60 | AB73: 0
H74: =1+H73 -> 3 | J74: 15 | L74: 1 | M74: =+TCM!F21 -> 409019.76 | N74: =+TCM!F22 -> 50000 | O74: =+TCM!F23/100 -> 0 | P74: =((+M74+N74)+U74) -> 470834.9286 | Q74: =+TCM!F24/100-TCM!J25/100 -> 0.026 | R74: =+TCM!F25/100 -> 0.01 | T74: =N74+N74*O74 -> 50000 | U74: =(N74+M74)*99%*Q74 -> 11815.16862 | W74: =+M74+N74 -> 459019.76 | X74: 61 | Y74: 0 | AA74: 61 | AB74: 0
H75: 4 | J75: 15 | L75: =+L74+1 -> 2 | N75: =+T74 -> 50000 | P75: =+P74+U75+N75 -> 534512.0538 | Q75: =Q74+Q74*$R$74 -> 0.02626 | T75: =N75+N75*$O$74 -> 50000 | U75: =(N75+M75+P74)*Q75 -> 13677.12523 | V75: =+U75+U74 -> 25492.29385 | W75: =+M75+N75+W74 -> 509019.76 | X75: 62 | Y75: 0 | AA75: 62 | AB75: 0
H76: 5 | J76: 15 | L76: =+L75+1 -> 3 | N76: =+T75 -> 50000 | P76: =+P75+U76+N76 -> 600014.8332 | Q76: =Q75+Q75*$R$74 -> 0.0265226 | T76: =N76+N76*$O$74 -> 50000 | U76: =(N76+M76+P75)*Q76 -> 15502.7794 | V76: =+U76+V75 -> 40995.07325 | W76: =+M76+N76+W75 -> 559019.76 | X76: 63 | Y76: 0 | AA76: 63 | AB76: 0
H77: 6 | J77: 15 | L77: 4 | N77: 50000 | P77: 667427.3175 | Q77: 0.026787826 | T77: 50000 | U77: 17412.48425 | V77: =+U77+V76 -> 58407.5575 | W77: 609019.76 | X77: 64 | Y77: 0 | AA77: 64 | AB77: 0
H78: 7 | J78: 15 | L78: 5 | N78: 50000 | P78: 736837.8188 | Q78: 0.02705570426 | T78: 50000 | U78: =N78*Q78+M78*Q78+P77*Q78 -> 19410.50133 | V78: 77818.05883 | W78: 659019.76 | X78: 65 | Y78: 0 | AA78: 65 | AB78: 0
H79: 8 | J79: 15 | L79: 6 | N79: 50000 | P79: 808339.1547 | Q79: 0.0273262613 | T79: 50000 | U79: 21501.33584 | V79: 99319.39467 | W79: 709019.76 | X79: =1+X78 -> 66 | Y79: 0 | AA79: =1+AA78 -> 66 | AB79: 0
H80: 9 | J80: 15 | L80: 7 | N80: 50000 | P80: 882028.9067 | Q80: 0.02759952392 | T80: 50000 | U80: 23689.75203 | V80: 123009.1467 | W80: 759019.76 | X80: 67 | Y80: 0 | AA80: 67 | AB80: 0
H81: 10 | J81: 15 | L81: 8 | N81: 50000 | P81: 958009.6963 | Q81: 0.02787551915 | T81: 50000 | U81: 25980.78964 | V81: 148989.9363 | W81: 809019.76 | X81: 68 | Y81: 0 | AA81: 68 | AB81: 0
H82: 11 | J82: 15 | L82: 9 | N82: 50000 | P82: 1036389.478 | Q82: 0.02815427435 | T82: 50000 | U82: 28379.78153 | V82: 177369.7179 | W82: 859019.76 | X82: 69 | Y82: 0 | AA82: 69 | AB82: 1
H83: 12 | J83: 15 | L83: 10 | N83: 50000 | P83: 1117281.85 | Q83: 0.02843581709 | T83: 50000 | U83: 30892.37248 | V83: 208262.0904 | W83: 909019.76 | X83: 70 | Y83: 0 | AA83: 70 | AB83: 1
H84: 13 | J84: 15 | L84: 11 | N84: 50000 | P84: 1200806.39 | Q84: 0.02872017526 | T84: 50000 | U84: 33524.53932 | V84: 241786.6297 | W84: 959019.76 | X84: 71 | Y84: 1 | AA84: 71 | AB84: 1
H85: 14 | J85: 15 | L85: 12 | N85: 50000 | P85: 1287089.002 | Q85: 0.02900737701 | T85: 50000 | U85: 36282.61252 | V85: 278069.2422 | W85: 1009019.76 | X85: 72 | Y85: 1 | AA85: 72 | AB85: 1
H86: 15 | J86: 15 | L86: 13 | N86: 50000 | P86: 1376262.301 | Q86: 0.02929745078 | T86: 50000 | U86: 39173.29923 | V86: 317242.5414 | W86: 1059019.76 | X86: 73 | Y86: 1 | AA86: 73 | AB86: 1
H87: 16 | J87: =+J86-0.3 -> 14.7 | L87: 14 | N87: 50000 | P87: 1468466.009 | Q87: 0.02959042529 | T87: 50000 | U87: 42203.70808 | V87: 359446.2495 | W87: 1109019.76 | X87: 74 | Y87: 1 | AA87: 74 | AB87: 1
H88: 17 | J88: =+J87-0.3 -> 14.4 | L88: 15 | N88: 50000 | P88: 1563847.385 | Q88: 0.02988632954 | T88: 50000 | U88: 45381.37556 | V88: 404827.6251 | W88: 1159019.76 | X88: 75 | Y88: 1 | AA88: 75 | AB88: 1
H89: 18 | J89: 14.1 | L89: 16 | N89: 50000 | P89: 1662561.68 | Q89: 0.03018519284 | T89: 50000 | U89: 48714.29453 | V89: 453541.9196 | W89: 1209019.76 | X89: 76 | Y89: 1 | AA89: 76 | AB89: 1
H90: 19 | J90: 13.8 | L90: 17 | N90: 50000 | P90: 1764772.624 | Q90: 0.03048704477 | T90: 50000 | U90: 52210.94459 | V90: 505752.8642 | W90: 1259019.76 | X90: 77 | Y90: 1 | AA90: 77 | AB90: 1
H91: 20 | J91: 13.5 | L91: 18 | N91: 50000 | P91: 1870652.949 | Q91: 0.03079191522 | T91: 50000 | U91: 55880.32478 | V91: 561633.189 | W91: 1309019.76 | X91: 78 | Y91: 1 | AA91: 78 | AB91: 2
H92: 21 | J92: 13.2 | L92: 19 | N92: 50000 | P92: 1980384.938 | Q92: 0.03109983437 | T92: 50000 | U92: 59731.98859 | V92: 621365.1776 | W92: 1359019.76 | X92: 79 | Y92: 1 | AA92: 79 | AB92: 2
H93: 22 | J93: 12.9 | L93: 20 | N93: 50000 | P93: 2094161.019 | Q93: 0.03141083271 | T93: 50000 | U93: 63776.08161 | V93: 685141.2592 | W93: 1409019.76 | X93: 80 | Y93: 2 | AA93: 80 | AB93: 2
H94: 23 | J94: 12.6 | L94: 21 | N94: 50000 | P94: 2212184.401 | Q94: 0.03172494104 | T94: 50000 | U94: 68023.38191 | V94: 753164.6411 | W94: 1459019.76 | X94: 81 | Y94: 2 | AA94: 81 | AB94: 2
H95: 24 | J95: 12.3 | L95: 22 | N95: 50000 | P95: 2334669.744 | Q95: 0.03204219045 | T95: 50000 | U95: 72485.34341 | V95: 825649.9845 | W95: 1509019.76 | X95: 82 | Y95: 2 | AA95: 82 | AB95: 2
H96: 25 | J96: 12 | L96: 23 | N96: 50000 | P96: 2461843.887 | Q96: 0.03236261235 | T96: 50000 | U96: 77174.14253 | V96: 902824.127 | W96: 1559019.76 | X96: 83 | Y96: 2 | AA96: 83 | AB96: 2
H97: 26 | J97: 11.7 | L97: 24 | N97: 50000 | P97: 2593946.615 | Q97: 0.03268623848 | T97: 50000 | U97: 82102.72831 | V97: 984926.8553 | W97: 1609019.76 | X97: 84 | Y97: 2 | AA97: 84 | AB97: 2
H98: 27 | J98: 11.4 | L98: 25 | N98: 50000 | P98: 2731231.492 | Q98: 0.03301310086 | T98: 50000 | U98: 87284.87629 | V98: 1072211.732 | W98: 1659019.76 | X98: 85 | Y98: 2 | AA98: 85 | AB98: 2
H99: 28 | J99: 11.1 | L99: 26 | N99: 50000 | P99: 2873966.738 | Q99: 0.03334323187 | T99: 50000 | U99: 92735.24651 | V99: 1164946.978 | W99: 1709019.76 | X99: 86 | Y99: 2 | AA99: 86 | AB99: 2
H100: 29 | J100: 10.8 | L100: 27 | N100: 50000 | P100: 3022436.184 | Q100: 0.03367666419 | T100: 50000 | U100: 98469.44594 | V100: 1263416.424 | W100: 1759019.76 | X100: 87 | Y100: 2 | AA100: 87 | AB100: 2
H101: 30 | J101: 10.5 | L101: 28 | N101: 50000 | P101: 3176940.28 | Q101: 0.03401343083 | T101: 50000 | U101: 104504.0956 | V101: 1367920.52 | W101: 1809019.76 | X101: 88 | Y101: 2
H102: 31 | J102: 10.2 | L102: 29 | N102: 50000 | P102: 3337797.183 | Q102: 0.03435356514 | T102: 50000 | U102: 110856.9031 | V102: 1478777.423 | W102: 1859019.76 | X102: 89 | Y102: 2
H103: 32 | J103: 9.9 | L103: 30 | N103: 50000 | P103: 3505343.923 | Q103: 0.03469710079 | T103: 50000 | U103: 117546.7403 | V103: 1596324.163 | W103: 1909019.76
H104: 33 | J104: 9.6 | L104: 31 | N104: 50000 | P104: 3679937.651 | Q104: 0.0350440718 | T104: 50000 | U104: 124593.7277 | V104: 1720917.891 | W104: 1959019.76
H105: 34 | J105: 9.3 | L105: 32 | N105: 50000 | P105: 3861956.976 | Q105: 0.03539451252 | T105: 50000 | U105: 132019.3249 | V105: 1852937.216 | W105: 2009019.76
H106: 35 | J106: 9 | L106: 33 | N106: 50000 | P106: 4051803.404 | Q106: 0.03574845764 | T106: 50000 | U106: 139846.4282 | V106: 1992783.644 | W106: 2059019.76
H107: 36 | J107: 9 | L107: 34 | N107: 50000 | P107: 4249902.881 | Q107: 0.03610594222 | T107: 50000 | U107: 148099.4767 | V107: 2140883.121 | W107: 2109019.76
H108: 37 | J108: 9 | L108: 35 | N108: 50000 | P108: 4456707.446 | Q108: 0.03646700164 | T108: 50000 | U108: 156804.5654 | V108: 2297687.686 | W108: 2159019.76
H109: 38 | J109: 9 | L109: 36 | N109: 50000 | P109: 4672697.015 | Q109: 0.03683167166 | T109: 50000 | U109: 165989.5689 | V109: 2463677.255 | W109: 2209019.76
H110: 39 | J110: 9 | L110: 37 | N110: 50000 | P110: 4898381.289 | Q110: 0.03719998837 | T110: 50000 | U110: 175684.274 | V110: 2639361.529 | W110: 2259019.76
H111: 40 | J111: 9 | L111: 38 | N111: 50000 | P111: 5134301.813 | Q111: 0.03757198826 | T111: 50000 | U111: 185920.5237 | V111: 2825282.053 | W111: 2309019.76
H112: 41 | J112: 9 | L112: 39 | N112: 50000 | P112: 5381034.185 | Q112: 0.03794770814 | T112: 50000 | U112: 196732.3721 | V112: 3022014.425 | W112: 2359019.76
H113: 42 | J113: 9 | L113: 40 | N113: 50000 | P113: 5639190.438 | Q113: 0.03832718522 | T113: 50000 | U113: 208156.2531 | V113: 3230170.678 | W113: 2409019.76
L114: 41 | N114: 50000 | P114: 5909421.6 | Q114: 0.03871045707 | T114: 50000 | U114: 220231.1622 | V114: 3450401.84 | W114: 2459019.76
L115: 42 | N115: 50000 | P115: 6192420.453 | Q115: 0.03909756164 | T115: 50000 | U115: 232998.8534 | V115: 3683400.693 | W115: 2509019.76
L116: 43 | N116: 50000 | P116: 6488924.506 | Q116: 0.03948853726 | T116: 50000 | U116: 246504.0527 | V116: 3929904.746 | W116: 2559019.76
L117: 44 | N117: 50000 | P117: 6799719.196 | Q117: 0.03988342263 | T117: 50000 | U117: 260794.6896 | V117: 4190699.436 | W117: 2609019.76
L118: 45 | N118: 50000 | P118: 7125641.344 | Q118: 0.04028225686 | T118: 50000 | U118: 275922.1481 | V118: 4466621.584 | W118: 2659019.76
L119: 46 | N119: 50000 | P119: 7467582.882 | Q119: 0.04068507943 | T119: 50000 | U119: 291941.538 | V119: 4758563.122 | W119: 2709019.76
L120: 47 | N120: 50000 | P120: 7826494.873 | Q120: 0.04109193022 | T120: 50000 | U120: 308911.9912 | V120: 5067475.113 | W120: 2759019.76
L121: 48 | N121: 50000 | P121: 8203391.855 | Q121: 0.04150284952 | T121: 50000 | U121: 326896.9815 | V121: 5394372.095 | W121: 2809019.76
L122: 49 | N122: 50000 | P122: 8599356.528 | Q122: 0.04191787802 | T122: 50000 | U122: 345964.673 | V122: 5740336.768 | W122: 2859019.76
L123: 50 | N123: 50000 | P123: 9015544.826 | Q123: 0.0423370568 | T123: 50000 | U123: 366188.2986 | V123: 6106525.066 | W123: 2909019.76

Sheet CALCOLI (hidden)
Y2: RENDITA REVERSIBILE SU ASSICURATO DI PARI ETA' E SESSO DIVERSO
Z3: Età | AA3: Maschi | AB3: Femmine
C4: capitale iniziale | E4: =+TCM!F5 -> 5000 | G4: =+F8*F9 -> 0.01025509211 | K4: capitale iniziale | M4: =+M8 -> 465641.2467
C5: montante desiderato | E5: =+TCM!F6 -> 20000 | I5: =+G8-H8 -> 0.3459753703 | J5: =+I6-I8 -> 0.1517044431 | K5: montante desiderato | M5: =+TCM!F11 -> 556000 | Z5: 50 | AA5: 0.02274 | AB5: 0.02274
C6: % per int composto annuo | E6: =+TCM!F7 -> 4 | I6: =+I5*12 -> 4.151704443 | J6: =+J5*30 -> 4.551133293 | K6: interesse composto annuo | M6: =+TCM!F12 -> 3 | Z6: =1+Z5 -> 51 | AA6: 0.02327 | AB6: 0.02327
F7: log | G7: periodo | H7: anni | I7: mesi | J7: giorni | K7: anni da oggi | M7: =+TCM!F13 -> 6 | Z7: =1+Z6 -> 52 | AA7: 0.02383 | AB7: 0.02383
C8: numeratore | E8: =IF(E5=0,0,E5/E4) -> 4 | F8: =IF(E8=0,0,+LOG(E8)) -> 0.6020599913 | G8: =IF(G4=0,0,+F8/F9) -> 35.34597537 | H8: =INT(G8) -> 35 | I8: =INT(I6) -> 4 | J8: =INT(J6) -> 4 | M8: =+M5*(1+M6/100)^-M7 -> 465641.2467 | Z8: 53 | AA8: 0.02441 | AB8: 0.02441
C9: denominatore | E9: =1+E6/100 -> 1.04 | F9: =+LOG(E9) -> 0.0170333393 | Z9: 54 | AA9: 0.02501 | AB9: 0.02501
Z10: 55 | AA10: 0.02565 | AB10: 0.02565
Z11: 56 | AA11: 0.02632 | AB11: 0.02632
E12: RENDITA VITALIZIA IMMEDIATA A PREMIO UNICO | J12: RENDITA VITALIZIA CERTA 5 ANNI | N12: RENDITA VITALIZIA CERTA 10 ANNI | R12: RENDITA CONTROASSICURATA | V12: RENDITA CON RADDOPPIO TLC | Z12: 57 | AA12: 0.02703 | AB12: 0.02703
Z13: 58 | AA13: 0.02778 | AB13: 0.02778
F14: Età | G14: Maschi | H14: Femmine | J14: Età | K14: Maschi | L14: Femmine | N14: Età | O14: Maschi | P14: Femmine | R14: Età | S14: Maschi | T14: Femmine | V14: Età | W14: Maschi | X14: Femmine | Z14: 59 | AA14: 0.02856 | AB14: 0.02856
Z15: 60 | AA15: 0.02939 | AB15: 0.02939
F16: 50 | G16: 0.02761 | H16: 0.02487 | J16: 50 | K16: 0.02759 | L16: 0.02486 | N16: 50 | O16: 0.02754 | P16: 0.02483 | R16: 50 | S16: 0.0268 | T16: 0.02524 | V16: 50 | W16: 0.02628 | X16: 0.02317 | Z16: 61 | AA16: 0.03027 | AB16: 0.03027
F17: =1+F16 -> 51 | G17: 0.02836 | H17: 0.02549 | J17: =1+J16 -> 51 | K17: 0.02385 | L17: 0.02547 | N17: =1+N16 -> 51 | O17: 0.02829 | P17: 0.02544 | R17: =1+R16 -> 51 | S17: 0.02731 | T17: 0.02571 | V17: =1+V16 -> 51 | W17: 0.02697 | X17: 0.02371 | Z17: 62 | AA17: 0.0312 | AB17: 0.0312
F18: =1+F17 -> 52 | G18: 0.02916 | H18: 0.02613 | J18: =1+J17 -> 52 | K18: 0.02914 | L18: 0.02612 | N18: =1+N17 -> 52 | O18: 0.02907 | P18: 0.02608 | R18: =1+R17 -> 52 | S18: 0.02783 | T18: 0.02618 | V18: =1+V17 -> 52 | W18: 0.02769 | X18: 0.02426 | Z18: 63 | AA18: 0.03218 | AB18: 0.03218
F19: 53 | G19: 0.03 | H19: 0.02681 | J19: 53 | K19: 0.02998 | L19: 0.02679 | N19: 53 | O19: 0.0299 | P19: 0.02675 | R19: 53 | S19: 0.02837 | T19: 0.02667 | V19: 53 | W19: 0.02845 | X19: 0.02485 | Z19: 64 | AA19: 0.03323 | AB19: 0.03323
F20: 54 | G20: 0.03089 | H20: 0.02752 | J20: 54 | K20: 0.03086 | L20: 0.0275 | N20: 54 | O20: 0.03077 | P20: 0.02746 | R20: 54 | S20: 0.02893 | T20: 0.02719 | V20: 54 | W20: 0.02924 | X20: 0.02546 | Z20: 65 | AA20: 0.03434 | AB20: 0.03434
F21: 55 | G21: 0.03183 | H21: 0.02827 | J21: 55 | K21: 0.0318 | L21: 0.02825 | N21: 55 | O21: 0.03168 | P21: 0.0282 | R21: 55 | S21: 0.02953 | T21: 0.02772 | V21: 55 | W21: 0.03008 | X21: 0.0261 | Z21: 66 | AA21: 0.03552 | AB21: 0.03552
F22: 56 | G22: 0.03282 | H22: 0.02906 | J22: 56 | K22: 0.03278 | L22: 0.02904 | N22: 56 | O22: 0.03264 | P22: 0.02898 | R22: 56 | S22: 0.03013 | T22: 0.02827 | V22: 56 | W22: 0.03097 | X22: 0.02677 | Z22: 67 | AA22: 0.03677 | AB22: 0.03677
F23: 57 | G23: 0.03387 | H23: 0.02989 | J23: 57 | K23: 0.03382 | L23: 0.02987 | N23: 57 | O23: 0.03366 | P23: 0.0298 | R23: 57 | S23: 0.03077 | T23: 0.02885 | V23: 57 | W23: 0.0319 | X23: 0.02748 | Z23: 68 | AA23: 0.03812 | AB23: 0.03812
F24: 58 | G24: 0.03498 | H24: 0.03077 | J24: 58 | K24: 0.03493 | L24: 0.03075 | N24: 58 | O24: 0.03473 | P24: 0.03066 | R24: 58 | S24: 0.03143 | T24: 0.02945 | V24: 58 | W24: 0.03289 | X24: 0.02823 | Z24: 69 | AA24: 0.03955 | AB24: 0.03955
F25: 59 | G25: 0.03617 | H25: 0.03171 | J25: 59 | K25: 0.0361 | L25: 0.03168 | N25: 59 | O25: 0.03587 | P25: 0.03158 | R25: 59 | S25: 0.03212 | T25: 0.03007 | V25: 59 | W25: 0.03394 | X25: 0.02901 | Z25: 70 | AA25: 0.04109 | AB25: 0.04109
F26: 60 | G26: 0.03743 | H26: 0.0327 | J26: 60 | K26: 0.03735 | L26: 0.03267 | N26: 60 | O26: 0.03707 | P26: 0.03255 | R26: 60 | S26: 0.03283 | T26: 0.03072 | V26: 60 | W26: 0.03505 | X26: 0.02984
F27: 61 | G27: 0.03877 | H27: 0.03375 | J27: 61 | K27: 0.03868 | L27: 0.03371 | N27: 61 | O27: 0.03833 | P27: 0.03357 | R27: 61 | S27: 0.03359 | T27: 0.03141 | V27: 61 | W27: 0.03623 | X27: 0.03072 | AC27: IBM | AD27: toshiba | AH27: k314 | AI27: dip | AJ27: az | AP27: 100000 | AQ27: =+AP27*4% -> 4000 | AR27: =+AP27*4% -> 4000
F28: 62 | G28: 0.04019 | H28: 0.03487 | J28: 62 | K28: 0.04008 | L28: 0.03482 | N28: 62 | O28: 0.03966 | P28: 0.03465 | R28: 62 | S28: 0.03437 | T28: 0.03212 | V28: 62 | W28: 0.03748 | X28: 0.03165 | AP28: 200000 | AQ28: =+AP28*4% -> 8000 | AR28: =+AP28*5.5% -> 11000
F29: 63 | G29: 0.04171 | H29: 0.03605 | J29: 63 | K29: 0.04157 | L29: 0.036 | N29: 63 | O29: 0.04107 | P29: 0.0358 | R29: 63 | S29: 0.03519 | T29: 0.03285 | V29: 63 | W29: 0.0388 | X29: 0.03263 | AB29: 0 | AC29: 63000 | AD29: 3.25 | AE29: 2.89 | AG29: 0 | AH29: 100000 | AI29: 4 | AJ29: 4
F30: 64 | G30: 0.04332 | H30: 0.03732 | J30: 64 | K30: 0.04316 | L30: 0.03725 | N30: 64 | O30: 0.04255 | P30: 0.03701 | R30: 64 | S30: 0.03605 | T30: 0.03363 | V30: 64 | W30: 0.0402 | X30: 0.03366 | AA30: =+AC30-AB30 -> 13411.45 | AB30: 63000.01 | AC30: 76411.46 | AD30: 5.95 | AE30: 4.46 | AF30: =+AH30-AG30 -> 1899999.99 | AG30: 100000.01 | AH30: 2000000 | AI30: 4 | AJ30: 5.5
F31: 65 | G31: 0.04505 | H31: 0.03866 | J31: 65 | K31: 0.04485 | L31: 0.03858 | N31: 65 | O31: 0.04412 | P31: 0.0383 | R31: 65 | S31: 0.03695 | T31: 0.03444 | V31: 65 | W31: 0.04168 | X31: 0.03476 | AA31: =+AC31-AB31 -> 11047.43 | AB31: 76411.47 | AC31: 87458.9 | AD31: 6.7 | AE31: 5.03
F32: 66 | G32: 0.0469 | H32: 0.04009 | J32: 66 | K32: 0.04666 | L32: 0.04 | N32: 66 | O32: 0.04577 | P32: 0.03966 | R32: 66 | S32: 0.03788 | T32: 0.03528 | V32: 66 | W32: 0.04327 | X32: 0.03592 | AA32: =+AC32-AB32 -> 11047.43 | AB32: 76411.47 | AC32: 87458.9 | AD32: 6.7 | AE32: 5.03 | AH32: lenovo
F33: 67 | G33: 0.04887 | H33: 0.04163 | J33: 67 | K33: 0.04858 | L33: 0.04152 | N33: 67 | O33: 0.04752 | P33: 0.04111 | R33: 67 | S33: 0.03888 | T33: 0.03618 | V33: 67 | W33: 0.04495 | X33: 0.03716 | AA33: =+AC33-AB33 -> 1912541.09 | AB33: 87458.91 | AC33: 2000000 | AD33: 7.3 | AE33: 5.48 | AG33: 0 | AH33: 150000 | AI33: 4 | AJ33: 4
F34: 68 | G34: 0.05099 | H34: 0.04327 | J34: 68 | K34: 0.05063 | L34: 0.04314 | N34: 68 | O34: 0.04936 | P34: 0.04266 | R34: 68 | S34: 0.03991 | T34: 0.03713 | V34: 68 | W34: 0.04674 | X34: 0.03848 | AF34: =+AH34-AG34 -> 1849999.99 | AG34: 150000.01 | AH34: 2000000 | AI34: 4 | AJ34: 5.48
B35: =+'M&R'!D10 -> 1 | C35: CODICE AZIENDA | F35: 69 | G35: 0.05326 | H35: 0.04504 | J35: 69 | K35: 0.05282 | L35: 0.04488 | N35: 69 | O35: 0.05129 | P35: 0.0443 | R35: 69 | S35: 0.04099 | T35: 0.03809 | V35: 69 | W35: 0.04865 | X35: 0.03988
F36: 70 | G36: 0.0557 | H36: 0.04694 | J36: 70 | K36: 0.05517 | L36: 0.04674 | N36: 70 | O36: 0.05331 | P36: 0.04604 | R36: 70 | S36: 0.04215 | T36: 0.03912 | V36: 70 | W36: 0.0507 | X36: 0.04138
AL37: IBM/TOSHIBA/ACG
B38: =+CALCOLI1!H7 -> 33 | C38: NETTO CARICAMENTO | AP38: k314 | AQ38: k314 | AR38: k314 | AT38: K314 | AU38: K314 | AV38: K314 | AX38: lenovo | AY38: lenovo | AZ38: lenovo | BB38: lenovo | BC38: lenovo | BD38: lenovo
B39: CONTR IN | C39: VERS DIP | D39: VERS AZ | E39: VERS VOL | F39: TFR | G39: TOTALE C | H39: TOT VER+TFR+RIV | J39: RETRIB | K39: =+CALCOLI1!H8 -> % INCR RETR ANNUALE | M39: RIV YTD | N39: =+CALCOLI1!L8 -> % RIV FONDO | O39: RIV FONDO | P39: % DIP | Q39: % AZ | R39: % TFR | S39: TFR | U39: VERS DIP | V39: VERS AZ | W39: TFR | X39: VER VOL | Y39: TOTALE C | Z39: TOT VER+TFR | AL39: contr dir | AM39: contr az | AN39: totale | AT39: contr dir | AU39: contr az | AV39: totale | BB39: contr dir | BC39: contr az | BD39: totale
N40: NETTO 0,4%
A41: 1 | B41: =+CALCOLI1!E20*99.95% -> 19790.1 | C41: =IF($B$35=1,AL41*99.95%,IF($B$35=2,BB41*99.95%,AT41*99.95%)) -> 5238.717986 | D41: =IF($B$35=1,AM41*99.95%,IF($B$35=2,BC41*99.95%,AU41*99.95%)) -> 4215.366766 | E41: =+CALCOLI1!E18 -> 0 | F41: =+CALCOLI1!E13*99% -> 7333.333333 | G41: =+B41+C41+D41 -> 29244.18475 | H41: =+G41+F41+O41 -> 37528.53356 | I41: =+G41 -> 29244.18475 | J41: =+CALCOLI1!E9 -> 100000 | K41: =+CALCOLI1!H9+100 -> 101 | M41: =+O41 -> 951.0154702 | N41: =+CALCOLI1!L9-0.4 -> 2.6 | O41: =+(G41+F41)*$N$41/100 -> 951.0154702 | P41: =+CALCOLI1!E14 -> 4.501160845 | Q41: =+CALCOLI1!E15 -> 3.661789775 | R41: =+CALCOLI1!E12 -> 100 | S41: =+J41/13.5 -> 7407.407407 | AB41: =+J41 -> 100000 | AC41: =IF(AB41>=$AC$29,$AC$29,AB41) -> 63000 | AD41: =+AB41-AC41 -> 37000 | AE41: =IF(AD41>=$AA$30,$AA$30,AD41) -> 13411.45 | AF41: =+AD41-AE41 -> 23588.55 | AG41: =IF(AF41>=$AA$31,$AA$31,AF41) -> 11047.43 | AH41: =+AF41-AG41 -> 12541.12 | AI41: =IF(AH41>=$AA$32,$AA$32,AH41) -> 11047.43 | AJ41: =IF(AH41>=$AA$33,$AA$33,AH41) -> 12541.12 | AL41: =+((AC41*$AD$29)+(AE41*$AD$30)+(AG41*$AD$31)+(AI41*$AD$32)+(AJ41*$AD$33))/100 -> 5241.338655 | AM41: =+((AC41*$AE$29)+(AE41*$AE$30)+(AG41*$AE$31)+(AI41*$AE$32)+(AJ41*$AE$33))/100 -> 4217.475504 | AN41: =+AL41+AM41 -> 9458.814159 | AP41: =+AB41 -> 100000 | AQ41: =IF(AP41>=$AH$29,$AH$29,AP41) -> 100000 | AR41: =+AP41-AQ41 -> 0 | AT41: =+AP41*$AI$29% -> 4000 | AU41: =+(AQ41*$AJ$29/100)+AR41*$AJ$30/100 -> 4000 | AV41: =+AT41+AU41 -> 8000 | AX41: =+J41 -> 100000 | AY41: =IF(AX41>=$AH$33,$AH$33,AX41) -> 100000 | AZ41: =+AX41-AY41 -> 0 | BB41: =+AX41*$AI$33% -> 4000 | BC41: =+(AY41*$AJ$33%)+(AZ41*$AJ$34%) -> 4000 | BD41: =+BB41+BC41 -> 8000
A42: =1+A41 -> 2 | C42: =IF($B$35=1,AL42*99.95%,IF($B$35=2,BB42*99.95%,AT42*99.95%)) -> 5311.681486 | D42: =IF($B$35=1,AM42*99.95%,IF($B$35=2,BC42*99.95%,AU42*99.95%)) -> 4270.139366 | E42: =+E41+X42 -> 0 | F42: =+F41+W42 -> 14740 | G42: =+B42+C42+D42 -> 9581.820852 | H42: =+I42+F42+M42 -> 55174.11482 | I42: =+I41+G42 -> 38826.0056 | J42: =+J41*$K$41/100 -> 101000 | M42: =+M41+O42 -> 1608.109215 | O42: =+(G42+F42+O41)*$N$41/100 -> 657.0937444 | S42: =+J42/13.5 -> 7481.481481 | U42: =+J42*$P$41/100*99% -> 4500.710729 | V42: =+J42*$Q$41*99%/100 -> 3661.423596 | W42: =+J42/13.5*$R$41/100*99% -> 7406.666667 | Y42: =+U42+V42+X42 -> 8162.134325 | Z42: =+Y42+W42 -> 15568.80099 | AB42: =+J42 -> 101000 | AC42: =IF(AB42>=$AC$29,$AC$29,AB42) -> 63000 | AD42: =+AB42-AC42 -> 38000 | AE42: =IF(AD42>=$AA$30,$AA$30,AD42) -> 13411.45 | AF42: =+AD42-AE42 -> 24588.55 | AG42: =IF(AF42>=$AA$31,$AA$31,AF42) -> 11047.43 | AH42: =+AF42-AG42 -> 13541.12 | AI42: =IF(AH42>=$AA$32,$AA$32,AH42) -> 11047.43 | AJ42: =IF(AH42>=$AA$33,$AA$33,AH42) -> 13541.12 | AL42: =+((AC42*$AD$29)+(AE42*$AD$30)+(AG42*$AD$31)+(AI42*$AD$32)+(AJ42*$AD$33))/100 -> 5314.338655 | AM42: =+((AC42*$AE$29)+(AE42*$AE$30)+(AG42*$AE$31)+(AI42*$AE$32)+(AJ42*$AE$33))/100 -> 4272.275504 | AN42: =+AL42+AM42 -> 9586.614159 | AP42: =+AB42 -> 101000 | AQ42: =IF(AP42>=$AH$29,$AH$29,AP42) -> 100000 | AR42: =+AP42-AQ42 -> 1000 | AT42: =+AP42*$AI$29% -> 4040 | AU42: =+(AQ42*$AJ$29/100)+AR42*$AJ$30/100 -> 4055 | AV42: =+AT42+AU42 -> 8095 | AX42: =+J42 -> 101000 | AY42: =IF(AX42>=$AH$33,$AH$33,AX42) -> 101000 | AZ42: =+AX42-AY42 -> 0 | BB42: =+AX42*$AI$33% -> 4040 | BC42: =+(AY42*$AJ$33%)+(AZ42*$AJ$34%) -> 4040 | BD42: =+BB42+BC42 -> 8080
A43: =1+A42 -> 3 | C43: 5385.374621 | D43: 4325.459692 | E43: =+E42+X43 -> 0 | F43: =+F42+W43 -> 22220.73333 | G43: 9710.834313 | H43: =+I43+F43+M43 -> 73212.98766 | I43: =+I42+G43 -> 48536.83992 | J43: =+J42*$K$41/100 -> 102010 | M43: =+M42+O43 -> 2455.414411 | O43: =+(G43+F43+O42)*$N$41/100 -> 847.3051962 | S43: 7556.296296 | U43: =+J43*$P$41/100*99% -> 4545.717836 | V43: =+J43*$Q$41*99%/100 -> 3698.037832 | W43: =+J43/13.5*$R$41/100*99% -> 7480.733333 | Y43: =+U43+V43+X43 -> 8243.755668 | Z43: =+Y43+W43 -> 15724.489 | AB43: 102010 | AC43: 63000 | AD43: 39010 | AE43: 13411.45 | AF43: 25598.55 | AG43: 11047.43 | AH43: 14551.12 | AI43: 11047.43 | AJ43: 14551.12 | AL43: 5388.068655 | AM43: 4327.623504 | AN43: 9715.692159 | AP43: 102010 | AQ43: 100000 | AR43: 2010 | AT43: 4080.4 | AU43: 4110.55 | AV43: 8190.95 | AX43: 102010 | AY43: 102010 | AZ43: 0 | BB43: 4080.4 | BC43: 4080.4 | BD43: 8160.8
A44: 4 | C44: 5459.804687 | D44: 4381.333222 | E44: 0 | F44: 29776.274 | G44: 9841.137909 | H44: 91661.74888 | I44: 58377.97783 | J44: 103030.1 | M44: 3507.497055 | O44: 1052.082645 | S44: 7631.859259 | U44: 4591.175015 | V44: 3735.01821 | W44: 7555.540667 | Y44: 8326.193225 | Z44: 15881.73389 | AB44: 103030.1 | AC44: 63000 | AD44: 40030.1 | AE44: 13411.45 | AF44: 26618.65 | AG44: 11047.43 | AH44: 15571.22 | AI44: 11047.43 | AJ44: 15571.22 | AL44: 5462.535955 | AM44: 4383.524984 | AN44: 9846.060939 | AP44: 103030.1 | AQ44: 100000 | AR44: 3030.1 | AT44: 4121.204 | AU44: 4166.6555 | AV44: 8287.8595 | AX44: 103030.1 | AY44: 103030.1 | AZ44: 0 | BB44: 4121.204 | BC44: 4121.204 | BD44: 8242.408
A45: 5 | C45: 5534.979054 | D45: 4437.765486 | E45: 0 | F45: 37407.37007 | G45: 9972.74454 | H45: 110524.8266 | I45: 68350.72237 | J45: 104060.401 | M45: 4766.734184 | O45: 1259.237129 | S45: 7708.177852 | U45: 4637.086765 | V45: 3772.368392 | W45: 7631.096073 | Y45: 8409.455157 | Z45: 16040.55123 | AB45: 104060.401 | AC45: 63000 | AD45: 41060.401 | AE45: 13411.45 | AF45: 27648.951 | AG45: 11047.43 | AH45: 16601.521 | AI45: 11047.43 | AJ45: 16601.521 | AL45: 5537.747928 | AM45: 4439.985479 | AN45: 9977.733407 | AP45: 104060.401 | AQ45: 100000 | AR45: 4060.401 | AT45: 4162.41604 | AU45: 4223.322055 | AV45: 8385.738095 | AX45: 104060.401 | AY45: 104060.401 | AZ45: 0 | BB45: 4162.41604 | BC45: 4162.41604 | BD45: 8324.83208
A46: 6 | C46: 5610.905165 | D46: 4494.762073 | E46: 0 | F46: 45114.77711 | G46: 10105.66724 | H46: 129806.3726 | I46: 78456.3896 | J46: 105101.005 | M46: 6235.205903 | O46: 1468.471718 | S46: 7785.25963 | U46: 4683.457632 | V46: 3810.092076 | W46: 7707.407034 | Y46: 8493.549709 | Z46: 16200.95674 | AB46: 105101.005 | AC46: 63000 | AD46: 42101.00501 | AE46: 13411.45 | AF46: 28689.55501 | AG46: 11047.43 | AH46: 17642.12501 | AI46: 11047.43 | AJ46: 17642.12501 | AL46: 5613.712021 | AM46: 4497.010579 | AN46: 10110.7226 | AP46: 105101.005 | AQ46: 100000 | AR46: 5101.00501 | AT46: 4204.0402 | AU46: 4280.555276 | AV46: 8484.595476 | AX46: 105101.005 | AY46: 105101.005 | AZ46: 0 | BB46: 4204.0402 | BC46: 4204.0402 | BD46: 8408.080401
A47: 7 | C47: 5687.590537 | D47: 4552.328626 | E47: 0 | F47: 52899.25821 | G47: 10239.91916 | H47: 149510.5718 | I47: 88696.30877 | J47: 106152.0151 | M47: 7915.004779 | O47: 1679.798876 | S47: 7863.112227 | U47: 4730.292209 | V47: 3848.192997 | W47: 7784.481104 | Y47: 8578.485206 | Z47: 16362.96631 | AB47: 106152.0151 | AC47: 63000 | AD47: 43152.01506 | AE47: 13411.45 | AF47: 29740.56506 | AG47: 11047.43 | AH47: 18693.13506 | AI47: 11047.43 | AJ47: 18693.13506 | AL47: 5690.435754 | AM47: 4554.605929 | AN47: 10245.04168 | AP47: 106152.0151 | AQ47: 100000 | AR47: 6152.01506 | AT47: 4246.080602 | AU47: 4338.360828 | AV47: 8584.441431 | AX47: 106152.0151 | AY47: 106152.0151 | AZ47: 0 | BB47: 4246.080602 | BC47: 4246.080602 | BD47: 8492.161205
A48: 8 | C48: 5765.042762 | D48: 4610.470845 | E48: 0 | F48: 60761.58413 | G48: 10375.51361 | H48: 169641.6506 | I48: 99071.82237 | J48: 107213.5352 | M48: 9808.244091 | O48: 1893.239312 | S48: 7941.743349 | U48: 4777.595131 | V48: 3886.674927 | W48: 7862.325915 | Y48: 8664.270058 | Z48: 16526.59597 | AB48: 107213.5352 | AC48: 63000 | AD48: 44213.53521 | AE48: 13411.45 | AF48: 30802.08521 | AG48: 11047.43 | AH48: 19754.65521 | AI48: 11047.43 | AJ48: 19754.65521 | AL48: 5767.926725 | AM48: 4612.777234 | AN48: 10380.70396 | AP48: 107213.5352 | AQ48: 100000 | AR48: 7213.535211 | AT48: 4288.541408 | AU48: 4396.744437 | AV48: 8685.285845 | AX48: 107213.5352 | AY48: 107213.5352 | AZ48: 0 | BB48: 4288.541408 | BC48: 4288.541408 | BD48: 8577.082817
A49: 9 | C49: 5843.26951 | D49: 4669.194486 | E49: 0 | F49: 68702.5333 | G49: 10512.464 | H49: 190203.8779 | I49: 109584.2864 | J49: 108285.6706 | M49: 11917.05824 | O49: 2108.814152 | S49: 8021.160782 | U49: 4825.371082 | V49: 3925.541676 | W49: 7940.949175 | Y49: 8750.912758 | Z49: 16691.86193 | AB49: 108285.6706 | AC49: 63000 | AD49: 45285.67056 | AE49: 13411.45 | AF49: 31874.22056 | AG49: 11047.43 | AH49: 20826.79056 | AI49: 11047.43 | AJ49: 20826.79056 | AL49: 5846.192606 | AM49: 4671.530251 | AN49: 10517.72286 | AP49: 108285.6706 | AQ49: 100000 | AR49: 8285.670563 | AT49: 4331.426823 | AU49: 4455.711881 | AV49: 8787.138703 | AX49: 108285.6706 | AY49: 108285.6706 | AZ49: 0 | BB49: 4331.426823 | BC49: 4331.426823 | BD49: 8662.853645
A50: 10 | C50: 5922.278525 | D50: 4728.505363 | E50: 0 | F50: 76722.89197 | G50: 10650.78389 | H50: 211201.5652 | I50: 120235.0703 | J50: 109368.5273 | M50: 14243.60298 | O50: 2326.54474 | S50: 8101.37239 | U50: 4873.624793 | V50: 3964.797093 | W50: 8020.358666 | Y50: 8838.421886 | Z50: 16858.78055 | AB50: 109368.5273 | AC50: 63000 | AD50: 46368.52727 | AE50: 13411.45 | AF50: 32957.07727 | AG50: 11047.43 | AH50: 21909.64727 | AI50: 11047.43 | AJ50: 21909.64727 | AL50: 5925.241146 | AM50: 4730.870798 | AN50: 10656.11194 | AP50: 109368.5273 | AQ50: 100000 | AR50: 9368.527268 | AT50: 4374.741091 | AU50: 4515.269 | AV50: 8890.010091 | AX50: 109368.5273 | AY50: 109368.5273 | AZ50: 0 | BB50: 4374.741091 | BC50: 4374.741091 | BD50: 8749.482181
A51: 11 | C51: 6002.07763 | D51: 4788.409349 | E51: 0 | F51: 84823.45422 | G51: 10790.48698 | H51: 232639.0671 | I51: 131025.5572 | J51: 110462.2125 | M51: 16790.05562 | O51: 2546.452634 | S51: 8182.386114 | U51: 4922.361041 | V51: 4004.445064 | W51: 8100.562253 | Y51: 8926.806105 | Z51: 17027.36836 | AB51: 110462.2125 | AC51: 63000 | AD51: 47462.21254 | AE51: 13411.45 | AF51: 34050.76254 | AG51: 11047.43 | AH51: 23003.33254 | AI51: 11047.43 | AJ51: 23003.33254 | AL51: 6005.080171 | AM51: 4790.804751 | AN51: 10795.88492 | AP51: 110462.2125 | AQ51: 100000 | AR51: 10462.21254 | AT51: 4418.488502 | AU51: 4575.42169 | AV51: 8993.910191 | AX51: 110462.2125 | AY51: 110462.2125 | AZ51: 0 | BB51: 4418.488502 | BC51: 4418.488502 | BD51: 8836.977003
A52: 12 | C52: 6082.674727 | D52: 4848.912375 | E52: 0 | F52: 93005.0221 | G52: 10931.5871 | H52: 254520.7817 | I52: 141957.1443 | J52: 111566.8347 | M52: 19558.61522 | O52: 2768.559608 | S52: 8264.209975 | U52: 4971.584651 | V52: 4044.489515 | W52: 8181.567876 | Y52: 9016.074166 | Z52: 17197.64204 | AB52: 111566.8347 | AC52: 63000 | AD52: 48566.83467 | AE52: 13411.45 | AF52: 35155.38467 | AG52: 11047.43 | AH52: 24107.95467 | AI52: 11047.43 | AJ52: 24107.95467 | AL52: 6085.717586 | AM52: 4851.338044 | AN52: 10937.05563 | AP52: 111566.8347 | AQ52: 100000 | AR52: 11566.83467 | AT52: 4462.673387 | AU52: 4636.175907 | AV52: 9098.849293 | AX52: 111566.8347 | AY52: 111566.8347 | AZ52: 0 | BB52: 4462.673387 | BC52: 4462.673387 | BD52: 8925.346773
A53: 13 | C53: 6164.077794 | D53: 4910.020431 | E53: 0 | F53: 101268.4057 | G53: 11074.09823 | H53: 276851.1511 | I53: 153031.2426 | J53: 112682.503 | M53: 22551.50288 | O53: 2992.887651 | S53: 8346.852075 | U53: 5021.300498 | V53: 4084.93441 | W53: 8263.383554 | Y53: 9106.234908 | Z53: 17369.61846 | AB53: 112682.503 | AC53: 63000 | AD53: 49682.50301 | AE53: 13411.45 | AF53: 36271.05301 | AG53: 11047.43 | AH53: 25223.62301 | AI53: 11047.43 | AJ53: 25223.62301 | AL53: 6167.161375 | AM53: 4912.476669 | AN53: 11079.63804 | AP53: 112682.503 | AQ53: 100000 | AR53: 12682.50301 | AT53: 4507.300121 | AU53: 4697.537666 | AV53: 9204.837786 | AX53: 112682.503 | AY53: 112682.503 | AZ53: 0 | BB53: 4507.300121 | BC53: 4507.300121 | BD53: 9014.600241
A54: 14 | C54: 6246.294892 | D54: 4971.739567 | E54: 0 | F54: 109614.423 | G54: 11218.03446 | H54: 299634.6619 | I54: 164249.277 | J54: 113809.328 | M54: 25770.96185 | O54: 3219.458974 | S54: 8430.320596 | U54: 5071.513503 | V54: 4125.783754 | W54: 8346.01739 | Y54: 9197.297257 | Z54: 17543.31465 | AB54: 113809.328 | AC54: 63000 | AD54: 50809.32804 | AE54: 13411.45 | AF54: 37397.87804 | AG54: 11047.43 | AH54: 26350.44804 | AI54: 11047.43 | AJ54: 26350.44804 | AL54: 6249.419602 | AM54: 4974.226681 | AN54: 11223.64628 | AP54: 113809.328 | AQ54: 100000 | AR54: 13809.32804 | AT54: 4552.373122 | AU54: 4759.513042 | AV54: 9311.886164 | AX54: 113809.328 | AY54: 113809.328 | AZ54: 0 | BB54: 4552.373122 | BC54: 4552.373122 | BD54: 9104.746243
A55: 15 | C55: 6329.334161 | D55: 5034.075895 | E55: 0 | F55: 118043.9006 | G55: 11363.41006 | H55: 322875.8455 | I55: 175612.6871 | J55: 114947.4213 | M55: 29219.25786 | O55: 3448.296011 | S55: 8514.623802 | U55: 5122.228638 | V55: 4167.041591 | W55: 8429.477564 | Y55: 9289.270229 | Z55: 17718.74779 | AB55: 114947.4213 | AC55: 63000 | AD55: 51947.42132 | AE55: 13411.45 | AF55: 38535.97132 | AG55: 11047.43 | AH55: 27488.54132 | AI55: 11047.43 | AJ55: 27488.54132 | AL55: 6332.500412 | AM55: 5036.594193 | AN55: 11369.0946 | AP55: 114947.4213 | AQ55: 100000 | AR55: 14947.42132 | AT55: 4597.896853 | AU55: 4822.108173 | AV55: 9420.005026 | AX55: 114947.4213 | AY55: 114947.4213 | AZ55: 0 | BB55: 4597.896853 | BC55: 4597.896853 | BD55: 9195.793706
A56: 16 | C56: 6413.203823 | D56: 5097.035587 | E56: 0 | F56: 126557.6729 | G56: 11510.23941 | H56: 346579.2787 | I56: 187122.9265 | J56: 116096.8955 | M56: 32898.67928 | O56: 3679.421417 | S56: 8599.77004 | U56: 5173.450924 | V56: 4208.712007 | W56: 8513.772339 | Y56: 9382.162931 | Z56: 17895.93527 | AB56: 116096.8955 | AC56: 63000 | AD56: 53096.89554 | AE56: 13411.45 | AF56: 39685.44554 | AG56: 11047.43 | AH56: 28638.01554 | AI56: 11047.43 | AJ56: 28638.01554 | AL56: 6416.412029 | AM56: 5099.585379 | AN56: 11515.99741 | AP56: 116096.8955 | AQ56: 100000 | AR56: 16096.89554 | AT56: 4643.875821 | AU56: 4885.329255 | AV56: 9529.205076 | AX56: 116096.8955 | AY56: 116096.8955 | AZ56: 0 | BB56: 4643.875821 | BC56: 4643.875821 | BD56: 9287.751643
A57: 17 | C57: 6497.912182 | D57: 5160.624875 | E57: 0 | F57: 135156.583 | G57: 11658.53706 | H57: 370749.5839 | I57: 198781.4635 | J57: 117257.8645 | M57: 36811.53736 | O57: 3912.858079 | S57: 8685.76774 | U57: 5225.185433 | V57: 4250.799127 | W57: 8598.910063 | Y57: 9475.984561 | Z57: 18074.89462 | AB57: 117257.8645 | AC57: 63000 | AD57: 54257.86449 | AE57: 13411.45 | AF57: 40846.41449 | AG57: 11047.43 | AH57: 29798.98449 | AI57: 11047.43 | AJ57: 29798.98449 | AL57: 6501.162763 | AM57: 5163.206478 | AN57: 11664.36924 | AP57: 117257.8645 | AQ57: 100000 | AR57: 17257.86449 | AT57: 4690.31458 | AU57: 4949.182547 | AV57: 9639.497127 | AX57: 117257.8645 | AY57: 117257.8645 | AZ57: 0 | BB57: 4690.31458 | BC57: 4690.31458 | BD57: 9380.629159
A58: 18 | C58: 6583.467624 | D58: 5224.850056 | E58: 0 | F58: 143841.4822 | G58: 11808.31768 | H58: 395391.4299 | I58: 210589.7812 | J58: 118430.4431 | M58: 40960.16646 | O58: 4148.629106 | S58: 8772.625418 | U58: 5277.437288 | V58: 4293.307119 | W58: 8684.899163 | Y58: 9570.744406 | Z58: 18255.64357 | AB58: 118430.4431 | AC58: 63000 | AD58: 55430.44314 | AE58: 13411.45 | AF58: 42018.99314 | AG58: 11047.43 | AH58: 30971.56314 | AI58: 11047.43 | AJ58: 30971.56314 | AL58: 6586.761004 | AM58: 5227.463788 | AN58: 11814.22479 | AP58: 118430.4431 | AQ58: 100000 | AR58: 18430.44314 | AT58: 4737.217725 | AU58: 5013.674373 | AV58: 9750.892098 | AX58: 118430.4431 | AY58: 118430.4431 | AZ58: 0 | BB58: 4737.217725 | BC58: 4737.217725 | BD58: 9474.435451
A59: 19 | C59: 6669.87862 | D59: 5289.717489 | E59: 0 | F59: 152613.2303 | G59: 11959.59611 | H59: 420509.532 | I59: 222549.3773 | J59: 119614.7476 | M59: 45346.92431 | O59: 4386.757844 | S59: 8860.351672 | U59: 5330.211661 | V59: 4336.24019 | W59: 8771.748155 | Y59: 9666.45185 | Z59: 18438.20001 | AB59: 119614.7476 | AC59: 63000 | AD59: 56614.74757 | AE59: 13411.45 | AF59: 43203.29757 | AG59: 11047.43 | AH59: 32155.86757 | AI59: 11047.43 | AJ59: 32155.86757 | AL59: 6673.215228 | AM59: 5292.363671 | AN59: 11965.5789 | AP59: 119614.7476 | AQ59: 100000 | AR59: 19614.74757 | AT59: 4784.589903 | AU59: 5078.811116 | AV59: 9863.401019 | AX59: 119614.7476 | AY59: 119614.7476 | AZ59: 0 | BB59: 4784.589903 | BC59: 4784.589903 | BD59: 9569.179805
A60: 20 | C60: 6757.153726 | D60: 5355.233596 | E60: 0 | F60: 161472.696 | G60: 12112.38732 | H60: 446108.6528 | I60: 234661.7647 | J60: 120810.895 | M60: 49974.19218 | O60: 4627.267869 | S60: 8948.955188 | U60: 5383.513777 | V60: 4379.602592 | W60: 8859.465637 | Y60: 9763.116369 | Z60: 18622.58201 | AB60: 120810.895 | AC60: 63000 | AD60: 57810.89504 | AE60: 13411.45 | AF60: 44399.44504 | AG60: 11047.43 | AH60: 33352.01504 | AI60: 11047.43 | AJ60: 33352.01504 | AL60: 6760.533993 | AM60: 5357.912552 | AN60: 12118.44655 | AP60: 120810.895 | AQ60: 100000 | AR60: 20810.89504 | AT60: 4832.435802 | AU60: 5144.599227 | AV60: 9977.035029 | AX60: 120810.895 | AY60: 120810.895 | AZ60: 0 | BB60: 4832.435802 | BC60: 4832.435802 | BD60: 9664.871604
A61: 21 | C61: 6845.301584 | D61: 5421.404864 | E61: 0 | F61: 170420.7563 | G61: 12266.70645 | H61: 472193.6025 | I61: 246928.4711 | J61: 122019.004 | M61: 54844.37517 | O61: 4870.182995 | S61: 9038.44474 | U61: 5437.348915 | V61: 4423.398618 | W61: 8948.060293 | Y61: 9860.747533 | Z61: 18808.80783 | AB61: 122019.004 | AC61: 63000 | AD61: 59019.00399 | AE61: 13411.45 | AF61: 45607.55399 | AG61: 11047.43 | AH61: 34560.12399 | AI61: 11047.43 | AJ61: 34560.12399 | AL61: 6848.725947 | AM61: 5424.116923 | AN61: 12272.84287 | AP61: 122019.004 | AQ61: 100000 | AR61: 22019.00399 | AT61: 4880.76016 | AU61: 5211.04522 | AV61: 10091.80538 | AX61: 122019.004 | AY61: 122019.004 | AZ61: 0 | BB61: 4880.76016 | BC61: 4880.76016 | BD61: 9761.52032
A62: 22 | C62: 6934.33092 | D62: 5488.237845 | E62: 0 | F62: 179458.2972 | G62: 12422.56877 | H62: 498769.2395 | I62: 259351.0399 | J62: 123239.194 | M62: 59959.90244 | O62: 5115.527272 | S62: 9128.829188 | U62: 5491.722404 | V62: 4467.632604 | W62: 9037.540896 | Y62: 9959.355008 | Z62: 18996.8959 | AB62: 123239.194 | AC62: 63000 | AD62: 60239.19403 | AE62: 13411.45 | AF62: 46827.74403 | AG62: 11047.43 | AH62: 35780.31403 | AI62: 11047.43 | AJ62: 35780.31403 | AL62: 6937.79982 | AM62: 5490.983337 | AN62: 12428.78316 | AP62: 123239.194 | AQ62: 100000 | AR62: 23239.19403 | AT62: 4929.567761 | AU62: 5278.155672 | AV62: 10207.72343 | AX62: 123239.194 | AY62: 123239.194 | AZ62: 0 | BB62: 4929.567761 | BC62: 4929.567761 | BD62: 9859.135523
A63: 23 | C63: 7024.250549 | D63: 5555.739156 | E63: 0 | F63: 188586.2135 | G63: 12579.98971 | H63: 525840.4705 | I63: 271931.0296 | J63: 124471.586 | M63: 65323.22743 | O63: 5363.324991 | S63: 9220.11748 | U63: 5546.639628 | V63: 4512.30893 | W63: 9127.916305 | Y63: 10058.94856 | Z63: 19186.86486 | AB63: 124471.586 | AC63: 63000 | AD63: 61471.58598 | AE63: 13411.45 | AF63: 48060.13598 | AG63: 11047.43 | AH63: 37012.70598 | AI63: 11047.43 | AJ63: 37012.70598 | AL63: 7027.764431 | AM63: 5558.518415 | AN63: 12586.28285 | AP63: 124471.586 | AQ63: 100000 | AR63: 24471.58598 | AT63: 4978.863439 | AU63: 5345.937229 | AV63: 10324.80067 | AX63: 124471.586 | AY63: 124471.586 | AZ63: 0 | BB63: 4978.863439 | BC63: 4978.863439 | BD63: 9957.726878
A64: 24 | C64: 7115.069375 | D64: 5623.91548 | E64: 0 | F64: 197805.4089 | G64: 12738.98485 | H64: 553412.2515 | I64: 284670.0144 | J64: 125716.3018 | M64: 70936.82812 | O64: 5613.600688 | S64: 9312.318654 | U64: 5602.106024 | V64: 4557.432019 | W64: 9219.195468 | Y64: 10159.53804 | Z64: 19378.73351 | AB64: 125716.3018 | AC64: 63000 | AD64: 62716.30183 | AE64: 13411.45 | AF64: 49304.85183 | AG64: 11047.43 | AH64: 38257.42183 | AI64: 11047.43 | AJ64: 38257.42183 | AL64: 7118.628689 | AM64: 5626.728845 | AN64: 12745.35753 | AP64: 125716.3018 | AQ64: 100000 | AR64: 25716.30183 | AT64: 5028.652073 | AU64: 5414.396601 | AV64: 10443.04867 | AX64: 125716.3018 | AY64: 125716.3018 | AZ64: 0 | BB64: 5028.652073 | BC64: 5028.652073 | BD64: 10057.30415
A65: 25 | C65: 7206.796388 | D65: 5692.773567 | E65: 0 | F65: 207116.7963 | G65: 12899.56996 | H65: 581489.588 | I65: 297569.5844 | J65: 126973.4649 | M65: 76803.20726 | O65: 5866.379142 | S65: 9405.441841 | U65: 5658.127085 | V65: 4603.006339 | W65: 9311.387423 | Y65: 10261.13342 | Z65: 19572.52085 | AB65: 126973.4649 | AC65: 63000 | AD65: 63973.46485 | AE65: 13411.45 | AF65: 50562.01485 | AG65: 11047.43 | AH65: 39514.58485 | AI65: 11047.43 | AJ65: 39514.58485 | AL65: 7210.401589 | AM65: 5695.621378 | AN65: 12906.02297 | AP65: 126973.4649 | AQ65: 100000 | AR65: 26973.46485 | AT65: 5078.938594 | AU65: 5483.540567 | AV65: 10562.47916 | AX65: 126973.4649 | AY65: 126973.4649 | AZ65: 0 | BB65: 5078.938594 | BC65: 5078.938594 | BD65: 10157.87719
A66: 26 | C66: 7299.440673 | D66: 5762.320235 | E66: 0 | F66: 216521.2976 | G66: 13061.76091 | H66: 610077.5356 | I66: 310631.3453 | J66: 128243.1995 | M66: 82924.89264 | O66: 6121.68538 | S66: 9499.496259 | U66: 5714.708356 | V66: 4649.036403 | W66: 9404.501297 | Y66: 10363.74476 | Z66: 19768.24606 | AB66: 128243.1995 | AC66: 63000 | AD66: 65243.1995 | AE66: 13411.45 | AF66: 51831.7495 | AG66: 11047.43 | AH66: 40784.3195 | AI66: 11047.43 | AJ66: 40784.3195 | AL66: 7303.092219 | AM66: 5765.202837 | AN66: 13068.29506 | AP66: 128243.1995 | AQ66: 100000 | AR66: 28243.1995 | AT66: 5129.72798 | AU66: 5553.375973 | AV66: 10683.10395 | AX66: 128243.1995 | AY66: 128243.1995 | AZ66: 0 | BB66: 5129.72798 | BC66: 5129.72798 | BD66: 10259.45596
A67: 27 | C67: 7393.011399 | D67: 5832.56237 | E67: 0 | F67: 226019.844 | G67: 13225.57377 | H67: 639181.2003 | I67: 323856.9191 | J67: 129525.6315 | M67: 89304.43732 | O67: 6379.544681 | S67: 9594.491222 | U67: 5771.855439 | V67: 4695.526767 | W67: 9498.54631 | Y67: 10467.38221 | Z67: 19965.92852 | AB67: 129525.6315 | AC67: 63000 | AD67: 66525.6315 | AE67: 13411.45 | AF67: 53114.1815 | AG67: 11047.43 | AH67: 42066.7515 | AI67: 11047.43 | AJ67: 42066.7515 | AL67: 7396.709754 | AM67: 5835.48011 | AN67: 13232.18986 | AP67: 129525.6315 | AQ67: 100000 | AR67: 29525.6315 | AT67: 5181.02526 | AU67: 5623.909732 | AV67: 10804.93499 | AX67: 129525.6315 | AY67: 129525.6315 | AZ67: 0 | BB67: 5181.02526 | BC67: 5181.02526 | BD67: 10362.05052
A68: 28 | C68: 7487.517834 | D68: 5903.506926 | E68: 0 | F68: 235613.3757 | G68: 13391.02476 | H68: 668805.7394 | I68: 337247.9438 | J68: 130820.8878 | M68: 95944.4199 | O68: 6639.982574 | S68: 9690.436134 | U68: 5829.573993 | V68: 4742.482035 | W68: 9593.531773 | Y68: 10572.05603 | Z68: 20165.5878 | AB68: 130820.8878 | AC68: 63000 | AD68: 67820.88781 | AE68: 13411.45 | AF68: 54409.43781 | AG68: 11047.43 | AH68: 43362.00781 | AI68: 11047.43 | AJ68: 43362.00781 | AL68: 7491.263465 | AM68: 5906.460156 | AN68: 13397.72362 | AP68: 130820.8878 | AQ68: 100000 | AR68: 30820.88781 | AT68: 5232.835512 | AU68: 5695.14883 | AV68: 10927.98434 | AX68: 130820.8878 | AY68: 130820.8878 | AZ68: 0 | BB68: 5232.835512 | BC68: 5232.835512 | BD68: 10465.67102
A69: 29 | C69: 7582.969332 | D69: 5975.160928 | E69: 0 | F69: 245302.8428 | G69: 13558.13026 | H69: 698956.3616 | I69: 350806.0741 | J69: 132129.0967 | M69: 102847.4447 | O69: 6903.024847 | S69: 9787.340496 | U69: 5887.869733 | V69: 4789.906855 | W69: 9689.467091 | Y69: 10677.77659 | Z69: 20367.24368 | AB69: 132129.0967 | AC69: 63000 | AD69: 69129.09669 | AE69: 13411.45 | AF69: 55717.64669 | AG69: 11047.43 | AH69: 44670.21669 | AI69: 11047.43 | AJ69: 44670.21669 | AL69: 7586.762713 | AM69: 5978.150003 | AN69: 13564.91272 | AP69: 132129.0967 | AQ69: 100000 | AR69: 32129.09669 | AT69: 5285.163868 | AU69: 5767.100318 | AV69: 11052.26419 | AX69: 132129.0967 | AY69: 132129.0967 | AZ69: 0 | BB69: 5285.163868 | BC69: 5285.163868 | BD69: 10570.32774
A70: 30 | C70: 7679.375345 | D70: 6047.531469 | E70: 0 | F70: 255089.2046 | G70: 13726.90681 | H70: 729638.3278 | I70: 364532.9809 | J70: 133450.3877 | M70: 110016.1423 | O70: 7168.697542 | S70: 9885.2139 | U70: 5946.748431 | V70: 4837.805923 | W70: 9786.361761 | Y70: 10784.55435 | Z70: 20570.91612 | AB70: 133450.3877 | AC70: 63000 | AD70: 70450.38766 | AE70: 13411.45 | AF70: 57038.93766 | AG70: 11047.43 | AH70: 45991.50766 | AI70: 11047.43 | AJ70: 45991.50766 | AL70: 7683.216954 | AM70: 6050.556748 | AN70: 13733.7737 | AP70: 133450.3877 | AQ70: 100000 | AR70: 33450.38766 | AT70: 5338.015506 | AU70: 5839.771321 | AV70: 11177.78683 | AX70: 133450.3877 | AY70: 133450.3877 | AZ70: 0 | BB70: 5338.015506 | BC70: 5338.015506 | BD70: 10676.03101
A71: 31 | C71: 7776.745419 | D71: 6120.625716 | E71: 0 | F71: 264973.43 | G71: 13897.37114 | H71: 760856.9512 | I71: 378430.352 | J71: 134784.8915 | M71: 117453.1693 | O71: 7437.026964 | S71: 9984.06604 | U71: 6006.215915 | V71: 4886.183983 | W71: 9884.225379 | Y71: 10892.3999 | Z71: 20776.62528 | AB71: 134784.8915 | AC71: 63000 | AD71: 71784.89153 | AE71: 13411.45 | AF71: 58373.44153 | AG71: 11047.43 | AH71: 47326.01153 | AI71: 11047.43 | AJ71: 47326.01153 | AL71: 7780.635737 | AM71: 6123.68756 | AN71: 13904.3233 | AP71: 134784.8915 | AQ71: 100000 | AR71: 34784.89153 | AT71: 5391.395661 | AU71: 5913.169034 | AV71: 11304.5647 | AX71: 134784.8915 | AY71: 134784.8915 | AZ71: 0 | BB71: 5391.395661 | BC71: 5391.395661 | BD71: 10782.79132
A72: 32 | C72: 7875.089193 | D72: 6194.450906 | E72: 0 | F72: 274956.4976 | G72: 14069.5401 | H72: 792617.5987 | I72: 392499.8921 | J72: 136132.7404 | M72: 125161.2089 | O72: 7708.039681 | S72: 10083.9067 | U72: 6066.278074 | V72: 4935.045822 | W72: 9983.067633 | Y72: 11001.3239 | Z72: 20984.39153 | AB72: 136132.7404 | AC72: 63000 | AD72: 73132.74045 | AE72: 13411.45 | AF72: 59721.29045 | AG72: 11047.43 | AH72: 48673.86045 | AI72: 11047.43 | AJ72: 48673.86045 | AL72: 7879.028708 | AM72: 6197.549681 | AN72: 14076.57839 | AP72: 136132.7404 | AQ72: 100000 | AR72: 36132.74045 | AT72: 5445.309618 | AU72: 5987.300725 | AV72: 11432.61034 | AX72: 136132.7404 | AY72: 136132.7404 | AZ72: 0 | BB72: 5445.309618 | BC72: 5445.309618 | BD72: 10890.61924
A73: 33 | C73: 7974.416405 | D73: 6269.014347 | E73: 0 | F73: 285039.3959 | G73: 14243.43075 | H73: 824925.6902 | I73: 406743.3229 | J73: 137494.0679 | M73: 133142.9715 | O73: 7981.762525 | S73: 10184.74577 | U73: 6126.940855 | V73: 4984.396281 | W73: 10082.89831 | Y73: 11111.33714 | Z73: 21194.23544 | AB73: 137494.0679 | AC73: 63000 | AD73: 74494.06785 | AE73: 13411.45 | AF73: 61082.61785 | AG73: 11047.43 | AH73: 50035.18785 | AI73: 11047.43 | AJ73: 50035.18785 | AL73: 7978.405608 | AM73: 6272.150422 | AN73: 14250.55603 | AP73: 137494.0679 | AQ73: 100000 | AR73: 37494.06785 | AT73: 5499.762714 | AU73: 6062.173732 | AV73: 11561.93645 | AX73: 137494.0679 | AY73: 137494.0679 | AZ73: 0 | BB73: 5499.762714 | BC73: 5499.762714 | BD73: 10999.52543
A74: 34 | C74: 8074.73689 | D74: 6344.323423 | E74: 0 | F74: 295223.1232 | G74: 14419.06031 | H74: 857786.7004 | I74: 421162.3832 | J74: 138869.0085 | M74: 141401.1941 | O74: 8258.222597 | S74: 10286.59322 | U74: 6188.210263 | V74: 5034.240244 | W74: 10183.72729 | Y74: 11222.45051 | Z74: 21406.1778 | AB74: 138869.0085 | AC74: 63000 | AD74: 75869.00853 | AE74: 13411.45 | AF74: 62457.55853 | AG74: 11047.43 | AH74: 51410.12853 | AI74: 11047.43 | AJ74: 51410.12853 | AL74: 8078.776278 | AM74: 6347.497172 | AN74: 14426.27345 | AP74: 138869.0085 | AQ74: 100000 | AR74: 38869.00853 | AT74: 5554.760341 | AU74: 6137.795469 | AV74: 11692.55581 | AX74: 138869.0085 | AY74: 138869.0085 | AZ74: 0 | BB74: 5554.760341 | BC74: 5554.760341 | BD74: 11109.52068
A75: 35 | C75: 8176.060579 | D75: 6420.38559 | E75: 0 | F75: 305508.6878 | G75: 14596.44617 | H75: 891206.1584 | I75: 435758.8294 | J75: 140257.6986 | M75: 149938.6413 | O75: 8537.44727 | S75: 10389.45916 | U75: 6250.092366 | V75: 5084.582646 | W75: 10285.56457 | Y75: 11334.67501 | Z75: 21620.23958 | AB75: 140257.6986 | AC75: 63000 | AD75: 77257.69862 | AE75: 13411.45 | AF75: 63846.24862 | AG75: 11047.43 | AH75: 52798.81862 | AI75: 11047.43 | AJ75: 52798.81862 | AL75: 8180.150654 | AM75: 6423.597388 | AN75: 14603.74804 | AP75: 140257.6986 | AQ75: 100000 | AR75: 40257.69862 | AT75: 5610.307945 | AU75: 6214.173424 | AV75: 11824.48137 | AX75: 140257.6986 | AY75: 140257.6986 | AZ75: 0 | BB75: 5610.307945 | BC75: 5610.307945 | BD75: 11220.61589
A76: 36 | C76: 8278.397505 | D76: 6497.208378 | E76: 0 | F76: 315897.108 | G76: 14775.60588 | H76: 925189.6487 | I76: 450534.4352 | J76: 141660.2756 | M76: 158758.1055 | O76: 8819.464189 | S76: 10493.35375 | U76: 6312.59329 | V76: 5135.428472 | W76: 10388.42021 | Y76: 11448.02176 | Z76: 21836.44197 | AB76: 141660.2756 | AC76: 63000 | AD76: 78660.2756 | AE76: 13411.45 | AF76: 65248.8256 | AG76: 11047.43 | AH76: 54201.3956 | AI76: 11047.43 | AJ76: 54201.3956 | AL76: 8282.538774 | AM76: 6500.458607 | AN76: 14782.99738 | AP76: 141660.2756 | AQ76: 100000 | AR76: 41660.2756 | AT76: 5666.411024 | AU76: 6291.315158 | AV76: 11957.72618 | AX76: 141660.2756 | AY76: 141660.2756 | AZ76: 0 | BB76: 5666.411024 | BC76: 5666.411024 | BD76: 11332.82205
A77: 37 | C77: 8381.7578 | D77: 6574.799394 | E77: 0 | F77: 326389.4124 | G77: 14956.55719 | H77: 959742.8116 | I77: 465490.9924 | J77: 143076.8784 | M77: 167862.4068 | O77: 9104.301278 | S77: 10598.28729 | U77: 6375.719223 | V77: 5186.782757 | W77: 10492.30441 | Y77: 11562.50198 | Z77: 22054.80639 | AB77: 143076.8784 | AC77: 63000 | AD77: 80076.87836 | AE77: 13411.45 | AF77: 66665.42836 | AG77: 11047.43 | AH77: 55617.99836 | AI77: 11047.43 | AJ77: 55617.99836 | AL77: 8385.950775 | AM77: 6578.088438 | AN77: 14964.03921 | AP77: 143076.8784 | AQ77: 100000 | AR77: 43076.87836 | AT77: 5723.075134 | AU77: 6369.22831 | AV77: 12092.30344 | AX77: 143076.8784 | AY77: 143076.8784 | AZ77: 0 | BB77: 5723.075134 | BC77: 5723.075134 | BD77: 11446.15027
A78: 38 | C78: 8486.151698 | D78: 6653.16632 | E78: 0 | F78: 336986.6398 | G78: 15139.31802 | H78: 994871.3438 | I78: 480630.3105 | J78: 144507.6471 | M78: 177254.3935 | O78: 9391.986737 | S78: 10704.27016 | U78: 6439.476415 | V78: 5238.650585 | W78: 10597.22746 | Y78: 11678.127 | Z78: 22275.35446 | AB78: 144507.6471 | AC78: 63000 | AD78: 81507.64714 | AE78: 13411.45 | AF78: 68096.19714 | AG78: 11047.43 | AH78: 57048.76714 | AI78: 11047.43 | AJ78: 57048.76714 | AL78: 8490.396896 | AM78: 6656.494567 | AN78: 15146.89146 | AP78: 144507.6471 | AQ78: 100000 | AR78: 44507.64714 | AT78: 5780.305886 | AU78: 6447.920593 | AV78: 12228.22648 | AX78: 144507.6471 | AY78: 144507.6471 | AZ78: 0 | BB78: 5780.305886 | BC78: 5780.305886 | BD78: 11560.61177
A79: 39 | C79: 8591.589535 | D79: 6732.316916 | E79: 0 | F79: 347689.8396 | G79: 15323.90645 | H79: 1030580.999 | I79: 495954.2169 | J79: 145952.7236 | M79: 186936.9426 | O79: 9682.549052 | S79: 10811.31286 | U79: 6503.871179 | V79: 5291.037091 | W79: 10703.19973 | Y79: 11794.90827 | Z79: 22498.108 | AB79: 145952.7236 | AC79: 63000 | AD79: 82952.72361 | AE79: 13411.45 | AF79: 69541.27361 | AG79: 11047.43 | AH79: 58493.84361 | AI79: 11047.43 | AJ79: 58493.84361 | AL79: 8595.887479 | AM79: 6735.684758 | AN79: 15331.57224 | AP79: 145952.7236 | AQ79: 100000 | AR79: 45952.72361 | AT79: 5838.108945 | AU79: 6527.399799 | AV79: 12365.50874 | AX79: 145952.7236 | AY79: 145952.7236 | AZ79: 0 | BB79: 5838.108945 | BC79: 5838.108945 | BD79: 11676.21789
A80: 40 | C80: 8698.081751 | D80: 6812.259017 | E80: 0 | F80: 358500.0713 | G80: 15510.34077 | H80: 1066877.589 | I80: 511464.5577 | J80: 147412.2509 | M80: 196912.9596 | O80: 9976.016989 | S80: 10919.42599 | U80: 6568.909891 | V80: 5343.947461 | W80: 10810.23173 | Y80: 11912.85735 | Z80: 22723.08908 | AB80: 147412.2509 | AC80: 63000 | AD80: 84412.25085 | AE80: 13411.45 | AF80: 71000.80085 | AG80: 11047.43 | AH80: 59953.37085 | AI80: 11047.43 | AJ80: 59953.37085 | AL80: 8702.432967 | AM80: 6815.666851 | AN80: 15518.09982 | AP80: 147412.2509 | AQ80: 100000 | AR80: 47412.25085 | AT80: 5896.490034 | AU80: 6607.673797 | AV80: 12504.16383 | AX80: 147412.2509 | AY80: 147412.2509 | AZ80: 0 | BB80: 5896.490034 | BC80: 5896.490034 | BD80: 11792.98007
A81: 41 | C81: 8805.638888 | D81: 6893.00054 | E81: 0 | F81: 369418.4053 | G81: 15698.63943 | H81: 1103766.982 | I81: 527163.1971 | J81: 148886.3734 | M81: 207185.3792 | O81: 10272.41961 | S81: 11028.62025 | U81: 6634.59899 | V81: 5397.386936 | W81: 10918.33405 | Y81: 12031.98593 | Z81: 22950.31997 | AB81: 148886.3734 | AC81: 63000 | AD81: 85886.37336 | AE81: 13411.45 | AF81: 72474.92336 | AG81: 11047.43 | AH81: 61427.49336 | AI81: 11047.43 | AJ81: 61427.49336 | AL81: 8810.04391 | AM81: 6896.448764 | AN81: 15706.49267 | AP81: 148886.3734 | AQ81: 100000 | AR81: 48886.37336 | AT81: 5955.454934 | AU81: 6688.750535 | AV81: 12644.20547 | AX81: 148886.3734 | AY81: 148886.3734 | AZ81: 0 | BB81: 5955.454934 | BC81: 5955.454934 | BD81: 11910.90987
A82: 42 | C82: 8914.271597 | D82: 6974.549477 | E82: 0 | F82: 380445.9227 | G82: 15888.82107 | H82: 1141255.106 | I82: 543052.0182 | J82: 150375.2371 | M82: 217757.1654 | O82: 10571.78625 | S82: 11138.90645 | U82: 6700.94498 | V82: 5451.360805 | W82: 11027.51739 | Y82: 12152.30579 | Z82: 23179.82317 | AB82: 150375.2371 | AC82: 63000 | AD82: 87375.23709 | AE82: 13411.45 | AF82: 73963.78709 | AG82: 11047.43 | AH82: 62916.35709 | AI82: 11047.43 | AJ82: 62916.35709 | AL82: 8918.730963 | AM82: 6978.038497 | AN82: 15896.76946 | AP82: 150375.2371 | AQ82: 100000 | AR82: 50375.23709 | AT82: 6015.009484 | AU82: 6770.63804 | AV82: 12785.64752 | AX82: 150375.2371 | AY82: 150000 | AZ82: 375.2370924 | BB82: 6015.009484 | BC82: 6020.562993 | BD82: 12035.57248
A83: 43 | C83: 9023.990633 | D83: 7056.913905 | E83: 0 | F83: 391583.7153 | G83: 16080.90454 | H83: 1179347.95 | I83: 559132.9227 | J83: 151878.9895 | M83: 228631.312 | O83: 10874.14656 | S83: 11250.29552 | U83: 6767.954429 | V83: 5505.874413 | W83: 11137.79256 | Y83: 12273.82884 | Z83: 23411.6214 | AB83: 151878.9895 | AC83: 63000 | AD83: 88878.98946 | AE83: 13411.45 | AF83: 75467.53946 | AG83: 11047.43 | AH83: 64420.10946 | AI83: 11047.43 | AJ83: 64420.10946 | AL83: 9028.504886 | AM83: 7060.444127 | AN83: 16088.94901 | AP83: 151878.9895 | AQ83: 100000 | AR83: 51878.98946 | AT83: 6075.159579 | AU83: 6853.34442 | AV83: 12928.504 | AX83: 151878.9895 | AY83: 150000 | AZ83: 1878.989463 | BB83: 6075.159579 | BC83: 6102.968623 | BD83: 12178.1282
A84: 44 | C84: 9134.80686 | D84: 7140.101976 | E84: 0 | F84: 402832.8858 | G84: 16274.90884 | H84: 1218051.56 | I84: 575407.8316 | J84: 153397.7794 | M84: 239810.8425 | O84: 11179.53047 | S84: 11362.79847 | U84: 6835.633974 | V84: 5560.933158 | W84: 11249.17049 | Y84: 12396.56713 | Z84: 23645.73762 | AB84: 153397.7794 | AC84: 63000 | AD84: 90397.77936 | AE84: 13411.45 | AF84: 76986.32936 | AG84: 11047.43 | AH84: 65938.89936 | AI84: 11047.43 | AJ84: 65938.89936 | AL84: 9139.376548 | AM84: 7143.673813 | AN84: 16283.05036 | AP84: 153397.7794 | AQ84: 100000 | AR84: 53397.77936 | AT84: 6135.911174 | AU84: 6936.877865 | AV84: 13072.78904 | AX84: 153397.7794 | AY84: 150000 | AZ84: 3397.779358 | BB84: 6135.911174 | BC84: 6186.198309 | BD84: 12322.10948
A85: 45 | C85: 9246.731249 | D85: 7224.121928 | E85: 0 | F85: 414194.548 | G85: 16470.85318 | H85: 1257372.043 | I85: 591878.6847 | J85: 154931.7572 | M85: 251298.8107 | O85: 11487.96822 | S85: 11476.42646 | U85: 6903.990313 | V85: 5616.542489 | W85: 11361.66219 | Y85: 12520.5328 | Z85: 23882.19499 | AB85: 154931.7572 | AC85: 63000 | AD85: 91931.75715 | AE85: 13411.45 | AF85: 78520.30715 | AG85: 11047.43 | AH85: 67472.87715 | AI85: 11047.43 | AJ85: 67472.87715 | AL85: 9251.356927 | AM85: 7227.735796 | AN85: 16479.09272 | AP85: 154931.7572 | AQ85: 100000 | AR85: 54931.75715 | AT85: 6197.270286 | AU85: 7021.246643 | AV85: 13218.51693 | AX85: 154931.7572 | AY85: 150000 | AZ85: 4931.757152 | BB85: 6197.270286 | BC85: 6270.260292 | BD85: 12467.53058
A86: 46 | C86: 9359.774881 | D86: 7308.98208 | E86: 0 | F86: 425669.8268 | G86: 16668.75696 | H86: 1297315.569 | I86: 608547.4417 | J86: 156481.0747 | M86: 263098.301 | O86: 11799.49035 | S86: 11591.19072 | U86: 6973.030217 | V86: 5672.707914 | W86: 11475.27881 | Y86: 12645.73813 | Z86: 24121.01694 | AB86: 156481.0747 | AC86: 63000 | AD86: 93481.07472 | AE86: 13411.45 | AF86: 80069.62472 | AG86: 11047.43 | AH86: 69022.19472 | AI86: 11047.43 | AJ86: 69022.19472 | AL86: 9364.45711 | AM86: 7312.638399 | AN86: 16677.09551 | AP86: 156481.0747 | AQ86: 100000 | AR86: 56481.07472 | AT86: 6259.242989 | AU86: 7106.45911 | AV86: 13365.7021 | AX86: 156481.0747 | AY86: 150000 | AZ86: 6481.074723 | BB86: 6259.242989 | BC86: 6355.162895 | BD86: 12614.40588
A87: 47 | C87: 9473.94895 | D87: 7394.690833 | E87: 0 | F87: 437259.8584 | G87: 16868.63978 | H87: 1337888.369 | I87: 625416.0815 | J87: 158045.8855 | M87: 275212.4287 | O87: 12114.1277 | S87: 11707.10263 | U87: 7042.760519 | V87: 5729.434993 | W87: 11590.0316 | Y87: 12772.19551 | Z87: 24362.22711 | AB87: 158045.8855 | AC87: 63000 | AD87: 95045.88547 | AE87: 13411.45 | AF87: 81634.43547 | AG87: 11047.43 | AH87: 70587.00547 | AI87: 11047.43 | AJ87: 70587.00547 | AL87: 9478.688294 | AM87: 7398.390028 | AN87: 16877.07832 | AP87: 158045.8855 | AQ87: 100000 | AR87: 58045.88547 | AT87: 6321.835419 | AU87: 7192.523701 | AV87: 13514.35912 | AX87: 158045.8855 | AY87: 150000 | AZ87: 8045.88547 | BB87: 6321.835419 | BC87: 6440.914524 | BD87: 12762.74994
A88: 48 | C88: 9589.26476 | D88: 7481.256673 | E88: 0 | F88: 448965.7903 | G88: 17070.52143 | H88: 1379096.733 | I88: 642486.6029 | J88: 159626.3443 | M88: 287644.3402 | O88: 12431.91143 | S88: 11824.17365 | U88: 7113.188124 | V88: 5786.729343 | W88: 11705.93192 | Y88: 12899.91747 | Z88: 24605.84938 | AB88: 159626.3443 | AC88: 63000 | AD88: 96626.34432 | AE88: 13411.45 | AF88: 83214.89432 | AG88: 11047.43 | AH88: 72167.46432 | AI88: 11047.43 | AJ88: 72167.46432 | AL88: 9594.061791 | AM88: 7484.999173 | AN88: 17079.06096 | AP88: 159626.3443 | AQ88: 100000 | AR88: 59626.34432 | AT88: 6385.053773 | AU88: 7279.448938 | AV88: 13664.50271 | AX88: 159626.3443 | AY88: 150000 | AZ88: 9626.344325 | BB88: 6385.053773 | BC88: 6527.523669 | BD88: 12912.57744
A89: 49 | C89: 9705.733728 | D89: 7568.688172 | E89: 0 | F89: 460788.7815 | G89: 17274.4219 | H89: 1420947.019 | I89: 659761.0248 | J89: 161222.6078 | M89: 300397.2131 | O89: 12752.87299 | S89: 11942.41539 | U89: 7184.320005 | V89: 5844.596637 | W89: 11822.99124 | Y89: 13028.91664 | Z89: 24851.90788 | AB89: 161222.6078 | AC89: 63000 | AD89: 98222.60777 | AE89: 13411.45 | AF89: 84811.15777 | AG89: 11047.43 | AH89: 73763.72777 | AI89: 11047.43 | AJ89: 73763.72777 | AL89: 9710.589022 | AM89: 7572.47441 | AN89: 17283.06343 | AP89: 161222.6078 | AQ89: 100000 | AR89: 61222.60777 | AT89: 6448.904311 | AU89: 7367.243427 | AV89: 13816.14774 | AX89: 161222.6078 | AY89: 150000 | AZ89: 11222.60777 | BB89: 6448.904311 | BC89: 6614.998906 | BD89: 13063.90322
A90: 50 | C90: 9823.367385 | D90: 7656.993987 | E90: 0 | F90: 472730.0027 | G90: 17480.36137 | H90: 1463445.646 | I90: 677241.3862 | J90: 162834.8338 | M90: 313474.2573 | O90: 13077.04416 | S90: 12061.83954 | U90: 7256.163205 | V90: 5903.042603 | W90: 11941.22115 | Y90: 13159.20581 | Z90: 25100.42696 | AB90: 162834.8338 | AC90: 63000 | AD90: 99834.83385 | AE90: 13411.45 | AF90: 86423.38385 | AG90: 11047.43 | AH90: 75375.95385 | AI90: 11047.43 | AJ90: 75375.95385 | AL90: 9828.281526 | AM90: 7660.824399 | AN90: 17489.10592 | AP90: 162834.8338 | AQ90: 100000 | AR90: 62834.83385 | AT90: 6513.393354 | AU90: 7455.915862 | AV90: 13969.30922 | AX90: 162834.8338 | AY90: 150000 | AZ90: 12834.83385 | BB90: 6513.393354 | BC90: 6703.348895 | BD90: 13216.74225
A91: 51 | C91: 9942.177379 | D91: 7746.182859 | E91: 0 | F91: 484790.636 | G91: 17688.36024 | H91: 1506599.097 | I91: 694929.7464 | J91: 164463.1822 | M91: 326878.7144 | O91: 13404.45705 | S91: 12182.45794 | U91: 7328.724837 | V91: 5962.073029 | W91: 12060.63336 | Y91: 13290.79787 | Z91: 25351.43123 | AB91: 164463.1822 | AC91: 63000 | AD91: 101463.1822 | AE91: 13411.45 | AF91: 88051.73218 | AG91: 11047.43 | AH91: 77004.30218 | AI91: 11047.43 | AJ91: 77004.30218 | AL91: 9947.150954 | AM91: 7750.057888 | AN91: 17697.20884 | AP91: 164463.1822 | AQ91: 100000 | AR91: 64463.18218 | AT91: 6578.527287 | AU91: 7545.47502 | AV91: 14124.00231 | AX91: 164463.1822 | AY91: 150000 | AZ91: 14463.18218 | BB91: 6578.527287 | BC91: 6792.582384 | BD91: 13371.10967
A92: 52 | C92: 10062.17547 | D92: 7836.26362 | E92: 0 | F92: 496971.8757 | G92: 17898.43909 | H92: 1550413.92 | I92: 712828.1855 | J92: 166107.814 | M92: 340613.8584 | O92: 13735.14407 | S92: 12304.28252 | U92: 7402.012086 | V92: 6021.693759 | W92: 12181.23969 | Y92: 13423.70584 | Z92: 25604.94554 | AB92: 166107.814 | AC92: 63000 | AD92: 103107.814 | AE92: 13411.45 | AF92: 89696.36401 | AG92: 11047.43 | AH92: 78648.93401 | AI92: 11047.43 | AJ92: 78648.93401 | AL92: 10067.20908 | AM92: 7840.183712 | AN92: 17907.39279 | AP92: 166107.814 | AQ92: 100000 | AR92: 66107.81401 | AT92: 6644.31256 | AU92: 7635.92977 | AV92: 14280.24233 | AX92: 166107.814 | AY92: 150000 | AZ92: 16107.81401 | BB92: 6644.31256 | BC92: 6882.708208 | BD92: 13527.02077
A93: 53 | C93: 10183.37355 | D93: 7927.245188 | E93: 0 | F93: 509274.9278 | G93: 18110.61874 | H93: 1594896.728 | I93: 730938.8042 | J93: 167768.8921 | M93: 354682.9964 | O93: 14069.13796 | S93: 12427.32534 | U93: 7476.032207 | V93: 6081.910697 | W93: 12303.05209 | Y93: 13557.9429 | Z93: 25860.99499 | AB93: 167768.8921 | AC93: 63000 | AD93: 104768.8921 | AE93: 13411.45 | AF93: 91357.44215 | AG93: 11047.43 | AH93: 80310.01215 | AI93: 11047.43 | AJ93: 80310.01215 | AL93: 10188.46778 | AM93: 7931.210794 | AN93: 18119.67858 | AP93: 167768.8921 | AQ93: 100000 | AR93: 67768.89215 | AT93: 6710.755686 | AU93: 7727.289068 | AV93: 14438.04475 | AX93: 167768.8921 | AY93: 150000 | AZ93: 17768.89215 | BB93: 6710.755686 | BC93: 6973.73529 | BD93: 13684.49098
A94: 54 | C94: 10305.7836 | D94: 8019.136572 | E94: 0 | F94: 521701.0104 | G94: 18324.92018 | H94: 1640054.203 | I94: 749263.7244 | J94: 169446.5811 | M94: 369089.4682 | O94: 14406.47178 | S94: 12551.5986 | U94: 7550.792529 | V94: 6142.729804 | W94: 12426.08261 | Y94: 13693.52233 | Z94: 26119.60494 | AB94: 169446.5811 | AC94: 63000 | AD94: 106446.5811 | AE94: 13411.45 | AF94: 93035.13107 | AG94: 11047.43 | AH94: 81987.70107 | AI94: 11047.43 | AJ94: 81987.70107 | AL94: 10310.93907 | AM94: 8023.148147 | AN94: 18334.08722 | AP94: 169446.5811 | AQ94: 100000 | AR94: 69446.58107 | AT94: 6777.863243 | AU94: 7819.561959 | AV94: 14597.4252 | AX94: 169446.5811 | AY94: 150000 | AZ94: 19446.58107 | BB94: 6777.863243 | BC94: 7065.672643 | BD94: 13843.53589
A95: 55 | C95: 10429.41776 | D95: 8111.946871 | E95: 0 | F95: 534251.3539 | G95: 18541.36463 | H95: 1685893.09 | I95: 767805.0891 | J95: 171141.0469 | M95: 383836.6471 | O95: 14747.17895 | S95: 12677.11458 | U95: 7626.300454 | V95: 6204.157102 | W95: 12550.34344 | Y95: 13830.45756 | Z95: 26380.80099 | AB95: 171141.0469 | AC95: 63000 | AD95: 108141.0469 | AE95: 13411.45 | AF95: 94729.59688 | AG95: 11047.43 | AH95: 83682.16688 | AI95: 11047.43 | AJ95: 83682.16688 | AL95: 10434.63508 | AM95: 8116.004873 | AN95: 18550.63995 | AP95: 171141.0469 | AQ95: 100000 | AR95: 71141.04688 | AT95: 6845.641875 | AU95: 7912.757578 | AV95: 14758.39945 | AX95: 171141.0469 | AY95: 150000 | AZ95: 21141.04688 | BB95: 6845.641875 | BC95: 7158.529369 | BD95: 14004.17124
A96: 56 | C96: 10554.28826 | D96: 8205.685272 | E96: 0 | F96: 546927.2008 | G96: 18759.97353 | H96: 1732420.204 | I96: 786565.0626 | J96: 172852.4573 | M96: 398927.9403 | O96: 15091.29318 | S96: 12803.88573 | U96: 7702.563458 | V96: 6266.198673 | W96: 12675.84687 | Y96: 13968.76213 | Z96: 26644.609 | AB96: 172852.4573 | AC96: 63000 | AD96: 109852.4573 | AE96: 13411.45 | AF96: 96441.00735 | AG96: 11047.43 | AH96: 85393.57735 | AI96: 11047.43 | AJ96: 85393.57735 | AL96: 10559.56804 | AM96: 8209.790167 | AN96: 18769.35821 | AP96: 172852.4573 | AQ96: 100000 | AR96: 72852.45735 | AT96: 6914.098294 | AU96: 8006.885154 | AV96: 14920.98345 | AX96: 172852.4573 | AY96: 150000 | AZ96: 22852.45735 | BB96: 6914.098294 | BC96: 7252.314663 | BD96: 14166.41296
A97: 57 | C97: 10680.40746 | D97: 8300.361057 | E97: 0 | F97: 559729.8061 | G97: 18980.76852 | H97: 1779642.426 | I97: 805545.8311 | J97: 174580.9819 | M97: 414366.7889 | O97: 15438.84856 | S97: 12931.92459 | U97: 7779.589093 | V97: 6328.86066 | W97: 12802.60534 | Y97: 14108.44975 | Z97: 26911.05509 | AB97: 174580.9819 | AC97: 63000 | AD97: 111580.9819 | AE97: 13411.45 | AF97: 98169.53192 | AG97: 11047.43 | AH97: 87122.10192 | AI97: 11047.43 | AJ97: 87122.10192 | AL97: 10685.75034 | AM97: 8304.513313 | AN97: 18990.26365 | AP97: 174580.9819 | AQ97: 100000 | AR97: 74580.98192 | AT97: 6983.239277 | AU97: 8101.954006 | AV97: 15085.19328 | AX97: 174580.9819 | AY97: 150000 | AZ97: 24580.98192 | BB97: 6983.239277 | BC97: 7347.037809 | BD97: 14330.27709
A98: 58 | C98: 10807.78785 | D98: 8395.9836 | E98: 0 | F98: 572660.4375 | G98: 19203.77145 | H98: 1827566.708 | I98: 824749.6026 | J98: 176326.7917 | M98: 430156.6684 | O98: 15789.8795 | S98: 13061.24383 | U98: 7857.384984 | V98: 6392.149266 | W98: 12930.63139 | Y98: 14249.53425 | Z98: 27180.16564 | AB98: 176326.7917 | AC98: 63000 | AD98: 113326.7917 | AE98: 13411.45 | AF98: 99915.34174 | AG98: 11047.43 | AH98: 88867.91174 | AI98: 11047.43 | AJ98: 88867.91174 | AL98: 10813.19445 | AM98: 8400.183691 | AN98: 19213.37814 | AP98: 176326.7917 | AQ98: 100000 | AR98: 76326.79174 | AT98: 7053.07167 | AU98: 8197.973546 | AV98: 15251.04522 | AX98: 176326.7917 | AY98: 150000 | AZ98: 26326.79174 | BB98: 7053.07167 | BC98: 7442.708187 | BD98: 14495.77986
A99: 59 | C99: 10936.44205 | D99: 8492.562368 | E99: 0 | F99: 585720.3752 | G99: 19429.00442 | H99: 1876200.071 | I99: 844178.607 | J99: 178090.0597 | M99: 446301.0891 | O99: 16144.42074 | S99: 13191.85627 | U99: 7935.958834 | V99: 6456.070759 | W99: 13059.93771 | Y99: 14392.02959 | Z99: 27451.9673 | AB99: 178090.0597 | AC99: 63000 | AD99: 115090.0597 | AE99: 13411.45 | AF99: 101678.6097 | AG99: 11047.43 | AH99: 90631.17966 | AI99: 11047.43 | AJ99: 90631.17966 | AL99: 10941.91301 | AM99: 8496.810773 | AN99: 19438.72378 | AP99: 178090.0597 | AQ99: 100000 | AR99: 78090.05966 | AT99: 7123.602386 | AU99: 8294.953281 | AV99: 15418.55567 | AX99: 178090.0597 | AY99: 150000 | AZ99: 28090.05966 | BB99: 7123.602386 | BC99: 7539.335269 | BD99: 14662.93766
A100: 60 | C100: 11066.38279 | D100: 8590.106924 | E100: 0 | F100: 598910.9123 | G100: 19656.48972 | H100: 1925549.605 | I100: 863835.0967 | J100: 179870.9603 | M100: 462803.5965 | O100: 16502.50739 | S100: 13323.77483 | U100: 8015.318422 | V100: 6520.631466 | W100: 13190.53709 | Y100: 14535.94989 | Z100: 27726.48697 | AB100: 179870.9603 | AC100: 63000 | AD100: 116870.9603 | AE100: 13411.45 | AF100: 103459.5103 | AG100: 11047.43 | AH100: 92412.08025 | AI100: 11047.43 | AJ100: 92412.08025 | AL100: 11071.91875 | AM100: 8594.404126 | AN100: 19666.32288 | AP100: 179870.9603 | AQ100: 100000 | AR100: 79870.96025 | AT100: 7194.83841 | AU100: 8392.902814 | AV100: 15587.74122 | AX100: 179870.9603 | AY100: 150000 | AZ100: 29870.96025 | BB100: 7194.83841 | BC100: 7636.928622 | BD100: 14831.76703
A101: 61 | C101: 11197.62294 | D101: 8688.626925 | E101: 0 | F101: 612233.3547 | G101: 19886.24987 | H101: 1975622.473 | I101: 883721.3466 | J101: 181669.6699 | M101: 479667.7714 | O101: 16864.17491 | S101: 13457.01258 | U101: 8095.471606 | V101: 6585.837781 | W101: 13322.44246 | Y101: 14681.30939 | Z101: 28003.75184 | AB101: 181669.6699 | AC101: 63000 | AD101: 118669.6699 | AE101: 13411.45 | AF101: 105258.2199 | AG101: 11047.43 | AH101: 94210.78986 | AI101: 11047.43 | AJ101: 94210.78986 | AL101: 11203.22455 | AM101: 8692.973412 | AN101: 19896.19797 | AP101: 181669.6699 | AQ101: 100000 | AR101: 81669.66986 | AT101: 7266.786794 | AU101: 8491.831842 | AV101: 15758.61864 | AX101: 181669.6699 | AY101: 150000 | AZ101: 31669.66986 | BB101: 7266.786794 | BC101: 7735.497908 | BD101: 15002.2847
A102: 62 | C102: 11330.17549 | D102: 8788.132127 | E102: 0 | F102: 625689.0216 | G102: 20118.30762 | H102: 2026425.906 | I102: 903839.6542 | J102: 183486.3666 | M102: 496897.2305 | O102: 17229.45911 | S102: 13591.58271 | U102: 8176.426322 | V102: 6651.696159 | W102: 13455.66688 | Y102: 14828.12248 | Z102: 28283.78936 | AB102: 183486.3666 | AC102: 63000 | AD102: 120486.3666 | AE102: 13411.45 | AF102: 107074.9166 | AG102: 11047.43 | AH102: 96027.48655 | AI102: 11047.43 | AJ102: 96027.48655 | AL102: 11335.84341 | AM102: 8792.528391 | AN102: 20128.3718 | AP102: 183486.3666 | AQ102: 100000 | AR102: 83486.36655 | AT102: 7339.454662 | AU102: 8591.750161 | AV102: 15931.20482 | AX102: 183486.3666 | AY102: 150000 | AZ102: 33486.36655 | BB102: 7339.454662 | BC102: 7835.052887 | BD102: 15174.50755
A103: 63 | C103: 11464.05357 | D103: 8888.632381 | E103: 0 | F103: 639279.2452 | G103: 20352.68595 | H103: 2077967.212 | I103: 924192.3401 | J103: 185321.2302 | M103: 514495.6266 | O103: 17598.39615 | S103: 13727.49853 | U103: 8258.190586 | V103: 6718.213121 | W103: 13590.22355 | Y103: 14976.40371 | Z103: 28566.62726 | AB103: 185321.2302 | AC103: 63000 | AD103: 122321.2302 | AE103: 13411.45 | AF103: 108909.7802 | AG103: 11047.43 | AH103: 97862.35022 | AI103: 11047.43 | AJ103: 97862.35022 | AL103: 11469.78846 | AM103: 8893.07892 | AN103: 20362.86738 | AP103: 185321.2302 | AQ103: 100000 | AR103: 85321.23022 | AT103: 7412.849209 | AU103: 8692.667662 | AV103: 16105.51687 | AX103: 185321.2302 | AY103: 150000 | AZ103: 35321.23022 | BB103: 7412.849209 | BC103: 7935.603416 | BD103: 15348.45262
A104: 64 | C104: 11599.27042 | D104: 8990.137637 | E104: 0 | F104: 653005.371 | G104: 20589.40806 | H104: 2130253.768 | I104: 944781.7482 | J104: 187174.4425 | M104: 532466.6492 | O104: 17971.02255 | S104: 13864.77352 | U104: 8340.772491 | V104: 6785.395252 | W104: 13726.12579 | Y104: 15126.16774 | Z104: 28852.29353 | AB104: 187174.4425 | AC104: 63000 | AD104: 124174.4425 | AE104: 13411.45 | AF104: 110762.9925 | AG104: 11047.43 | AH104: 99715.56252 | AI104: 11047.43 | AJ104: 99715.56252 | AL104: 11605.07296 | AM104: 8994.634954 | AN104: 20599.70791 | AP104: 187174.4425 | AQ104: 100000 | AR104: 87174.44252 | AT104: 7486.977701 | AU104: 8794.594339 | AV104: 16281.57204 | AX104: 187174.4425 | AY104: 150000 | AZ104: 37174.44252 | BB104: 7486.977701 | BC104: 8037.15945 | BD104: 15524.13715
A105: 65 | C105: 11735.83945 | D105: 9092.657945 | E105: 0 | F105: 666868.758 | G105: 20828.49739 | H105: 2183293.028 | I105: 965610.2456 | J105: 189046.1869 | M105: 550814.0244 | O105: 18347.37523 | S105: 14003.42126 | U105: 8424.180216 | V105: 6853.249204 | W105: 13863.38704 | Y105: 15277.42942 | Z105: 29140.81646 | AB105: 189046.1869 | AC105: 63000 | AD105: 126046.1869 | AE105: 13411.45 | AF105: 112634.7369 | AG105: 11047.43 | AH105: 101587.3069 | AI105: 11047.43 | AJ105: 101587.3069 | AL105: 11741.7103 | AM105: 9097.206549 | AN105: 20838.91685 | AP105: 189046.1869 | AQ105: 100000 | AR105: 89046.18695 | AT105: 7561.847478 | AU105: 8897.540282 | AV105: 16459.38776 | AX105: 189046.1869 | AY105: 150000 | AZ105: 39046.18695 | BB105: 7561.847478 | BC105: 8139.731045 | BD105: 15701.57852
A106: 66 | C106: =IF($B$35=1,AL106*99.95%,IF($B$35=2,BB106*99.95%,AT106*99.95%)) -> 11873.77416 | D106: =IF($B$35=1,AM106*99.95%,IF($B$35=2,BC106*99.95%,AU106*99.95%)) -> 9196.203457 | E106: 0 | F106: 680870.7789 | G106: =+B106+C106+D106 -> 21069.97762 | H106: 2237092.518 | I106: 986680.2232 | J106: 190936.6488 | M106: 569541.5158 | O106: 18727.49143 | S106: =+J106/13.5 -> 14143.45547 | U106: 8508.422019 | V106: 6921.781696 | W106: 14002.02091 | Y106: 15430.20371 | Z106: 29432.22463 | AB106: =+J106 -> 190936.6488 | AC106: =IF(AB106>=$AC$29,$AC$29,AB106) -> 63000 | AD106: =+AB106-AC106 -> 127936.6488 | AE106: =IF(AD106>=$AA$30,$AA$30,AD106) -> 13411.45 | AF106: =+AD106-AE106 -> 114525.1988 | AG106: =IF(AF106>=$AA$31,$AA$31,AF106) -> 11047.43 | AH106: =+AF106-AG106 -> 103477.7688 | AI106: =IF(AH106>=$AA$32,$AA$32,AH106) -> 11047.43 | AJ106: =IF(AH106>=$AA$33,$AA$33,AH106) -> 103477.7688 | AL106: =+((AC106*$AD$29)+(AE106*$AD$30)+(AG106*$AD$31)+(AI106*$AD$32)+(AJ106*$AD$33))/100 -> 11879.71402 | AM106: =+((AC106*$AE$29)+(AE106*$AE$30)+(AG106*$AE$31)+(AI106*$AE$32)+(AJ106*$AE$33))/100 -> 9200.803859 | AN106: =+AL106+AM106 -> 21080.51788 | AP106: =+AB106 -> 190936.6488 | AQ106: =IF(AP106>=$AH$29,$AH$29,AP106) -> 100000 | AR106: =+AP106-AQ106 -> 90936.64882 | AT106: =+AP106*$AI$29% -> 7637.465953 | AU106: =+(AQ106*$AJ$29/100)+AR106*$AJ$30/100 -> 9001.515685 | AV106: =+AT106+AU106 -> 16638.98164 | AX106: =+J106 -> 190936.6488 | AY106: =IF(AX106>=$AH$33,$AH$33,AX106) -> 150000 | AZ106: =+AX106-AY106 -> 40936.64882 | BB106: =+AX106*$AI$33% -> 7637.465953 | BC106: =+(AY106*$AJ$33%)+(AZ106*$AJ$34%) -> 8243.328355 | BD106: =+BB106+BC106 -> 15880.79431
A107: =1+A106 -> 67 | C107: 12013.08822 | D107: 9300.784424 | E107: =+E106+X107 -> 0 | F107: =+F106+W107 -> 695012.82 | G107: 21313.87265 | H107: =+I107+F107+M107 -> 2291659.841 | I107: =+I106+G107 -> 1007994.096 | J107: =+J106*$K$41/100 -> 192846.0153 | M107: =+M106+O107 -> 588652.9246 | O107: =+(G107+F107+O106)*$N$41/100 -> 19111.40879 | S107: 14284.89002 | U107: =+J107*$P$41/100*99% -> 8593.506239 | V107: =+J107*$Q$41*99%/100 -> 6990.999513 | W107: =+J107/13.5*$R$41/100*99% -> 14142.04112 | Y107: =+U107+V107+X107 -> 15584.50575 | Z107: =+Y107+W107 -> 29726.54687 | AB107: 192846.0153 | AC107: 63000 | AD107: 129846.0153 | AE107: 13411.45 | AF107: 116434.5653 | AG107: 11047.43 | AH107: 105387.1353 | AI107: 11047.43 | AJ107: 105387.1353 | AL107: 12019.09777 | AM107: 9305.437143 | AN107: 21324.53492 | AP107: 192846.0153 | AQ107: 100000 | AR107: 92846.01531 | AT107: 7713.840612 | AU107: 9106.530842 | AV107: 16820.37145 | AX107: 192846.0153 | AY107: 150000 | AZ107: 42846.01531 | BB107: 7713.840612 | BC107: 8347.961639 | BD107: 16061.80225
A108: 68 | C108: 12153.79543 | D108: 9406.411201 | E108: 0 | F108: 709296.2816 | G108: 21560.20663 | H108: 2347002.674 | I108: 1029554.302 | J108: 194774.4755 | M108: 608152.09 | O108: 19499.16532 | S108: 14427.73892 | U108: 8679.441301 | V108: 7060.909508 | W108: 14283.46153 | Y108: 15740.35081 | Z108: 30023.81234 | AB108: 194774.4755 | AC108: 63000 | AD108: 131774.4755 | AE108: 13411.45 | AF108: 118363.0255 | AG108: 11047.43 | AH108: 107315.5955 | AI108: 11047.43 | AJ108: 107315.5955 | AL108: 12159.87536 | AM108: 9411.116759 | AN108: 21570.99212 | AP108: 194774.4755 | AQ108: 100000 | AR108: 94774.47546 | AT108: 7790.979018 | AU108: 9212.59615 | AV108: 17003.57517 | AX108: 194774.4755 | AY108: 150000 | AZ108: 44774.47546 | BB108: 7790.979018 | BC108: 8453.641255 | BD108: 16244.62027
A109: 69 | C109: 12295.9097 | D109: 9513.094245 | E109: 0 | F109: 723722.5777 | G109: 21809.00395 | H109: 2403128.774 | I109: 1051363.306 | J109: 196722.2202 | M109: 628042.8894 | O109: 19890.79942 | S109: 14572.01631 | U109: 8766.235714 | V109: 7131.518603 | W109: 14426.29615 | Y109: 15897.75432 | Z109: 30324.05047 | AB109: 196722.2202 | AC109: 63000 | AD109: 133722.2202 | AE109: 13411.45 | AF109: 120310.7702 | AG109: 11047.43 | AH109: 109263.3402 | AI109: 11047.43 | AJ109: 109263.3402 | AL109: 12302.06073 | AM109: 9517.853172 | AN109: 21819.9139 | AP109: 196722.2202 | AQ109: 100000 | AR109: 96722.22021 | AT109: 7868.888809 | AU109: 9319.722112 | AV109: 17188.61092 | AX109: 196722.2202 | AY109: 150000 | AZ109: 46722.22021 | BB109: 7868.888809 | BC109: 8560.377668 | BD109: 16429.26648
A110: 70 | C110: 12439.44512 | D110: 9620.84412 | E110: 0 | F110: 738293.1368 | G110: 22060.28924 | H110: 2460045.972 | I110: 1073423.596 | J110: 198689.4424 | M110: 648329.2392 | O110: 20286.34986 | S110: 14717.73648 | U110: 8853.898071 | V110: 7202.83379 | W110: 14570.55911 | Y110: 16056.73186 | Z110: 30627.29097 | AB110: 198689.4424 | AC110: 63000 | AD110: 135689.4424 | AE110: 13411.45 | AF110: 122277.9924 | AG110: 11047.43 | AH110: 111230.5624 | AI110: 11047.43 | AJ110: 111230.5624 | AL110: 12445.66795 | AM110: 9625.656948 | AN110: 22071.3249 | AP110: 198689.4424 | AQ110: 100000 | AR110: 98689.44242 | AT110: 7947.577697 | AU110: 9427.919333 | AV110: 17375.49703 | AX110: 198689.4424 | AY110: 150000 | AZ110: 48689.44242 | BB110: 7947.577697 | BC110: 8668.181444 | BD110: 16615.75914
S112: =SUM(S41:S111) -> 745750.6433 | U112: =SUM(U42:U111) -> 444172.6323 | V112: 361343.8531 | W112: =SUM(W42:W111) -> 730959.8035 | Y112: =SUM(Y42:Y111) -> 805516.4854 | Z112: =SUM(Z42:Z111) -> 1536476.289
V113: =+V112+U112 -> 805516.4854 | Z113: =+V113+W112 -> 1536476.289

Sheet CALCOLO PENSIONE (hidden)
D3: VECCHIO ISCR | E3: =+'RENDITE VITALIZIE'!H12 -> 0
D4: SESSO | E4: =+'RENDITE VITALIZIE'!H10 -> M | F4: =IF($E$4="M",VLOOKUP($E$5,$D$10:$E$99,2),VLOOKUP($E$5,$G$10:$H$97,2)) -> 0 | P4: =IF(E3="SI",122,100) -> 100
D5: ETA' | E5: =+'RENDITE VITALIZIE'!H6 -> 66 | K5: =+E7*L5 -> 14070 | L5: =IF($E$4="M",VLOOKUP($E$6,CALCOLI!$F$16:$H$36,2),VLOOKUP($E$6,CALCOLI!$F$16:$H$36,3)) -> 0.0469 | M5: IMMEDIATA | P5: =+K5*P4% -> 14070
D6: ETA' CORRETTA | E6: =+E5+F4 -> 66
D7: MONTANTE | E7: =+'RENDITE VITALIZIE'!H8 -> 300000 | K7: =+E7*L7 -> 13998 | L7: =IF($E$4="M",VLOOKUP($E$6,CALCOLI!$J$16:$L$36,2),VLOOKUP($E$6,CALCOLI!$J$16:$L$36,3)) -> 0.04666 | M7: CERTA 5 ANNI | P7: =+K7 -> 13998
D9: MASCHI | G9: femmine | K9: =+E7*L9 -> 13731 | L9: =IF($E$4="M",VLOOKUP($E$6,CALCOLI!$N$16:$P$36,2),VLOOKUP($E$6,CALCOLI!$N$16:$P$36,3)) -> 0.04577 | M9: CERTA 10 ANNI | P9: =+K9 -> 13731
D10: 0 | E10: -2 | G10: 0 | H10: -2
D11: =1+D10 -> 1 | E11: -2 | G11: =1+G10 -> 1 | H11: -2 | K11: =+E7*L11 -> 11364 | L11: =IF($E$4="M",VLOOKUP($E$6,CALCOLI!$R$16:$T$36,2),VLOOKUP($E$6,CALCOLI!$R$16:$T$36,3)) -> 0.03788 | M11: CONTRASS TT 0,50% | P11: =+K11 -> 11364
D12: =1+D11 -> 2 | E12: -2 | G12: =1+G11 -> 2 | H12: -2
D13: 3 | E13: -2 | G13: 3 | H13: -2 | K13: =+E7*L13 -> 10656 | L13: =IF($E$4="M",VLOOKUP($E$6,CALCOLI!$Z$5:$AB$25,2),VLOOKUP($E$6,CALCOLI!$Z$5:$AB$25,3)) -> 0.03552 | M13: REVERSIBILE | P13: =+K13 -> 10656
D14: 4 | E14: -2 | G14: 4 | H14: -2
D15: 5 | E15: -2 | G15: 5 | H15: -2
D16: 6 | E16: -2 | G16: 6 | H16: -2
D17: 7 | E17: -2 | G17: 7 | H17: -2
D18: 8 | E18: -2 | G18: 8 | H18: -2
D19: 9 | E19: -2 | G19: 9 | H19: -2
D20: 10 | E20: -2 | G20: 10 | H20: -2
D21: 11 | E21: -2 | G21: 11 | H21: -2
D22: 12 | E22: -2 | G22: 12 | H22: -2
D23: 13 | E23: -2 | G23: 13 | H23: -2
D24: 14 | E24: -2 | G24: 14 | H24: -2
D25: 15 | E25: -2 | G25: 15 | H25: -2
D26: 16 | E26: -2 | G26: 16 | H26: -2
D27: 17 | E27: -2 | G27: 17 | H27: -2
D28: 18 | E28: -2 | G28: 18 | H28: -2
D29: 19 | E29: -2 | G29: 19 | H29: -2
D30: 20 | E30: -2 | G30: 20 | H30: -2
D31: 21 | E31: -2 | G31: 21 | H31: -2
D32: 22 | E32: -2 | G32: 22 | H32: -2
D33: 23 | E33: -2 | G33: 23 | H33: -2
D34: 24 | E34: -2 | G34: 24 | H34: -2
D35: 25 | E35: -2 | G35: 25 | H35: -2
D36: 26 | E36: -2 | G36: 26 | H36: -2
D37: 27 | E37: -2 | G37: 27 | H37: -2
D38: 28 | E38: -2 | G38: 28 | H38: -2
D39: 29 | E39: -2 | G39: 29 | H39: -2
D40: 30 | E40: -2 | G40: 30 | H40: -2
D41: 31 | E41: -2 | G41: 31 | H41: -2
D42: 32 | E42: -2 | G42: 32 | H42: -2
D43: 33 | E43: -2 | G43: 33 | H43: -2
D44: 34 | E44: -2 | G44: 34 | H44: -2
D45: 35 | E45: -2 | G45: 35 | H45: -2
D46: 36 | E46: -2 | G46: 36 | H46: -2
D47: 37 | E47: -2 | G47: 37 | H47: -2
D48: 38 | E48: -2 | G48: 38 | H48: -2
D49: 39 | E49: -2 | G49: 39 | H49: -2
D50: 40 | E50: -2 | G50: 40 | H50: -2
D51: 41 | E51: -2 | G51: 41 | H51: -2
D52: 42 | E52: -2 | G52: 42 | H52: -2
D53: 43 | E53: -2 | G53: 43 | H53: -2
D54: 44 | E54: -2 | G54: 44 | H54: -2
D55: 45 | E55: -2 | G55: 45 | H55: -2
D56: 46 | E56: -2 | G56: 46 | H56: -2
D57: 47 | E57: -1 | G57: 47 | H57: -1
D58: 48 | E58: -1 | G58: 48 | H58: -1
D59: 49 | E59: -1 | G59: 49 | H59: -1
D60: 50 | E60: -1 | G60: 50 | H60: -1
D61: 51 | E61: -1 | G61: 51 | H61: -1
D62: 52 | E62: -1 | G62: 52 | H62: -1
D63: 53 | E63: -1 | G63: 53 | H63: -1
D64: 54 | E64: -1 | G64: 54 | H64: -1
D65: 55 | E65: -1 | G65: 55 | H65: 0
D66: 56 | E66: -1 | G66: 56 | H66: 0
D67: 57 | E67: 0 | G67: 57 | H67: 0
D68: 58 | E68: 0 | G68: 58 | H68: 0
D69: 59 | E69: 0 | G69: 59 | H69: 0
D70: 60 | E70: 0 | G70: 60 | H70: 0
D71: 61 | E71: 0 | G71: 61 | H71: 0
D72: 62 | E72: 0 | G72: 62 | H72: 0
D73: 63 | E73: 0 | G73: 63 | H73: 0
D74: 64 | E74: 0 | G74: 64 | H74: 0
D75: 65 | E75: 0 | G75: 65 | H75: 0
D76: =1+D75 -> 66 | E76: 0 | G76: =1+G75 -> 66 | H76: 0
D77: 67 | E77: 0 | G77: 67 | H77: 0
D78: 68 | E78: 0 | G78: 68 | H78: 1
D79: 69 | E79: 0 | G79: 69 | H79: 1
D80: 70 | E80: 1 | G80: 70 | H80: 1
D81: 71 | E81: 1 | G81: 71 | H81: 1
D82: 72 | E82: 1 | G82: 72 | H82: 1
D83: 73 | E83: 1 | G83: 73 | H83: 1
D84: 74 | E84: 1 | G84: 74 | H84: 1
D85: 75 | E85: 1 | G85: 75 | H85: 1
D86: 76 | E86: 1 | G86: 76 | H86: 1
D87: 77 | E87: 1 | G87: 77 | H87: 2
D88: 78 | E88: 1 | G88: 78 | H88: 2
D89: 79 | E89: 2 | G89: 79 | H89: 2
D90: 80 | E90: 2 | G90: 80 | H90: 2
D91: 81 | E91: 2 | G91: 81 | H91: 2
D92: 82 | E92: 2 | G92: 82 | H92: 2
D93: 83 | E93: 2 | G93: 83 | H93: 2
D94: 84 | E94: 2 | G94: 84 | H94: 2
D95: 85 | E95: 2 | G95: 85 | H95: 2
D96: 86 | E96: 2 | G96: 86 | H96: 2
D97: 87 | E97: 2 | G97: 87 | H97: 2
D98: 88 | E98: 2
D99: 89 | E99: 2

Sheet RENDITE VITALIZIE
J3: CALCOLO RENDITA VITALIZIA
C6: ETA' AL MOMENTO DELLA RISCOSSIONE MINIMO 50 | H6: 66
C8: VALORE MONTANTE DA DESTINARE ALLA RENDITA | H8: 300000
C10: SESSO | H10: M
E23: PROPRIETA' INTELLETTUALE E REALIZZAZIONE DI GIUSEPPE NICOLETTI - E' VIETATA LA RIPRODUZIONE E/O COMMERCIALIZZAZIONE ANCHE PARZIALE
